Workbook

Sheet Topics
A1: Descriptive Statistics: Tabular, Graphical and Numerical summaries of data.
A3: Chapter 2: Descriptive Statistics: Tabular and Graphical summaries of data.
A5: Chapter 3: Descriptive Statistics: Numerical summaries of data.
A7: Descriptive Statistics: Numerical Measures
A8: Topic | B8: Excel Feature
A9: Histogram Cell Chart | B9: Conditional Formatting
A10: Mean | B10: AVERAGE function
A11: Median | B11: MEDAIN function
A12: Mode | B12: MODE.SNGL or COUNTIF functions
A13: Percentiles | B13: PERCENTILE.INC function and "by hand method"
A14: Quartiles | B14: QUARTILE.INC function and "by hand method"
A15: PERCENTRANK function | B15: PERCENTRANK.INC function
A16: RANK functions | B16: RANK.AVE RANK.EQ function
A17: Rank and Percentile tool | B17: Rank and Percentile tool
A18: Weighted Mean | B18: Formula
A19: Geometric Mean | B19: Formula and GEOMEAN function
A20: Trimmed Mean
A21: Range | B21: Formula
A22: Interquartile Range | B22: Formula
A23: Sample Variance | B23: VAR.S function
A24: Sample Standard Deviation | B24: STDEV.S function
A25: Coefficient of Variation | B25: Formula
A26: Descriptive Statistics tool | B26: Descriptive Statistics tool
A27: Distribution Shape ` | B27: SKEW function
A28: z-Scores | B28: Formulas
A29: Chebyshev's Theorem | B29: Formulas
A30: Empirical Rule | B30: Formulas
A31: Detecting Outliers | B31: Formulas
A32: Five Number Summary | B32: Formulas
A33: Box Plot | B33: Chart tool or by hand

Sheet CellCharts
A1: Using Conditional Formatting to create a Type Of Horizontal Histogram - Visulizing Data | P1: Increment
P2: 10
A3: Stats Test Sample 1 | C3: Lower | D3: Upper | E3: Frequency Sample 1 | G3: Class | H3: Horizontal Histogram | I3: Frequency | J3: Dot Plot | K3: Stem | L3: Leaf
A4: =CHOOSE(RANDBETWEEN(1,10),RANDBETWEEN(0,100),RANDBETWEEN(10,100),RANDBETWEEN(20,100),RANDBETWEEN(30,95),RANDBETWEEN(30,90),RANDBETWEEN(35,85),RANDBETWEEN(40,80),RANDBETWEEN(50,75),RANDBETWEEN(50,75),RANDBETWEEN(60,85)) -> 59 | C4: 0 | D4: =C4+$P$2 -> 10 | E4: =COUNTIFS($A$4:$A$96,">="&C4,$A$4:$A$96,"<"&D4) -> 2 | G4: =C4&" <= Score < "&D4 -> 0 <= Score < 10 | I4: =E4 -> 2 | J4: =REPT("*",I4) -> ** | K4: =C4/10 -> 0 | L4: =REPT(" 0 ",COUNTIF($A$4:$A$96,C4+0))&REPT(" 1 ",COUNTIF($A$4:$A$96,C4+1))&REPT(" 2 ",COUNTIF($A$4:$A$96,C4+2))&REPT(" 3 ",COUNTIF($A$4:$A$96,C4+3))&REPT(" 4 ",COUNTIF($A$4:$A$96,C4+4))&REPT(" 5 ",COUNTIF($A$4:$A$96,C4+5))&REPT(" 6 ",COUNTIF($A$4:$A$96,C4+6))&REPT(" 7 ",COUNTIF($A$4:$A$96,C4+7))&REPT(" 8 ",COUNTIF($A$4:$A$96,C4+8))&REPT(" 9 ",COUNTIF($A$4:$A$96,C4+9)) -> 2 5
A5: 51 | C5: =D4 -> 10 | D5: =C5+$P$2 -> 20 | E5: 3 | G5: =C5&" <= Score < "&D5 -> 10 <= Score < 20 | I5: 3 | J5: *** | K5: 1 | L5: =REPT(" 0 ",COUNTIF($A$4:$A$96,C5+0))&REPT(" 1 ",COUNTIF($A$4:$A$96,C5+1))&REPT(" 2 ",COUNTIF($A$4:$A$96,C5+2))&REPT(" 3 ",COUNTIF($A$4:$A$96,C5+3))&REPT(" 4 ",COUNTIF($A$4:$A$96,C5+4))&REPT(" 5 ",COUNTIF($A$4:$A$96,C5+5))&REPT(" 6 ",COUNTIF($A$4:$A$96,C5+6))&REPT(" 7 ",COUNTIF($A$4:$A$96,C5+7))&REPT(" 8 ",COUNTIF($A$4:$A$96,C5+8))&REPT(" 9 ",COUNTIF($A$4:$A$96,C5+9)) -> 3 5 6
A6: 50 | C6: =D5 -> 20 | D6: =C6+$P$2 -> 30 | E6: 2 | G6: 20 <= Score < 30 | I6: 2 | J6: ** | K6: 2 | L6: 6 7
A7: 70 | C7: 30 | D7: 40 | E7: 4 | G7: 30 <= Score < 40 | I7: 4 | J7: **** | K7: 3 | L7: 2 2 5 9
A8: 40 | C8: 40 | D8: 50 | E8: 12 | G8: 40 <= Score < 50 | I8: 12 | J8: ************ | K8: 4 | L8: 0 2 2 4 4 6 6 6 7 8 8 9
A9: 70 | C9: 50 | D9: 60 | E9: 17 | G9: 50 <= Score < 60 | I9: 17 | J9: ***************** | K9: 5 | L9: 0 0 0 1 1 1 2 3 5 6 6 7 8 8 9 9 9
A10: 15 | C10: 60 | D10: 70 | E10: 21 | G10: 60 <= Score < 70 | I10: 21 | J10: ********************* | K10: 6 | L10: 0 0 0 0 1 1 1 2 2 3 3 3 5 7 7 7 7 8 9 9 9
A11: 42 | C11: 70 | D11: 80 | E11: 22 | G11: 70 <= Score < 80 | I11: 22 | J11: ********************** | K11: 7 | L11: 0 0 0 1 1 2 2 2 2 3 3 3 3 3 4 5 5 8 8 9 9 9
A12: 78 | C12: 80 | D12: 90 | E12: 8 | G12: 80 <= Score < 90 | I12: 8 | J12: ******** | K12: 8 | L12: 0 1 2 4 4 4 9 9
A13: 62 | C13: 90 | D13: 100 | E13: 2 | G13: 90 <= Score < 100 | I13: 2 | J13: ** | K13: 9 | L13: 1 6
A14: 75 | C14: 100 | D14: 110 | E14: 0 | G14: 100 <= Score < 110 | I14: 0 | K14: 10
A15: 44
A16: 52
A17: 60
A18: 75
A19: 71
A20: 67
A21: 63
A22: 35
A23: 55
A24: 58
A25: 60
A26: 65
A27: 53
A28: 47
A29: 44
A30: 50
A31: 46
A32: 48
A33: 61
A34: 69
A35: 67
A36: 84
A37: 67
A38: 5
A39: 27
A40: 79
A41: 68
A42: 89
A43: 72
A44: 61
A45: 48
A46: 78
A47: 74
A48: 56
A49: 51
A50: 72
A51: 72
A52: 69
A53: 67
A54: 57
A55: 32
A56: 82
A57: 2
A58: 73
A59: 81
A60: 72
A61: 39
A62: 49
A63: 91
A64: 79
A65: 62
A66: 42
A67: 60
A68: =CHOOSE(RANDBETWEEN(1,10),RANDBETWEEN(0,100),RANDBETWEEN(10,100),RANDBETWEEN(20,100),RANDBETWEEN(30,95),RANDBETWEEN(30,90),RANDBETWEEN(35,85),RANDBETWEEN(40,80),RANDBETWEEN(50,75),RANDBETWEEN(50,75),RANDBETWEEN(60,85)) -> 70
A69: 60
A70: 73
A71: 73
A72: 59
A73: 73
A74: 46
A75: 56
A76: 63
A77: 96
A78: 84
A79: 13
A80: 50
A81: 46
A82: 51
A83: 16
A84: 26
A85: 32
A86: 63
A87: 59
A88: 80
A89: 58
A90: 69
A91: 73
A92: 84
A93: 61
A94: 71
A95: 79
A96: 89

Sheet CellChartsAN
A1: Using Conditional Formatting to create a Type Of Horizontal Histogram - Visulizing Data | P1: Increment
P2: 10
A3: Stats Test Sample 1 | C3: Lower | D3: Upper | E3: Frequency Sample 1 | G3: Class | H3: Horizontal Histogram | I3: Frequency | J3: Dot Plot | K3: Stem | L3: Leaf
A4: =CHOOSE(RANDBETWEEN(1,10),RANDBETWEEN(0,100),RANDBETWEEN(10,100),RANDBETWEEN(20,100),RANDBETWEEN(30,95),RANDBETWEEN(30,90),RANDBETWEEN(35,85),RANDBETWEEN(40,80),RANDBETWEEN(50,75),RANDBETWEEN(50,75),RANDBETWEEN(60,85)) -> 57 | C4: 0 | D4: =C4+$P$2 -> 10 | E4: =COUNTIFS($A$4:$A$96,">="&C4,$A$4:$A$96,"<"&D4) -> 0 | G4: =C4&" <= Score < "&D4 -> 0 <= Score < 10 | H4: =E4 -> 0 | I4: =E4 -> 0 | J4: =REPT("*",I4) ->  | K4: =C4/10 -> 0 | L4: =REPT(" 0 ",COUNTIF($A$4:$A$96,C4+0))&REPT(" 1 ",COUNTIF($A$4:$A$96,C4+1))&REPT(" 2 ",COUNTIF($A$4:$A$96,C4+2))&REPT(" 3 ",COUNTIF($A$4:$A$96,C4+3))&REPT(" 4 ",COUNTIF($A$4:$A$96,C4+4))&REPT(" 5 ",COUNTIF($A$4:$A$96,C4+5))&REPT(" 6 ",COUNTIF($A$4:$A$96,C4+6))&REPT(" 7 ",COUNTIF($A$4:$A$96,C4+7))&REPT(" 8 ",COUNTIF($A$4:$A$96,C4+8))&REPT(" 9 ",COUNTIF($A$4:$A$96,C4+9)) -> 
A5: 44 | C5: =D4 -> 10 | D5: =C5+$P$2 -> 20 | E5: 4 | G5: =C5&" <= Score < "&D5 -> 10 <= Score < 20 | H5: 4 | I5: 4 | J5: **** | K5: 1 | L5: =REPT(" 0 ",COUNTIF($A$4:$A$96,C5+0))&REPT(" 1 ",COUNTIF($A$4:$A$96,C5+1))&REPT(" 2 ",COUNTIF($A$4:$A$96,C5+2))&REPT(" 3 ",COUNTIF($A$4:$A$96,C5+3))&REPT(" 4 ",COUNTIF($A$4:$A$96,C5+4))&REPT(" 5 ",COUNTIF($A$4:$A$96,C5+5))&REPT(" 6 ",COUNTIF($A$4:$A$96,C5+6))&REPT(" 7 ",COUNTIF($A$4:$A$96,C5+7))&REPT(" 8 ",COUNTIF($A$4:$A$96,C5+8))&REPT(" 9 ",COUNTIF($A$4:$A$96,C5+9)) -> 0 4 5 5
A6: 79 | C6: =D5 -> 20 | D6: =C6+$P$2 -> 30 | E6: 2 | G6: 20 <= Score < 30 | H6: 2 | I6: 2 | J6: ** | K6: 2 | L6: 3 5
A7: 62 | C7: 30 | D7: 40 | E7: 1 | G7: 30 <= Score < 40 | H7: 1 | I7: 1 | J7: * | K7: 3 | L7: 8
A8: 66 | C8: 40 | D8: 50 | E8: 9 | G8: 40 <= Score < 50 | H8: 9 | I8: 9 | J8: ********* | K8: 4 | L8: 1 3 4 4 6 8 9 9 9
A9: 66 | C9: 50 | D9: 60 | E9: 10 | G9: 50 <= Score < 60 | H9: 10 | I9: 10 | J9: ********** | K9: 5 | L9: 1 1 2 2 2 7 8 8 8 9
A10: 51 | C10: 60 | D10: 70 | E10: 23 | G10: 60 <= Score < 70 | H10: 23 | I10: 23 | J10: *********************** | K10: 6 | L10: 0 0 1 2 2 4 4 4 4 5 5 6 6 6 6 6 6 6 7 7 8 8 9
A11: 71 | C11: 70 | D11: 80 | E11: 22 | G11: 70 <= Score < 80 | H11: 22 | I11: 22 | J11: ********************** | K11: 7 | L11: 0 0 0 1 1 1 2 2 2 2 2 3 3 3 4 4 5 5 6 6 9 9
A12: 52 | C12: 80 | D12: 90 | E12: 17 | G12: 80 <= Score < 90 | H12: 17 | I12: 17 | J12: ***************** | K12: 8 | L12: 0 0 1 1 1 2 2 3 3 4 5 5 5 5 6 7 8
A13: 76 | C13: 90 | D13: 100 | E13: 5 | G13: 90 <= Score < 100 | H13: 5 | I13: 5 | J13: ***** | K13: 9 | L13: 0 3 4 5 7
A14: 75 | C14: 100 | D14: 110 | E14: 0 | G14: 100 <= Score < 110 | H14: 0 | I14: 0 | K14: 10
A15: 38
A16: 49
A17: 10
A18: 72
A19: 59
A20: 81
A21: 66
A22: 95
A23: 70
A24: 61
A25: 71
A26: 69
A27: 72
A28: 64
A29: 72
A30: 49
A31: 72
A32: 48
A33: 90
A34: 84
A35: 81
A36: 58
A37: 68
A38: 73
A39: 67
A40: 66
A41: 87
A42: 74
A43: 94
A44: 80
A45: 83
A46: 23
A47: 64
A48: 60
A49: 25
A50: 88
A51: 81
A52: 70
A53: 75
A54: 86
A55: 58
A56: 74
A57: 82
A58: 14
A59: 15
A60: 73
A61: 68
A62: 67
A63: 64
A64: 52
A65: 85
A66: 65
A67: 82
A68: =CHOOSE(RANDBETWEEN(1,10),RANDBETWEEN(0,100),RANDBETWEEN(10,100),RANDBETWEEN(20,100),RANDBETWEEN(30,95),RANDBETWEEN(30,90),RANDBETWEEN(35,85),RANDBETWEEN(40,80),RANDBETWEEN(50,75),RANDBETWEEN(50,75),RANDBETWEEN(60,85)) -> 85
A69: 15
A70: 85
A71: 70
A72: 58
A73: 79
A74: 46
A75: 62
A76: 85
A77: 73
A78: 97
A79: 66
A80: 83
A81: 66
A82: 66
A83: 71
A84: 72
A85: 80
A86: 93
A87: 65
A88: 76
A89: 43
A90: 64
A91: 51
A92: 60
A93: 49
A94: 52
A95: 41
A96: 44

Sheet Mean
A1: "Typical Values" calculated so that we have one value that can represent all the data points.
A3: Mean
A4: Arithmetic Mean: Add them up and divide by the count
A5: Good for quantitative data when there are not extreme values - extreme values can make the mean look too big or too small (Median more representative of a typical value in that case)
A6: Use AVERAGE function
A8: Mean Test Scores | D8: Mean Weights (oz.)
A9: =IF(B8<>"","We can use this average to compare to our scores and gage how well we did.","") ->  | D9: =IF(E8<>"","We can use this average to help us estimate whether the machine is filling correctly.","") -> 
A11: Test Scores (Population) | D11: Weights (oz.) of Salad Bag from Filling Machine (Sample)
A12: 60 | D12: 10.8
A13: 68 | D13: 10.74
A14: 76 | D14: 10.32
A15: 84 | D15: 9.73
A16: 55 | D16: 9.15
A17: 63 | D17: 10.94
A18: 89 | D18: 10.83
A19: 31 | D19: 9.36
A20: 47 | D20: 10.42
A21: 68 | D21: 9.97
A22: 54 | D22: 10.23
A23: 58 | D23: 9.83
A24: 57 | D24: 10.41
A25: 61 | D25: 10.35
A26: 72 | D26: 9.87
A27: 91 | D27: 10.02
A28: 95 | D28: 9.45
A29: 68 | D29: 10.46
A30: 76 | D30: 10.8
A31: 76 | D31: 10.01

Sheet MeanAN
A1: "Typical Values" calculated so that we have one value that can represent all the data points.
A3: Mean
A4: Arithmetic Mean: Add them up and divide by the count
A5: Good for quantitative data when there are not extreme values - extreme values can make the mean look too big or too small (Median more representative of a typical value in that case)
A6: Use AVERAGE function
A8: Mean Test Scores | B8: =AVERAGE(A12:A31) -> 67.45 | D8: Mean Weights (oz.) | E8: =AVERAGE(D12:D31) -> 10.1845
A9: =IF(B8<>"","We can use this average to compare to our scores and gage how well we did.","") -> We can use this average to compare to our scores and gage how well we did. | D9: =IF(E8<>"","We can use this average to help us estimate whether the machine is filling correctly.","") -> We can use this average to help us estimate whether the machine is filling correctly.
A11: Test Scores (Population) | D11: Weights (oz.) of Salad Bag from Filling Machine (Sample)
A12: 60 | D12: 10.8
A13: 68 | D13: 10.74
A14: 76 | D14: 10.32
A15: 84 | D15: 9.73
A16: 55 | D16: 9.15
A17: 63 | D17: 10.94
A18: 89 | D18: 10.83
A19: 31 | D19: 9.36
A20: 47 | D20: 10.42
A21: 68 | D21: 9.97
A22: 54 | D22: 10.23
A23: 58 | D23: 9.83
A24: 57 | D24: 10.41
A25: 61 | D25: 10.35
A26: 72 | D26: 9.87
A27: 91 | D27: 10.02
A28: 95 | D28: 9.45
A29: 68 | D29: 10.46
A30: 76 | D30: 10.8
A31: 76 | D31: 10.01

Sheet SorP
A1: If the measures are computed for data from a sample, they are called sample statistics.
A2: If the measures are computed for data from a population, they are called population parameters.
A3: A sample statistic is referred to as the point estimator of the corresponding population parameter.
A4: Since it is usually impossible to get all the numbers for a population, we have to use sample statistics to reasonably estimate the population parameter!
A5: Example: calculate an sample average of number of salmon in Puget Sound and use it as the estimate of the population average of number of salmon in Puget Sound - "We can't count all the fish in the sea!!"

Sheet MeanPorS
A1: Particular X | B1: Popoulation Data | D1: Particular X | E1: Sample Data
A2: X1 | B2: 15 | D2: X1 | E2: =INDEX($B$2:$B$16,(ROWS(E$2:E2)-1)*2+1) -> 15
A3: X2 | B3: 10 | D3: X2 | E3: =INDEX($B$2:$B$16,(ROWS(E$2:E3)-1)*2+1) -> 14
A4: X3 | B4: 14 | D4: X3 | E4: =INDEX($B$2:$B$16,(ROWS(E$2:E4)-1)*2+1) -> 14
A5: X4 | B5: 13 | D5: X4 | E5: =INDEX($B$2:$B$16,(ROWS(E$2:E5)-1)*2+1) -> 11
A6: X5 | B6: 14 | D6: X5 | E6: =INDEX($B$2:$B$16,(ROWS(E$2:E6)-1)*2+1) -> 10
A7: X6 | B7: 8 | D7: X6 | E7: =INDEX($B$2:$B$16,(ROWS(E$2:E7)-1)*2+1) -> 9
A8: X7 | B8: 11 | D8: X7 | E8: =INDEX($B$2:$B$16,(ROWS(E$2:E8)-1)*2+1) -> 9
A9: X8 | B9: 11 | D9: X8 | E9: =INDEX($B$2:$B$16,(ROWS(E$2:E9)-1)*2+1) -> 6
A10: X9 | B10: 10
A11: X10 | B11: 13 | D11: Xbar = | E11: =AVERAGE(E2:E9) -> 11
A12: X11 | B12: 9
A13: X12 | B13: 11 | D13: ="The Sample Statistic 'Sample Mean Xbar', "&DOLLAR(E11)&" is the point estimate of the Population Parameter 'Population Mean Mew'" -> The Sample Statistic 'Sample Mean Xbar', $11.00 is the point estimate of the Population Parameter 'Population Mean Mew'
A14: X13 | B14: 9
A15: X14 | B15: 9
A16: X15 | B16: 6
A18: Mew = μ = | B18: =AVERAGE(B2:B16) -> 10.86666667

Sheet Median
A1: "Typical Values" calculated so that we have one value that can represent all the data points.
A3: Median
A4: Sort, then take the one in the middle (odd count); average the middle two (even count)
A5: Good for quantitative data when there are extreme values (like house prices and salaries)
A6: Use MEDIAN function
A8: Mean House Price | I8: Mean Salary
A9: Median House Price | I9: Median Salary
A10: =IF(C9<>"","Median gives us a more representative 'typical value' to use in discussions and ads - because it is not affected by extreme values.","") ->  | I10: =IF(K9<>"","Median gives us a more representative 'typical value' to make your decision. As soon as you see that the mean is larger than the median, you know that a few large values are pulling the mean up.","") -> 
A12: House Prices | C12: House Prices | I12: Salaries at Accounting Firm | K12: Salaries at Accounting Firm
A13: 297873 | C13: 297873 | I13: 103332 | K13: 103332
A14: 170143 | C14: 170143 | I14: 120102 | K14: 120102
A15: 109159 | C15: 109159 | I15: 144354 | K15: 144354
A16: 277309 | C16: 277309 | I16: 138409 | K16: 138409
A17: 239136 | C17: 239136 | I17: 93949 | K17: 93949
A18: 114460 | C18: 114460 | I18: 59915 | K18: 59915
A19: 224649 | C19: 224649 | I19: 54594 | K19: 54594
A20: 99857 | C20: 99857 | I20: 92784 | K20: 92784
A21: 144686 | C21: 144686 | I21: 550250 | K21: 550250
A22: 193308 | C22: 193308 | I22: 59196 | K22: 59196
A23: 144244 | C23: 144244 | I23: 58072 | K23: 58072
A24: 118492 | C24: 118492 | I24: 51671 | K24: 51671
A25: 178708 | C25: 178708 | I25: 119001 | K25: 119001
A26: 750022 | C26: 750022 | I26: 126737 | K26: 126737
A27: 143400 | C27: 143400 | I27: 105127 | K27: 105127
A28: 201661 | C28: 201661 | I28: 139330 | K28: 139330
A29: 1258963 | C29: 1258963 | I29: 109151 | K29: 109151
A30: 198345 | C30: 198345 | I30: 119831 | K30: 119831
A31: 394136 | C31: 394136 | I31: 255800 | K31: 255800
A32: 2589657 | C32: 2589657 | I32: 790500 | K32: 790500
I33: 96842 | K33: 96842

Sheet MedianAN
A1: "Typical Values" calculated so that we have one value that can represent all the data points.
A3: Median
A4: Sort, then take the one in the middle (odd count); average the middle two (even count)
A5: Good for quantitative data when there are extreme values (like house prices and salaries)
A6: Use MEDIAN function
A8: Mean House Price | C8: =AVERAGE(A13:A32) -> 392410.4 | I8: Mean Salary | K8: =AVERAGE(I13:I33) -> 161378.4286
A9: Median House Price | C9: =MEDIAN(A13:A32) -> 195826.5 | I9: Median Salary | K9: =MEDIAN(I13:I33) -> 109151
A10: =IF(C9<>"","Median gives us a more representative 'typical value' to use in discussions and ads - because it is not affected by extreme values.","") -> Median gives us a more representative 'typical value' to use in discussions and ads - because it is not affected by extreme values. | I10: =IF(K9<>"","Median gives us a more representative 'typical value' to make your decision. As soon as you see that the mean is larger than the median, you know that a few large values are pulling the mean up.","") -> Median gives us a more representative 'typical value' to make your decision. As soon as you see that the mean is larger than the median, you know that a few large values are pulling the mean up.
A12: House Prices | C12: House Prices | I12: Salaries at Accounting Firm | K12: Salaries at Accounting Firm
A13: 297873 | C13: 99857 | I13: 103332 | K13: 790500
A14: 170143 | C14: 109159 | I14: 120102 | K14: 550250
A15: 109159 | C15: 114460 | I15: 144354 | K15: 255800
A16: 277309 | C16: 118492 | I16: 138409 | K16: 144354
A17: 239136 | C17: 143400 | I17: 93949 | K17: 139330
A18: 114460 | C18: 144244 | I18: 59915 | K18: 138409
A19: 224649 | C19: 144686 | I19: 54594 | K19: 126737
A20: 99857 | C20: 170143 | I20: 92784 | K20: 120102
A21: 144686 | C21: 178708 | I21: 550250 | K21: 119831
A22: 193308 | C22: 193308 | I22: 59196 | K22: 119001
A23: 144244 | C23: 198345 | I23: 58072 | K23: 109151
A24: 118492 | C24: 201661 | I24: 51671 | K24: 105127
A25: 178708 | C25: 224649 | I25: 119001 | K25: 103332
A26: 750022 | C26: 239136 | I26: 126737 | K26: 96842
A27: 143400 | C27: 277309 | I27: 105127 | K27: 93949
A28: 201661 | C28: 297873 | I28: 139330 | K28: 92784
A29: 1258963 | C29: 394136 | I29: 109151 | K29: 59915
A30: 198345 | C30: 750022 | I30: 119831 | K30: 59196
A31: 394136 | C31: 1258963 | I31: 255800 | K31: 58072
A32: 2589657 | C32: 2589657 | I32: 790500 | K32: 54594
I33: 96842 | K33: 51671

Sheet Mode
A1: "Typical Values" calculated so that we have one value that can represent all the data points.
A3: Mode
A4: One that occurs most frequently (can be bimodal, multimodal)
A5: Good for Categorical Data (Nominal and Ordinal)
A6: Use MODE.SNGL for quantitative data and COUNTIF or PivotTable for Categorical or quantitative data.
A8: Rate Your Professor | B8: Frequency
A9: Bad | C9: << Mode is one that occurs most frequently
A10: Okay
A11: Good
A12: Great | D12: Mode For Test Data
A13: =IF(AND(B9:B12<>""),"With Nominal or Ordinal Data we have a way of calculating a 'Typical Value'.","") ->  | D13: =IF(E12<>"","MODE.SNGL will not tell you if there is more than one Mode. MODE.SNGL will just report the first one it encounters. A quick PivotTable will help reveal if there is more than one Mode.","") -> 
A15: Rate Your Professor | D15: Test Scores (Population) | F15: See this video for more about MODE.MULT
A16: Okay | D16: 60 | F16: Excel Magic Trick 761: Formula Displaying Multiple Modes & Counting Modes Excel 2010
A17: Good | D17: 68
A18: Great | D18: 76
A19: Bad | D19: 84
A20: Bad | D20: 55
A21: Bad | D21: 63
A22: Bad | D22: 89
A23: Good | D23: 31
A24: Okay | D24: 47
A25: Okay | D25: 68
A26: Okay | D26: 54
A27: Okay | D27: 58
A28: Okay | D28: 57
A29: Bad | D29: 61
A30: Bad | D30: 72
A31: Bad | D31: 91
A32: Great | D32: 95
A33: Good | D33: 68
A34: Good | D34: 76
A35: Bad | D35: 76

Sheet ModeAN
A1: "Typical Values" calculated so that we have one value that can represent all the data points.
A3: Mode
A4: One that occurs most frequently (can be bimodal, multimodal)
A5: Good for Categorical Data (Nominal and Ordinal)
A6: Use MODE.SNGL for quatitative data and COUNTIF or PivotTable for Categorical or quantitative data.
A8: Rate Your Professor | B8: Frequency
A9: Bad | B9: =COUNTIF($A$19:$A$38,A9) -> 8 | C9: << Mode is one that occurs most frequently
A10: Okay | B10: 6
A11: Good | B11: 4
A12: Great | B12: 2 | D12: Mode For Test Data | E12: =_xlfn.MODE.SNGL(D16:D35) -> 68
A13: =IF(AND(B9:B12<>""),"With Nominal or Ordinal Data we have a way of calculating a 'Typical Value'.","") -> With Nominal or Ordinal Data we have a way of calculating a 'Typical Value'. | D13: =IF(E12<>"","MODE.SNGL will not tell you if there is more than one Mode. MODE.SNGL will just report the first one it encounters. A quick PivotTable will help reveal if there is more than one Mode.","") -> MODE.SNGL will not tell you if there is more than one Mode. MODE.SNGL will just report the first one it encounters. A quick PivotTable will help reveal if there is more than one Mode.
A15: Single Array Formula for Retrieving Categorical Mode | D15: Test Scores (Population) | F15: See this video for more about MODE.MULT
A16: =INDEX(A19:A38,_xlfn.MODE.SNGL(MATCH(A19:A38,A19:A38,0))) -> Bad | D16: 60 | F16: Excel Magic Trick 761: Formula Displaying Multiple Modes & Counting Modes Excel 2010
D17: 68
A18: Rate Your Professor | D18: 76 | F18: Test Scores (Population) | G18: Frequency
A19: Okay | D19: 84 | F19: 31 | G19: 1
A20: Good | D20: 55 | F20: 47 | G20: 1
A21: Great | D21: 63 | F21: 54 | G21: 1
A22: Bad | D22: 89 | F22: 55 | G22: 1
A23: Bad | D23: 31 | F23: 57 | G23: 1
A24: Bad | D24: 47 | F24: 58 | G24: 1
A25: Bad | D25: 68 | F25: 60 | G25: 1
A26: Good | D26: 54 | F26: 61 | G26: 1
A27: Okay | D27: 58 | F27: 63 | G27: 1
A28: Okay | D28: 57 | F28: 68 | G28: 3
A29: Okay | D29: 61 | F29: 72 | G29: 1
A30: Okay | D30: 72 | F30: 76 | G30: 3
A31: Okay | D31: 91 | F31: 84 | G31: 1
A32: Bad | D32: 95 | F32: 89 | G32: 1
A33: Bad | D33: 68 | F33: 91 | G33: 1
A34: Bad | D34: 76 | F34: 95 | G34: 1
A35: Great | D35: 76 | F35: Grand Total | G35: 20
A36: Good
A37: Good
A38: Bad

Sheet Mode(2)
A1: MODE function does no good for Categorical Data.
A2: The Mode calculation is especially good for Categorical Data.
A3: What is Microsoft thinking?
A4: To find Mode for categorical Data use: COUNTIF, PivotTable, Column Chart, or array formula
A8: Lego Sets Sold During Christmas | C8: Lego Set | D8: COUNTIF | L8: Lego Sets Sold During Christmas
A9: Kingdoms Set #7946 King's Castle | C9: 2257 Ninjago Spinjitzu Starter Set | D9: =COUNTIF($A$9:$A$245,C9) -> 15 | L9: Community Minifigure 256 Pcs (LG-9348)
A10: Star War Hoth Wampa Set 8089 | C10: 6166 Large Brick Box Building Blocks & Toys | D10: 41 | L10: 6166 Large Brick Box Building Blocks & Toys
A11: 6166 Large Brick Box Building Blocks & Toys | C11: City Exclusive Limited Edition Set #10211 Grand Emporium | D11: 30 | L11: Kingdoms Set #7946 King's Castle
A12: Star War Hoth Wampa Set 8089 | C12: Community Minifigure 256 Pcs (LG-9348) | D12: 16 | L12: Star War Hoth Wampa Set 8089
A13: Kingdoms Set #7946 King's Castle | C13: Kingdoms Set #7946 King's Castle | D13: 77 | L13: City Exclusive Limited Edition Set #10211 Grand Emporium
A14: Community Minifigure 256 Pcs (LG-9348) | C14: Star War Hoth Wampa Set 8089 | D14: 58 | L14: 2257 Ninjago Spinjitzu Starter Set
A15: Kingdoms Set #7946 King's Castle
A16: 6166 Large Brick Box Building Blocks & Toys | C16: Array Formula for Cetegorical Data MODE: | L16: =INDEX($L$9:$L$14,RANDBETWEEN(RANDBETWEEN(1,3),RANDBETWEEN(4,6))) -> City Exclusive Limited Edition Set #10211 Grand Emporium
A17: 6166 Large Brick Box Building Blocks & Toys | C17: Mode
A18: 2257 Ninjago Spinjitzu Starter Set | C18: =INDEX($A$9:$A$245,_xlfn.MODE.SNGL(MATCH($A$9:$A$245,$A$9:$A$245,0))) -> Kingdoms Set #7946 King's Castle
A19: 2257 Ninjago Spinjitzu Starter Set | C19: Count
A20: 6166 Large Brick Box Building Blocks & Toys | C20: =COUNTIF($A$9:$A$245,C18) -> 77
A21: Kingdoms Set #7946 King's Castle
A22: Kingdoms Set #7946 King's Castle
A23: 6166 Large Brick Box Building Blocks & Toys
A24: City Exclusive Limited Edition Set #10211 Grand Emporium
A25: Kingdoms Set #7946 King's Castle
A26: Star War Hoth Wampa Set 8089
A27: 2257 Ninjago Spinjitzu Starter Set
A28: Star War Hoth Wampa Set 8089
A29: City Exclusive Limited Edition Set #10211 Grand Emporium
A30: Star War Hoth Wampa Set 8089
A31: Community Minifigure 256 Pcs (LG-9348)
A32: Kingdoms Set #7946 King's Castle
A33: 6166 Large Brick Box Building Blocks & Toys
A34: 6166 Large Brick Box Building Blocks & Toys
A35: 6166 Large Brick Box Building Blocks & Toys
A36: Kingdoms Set #7946 King's Castle
A37: 6166 Large Brick Box Building Blocks & Toys
A38: 6166 Large Brick Box Building Blocks & Toys
A39: Star War Hoth Wampa Set 8089
A40: 2257 Ninjago Spinjitzu Starter Set | C40: Data
A41: City Exclusive Limited Edition Set #10211 Grand Emporium | C41: 6166 Large Brick Box Building Blocks & Toys
A42: City Exclusive Limited Edition Set #10211 Grand Emporium | C42: Kingdoms Set #7946 King's Castle
A43: City Exclusive Limited Edition Set #10211 Grand Emporium | C43: Star War Hoth Wampa Set 8089
A44: 2257 Ninjago Spinjitzu Starter Set | C44: 6166 Large Brick Box Building Blocks & Toys
A45: Community Minifigure 256 Pcs (LG-9348) | C45: Kingdoms Set #7946 King's Castle
A46: Star War Hoth Wampa Set 8089 | C46: Star War Hoth Wampa Set 8089
A47: Star War Hoth Wampa Set 8089 | C47: Kingdoms Set #7946 King's Castle
A48: Star War Hoth Wampa Set 8089 | C48: Star War Hoth Wampa Set 8089
A49: Kingdoms Set #7946 King's Castle
A50: Star War Hoth Wampa Set 8089
A51: 6166 Large Brick Box Building Blocks & Toys
A52: Kingdoms Set #7946 King's Castle
A53: Kingdoms Set #7946 King's Castle
A54: 2257 Ninjago Spinjitzu Starter Set
A55: Kingdoms Set #7946 King's Castle
A56: Kingdoms Set #7946 King's Castle
A57: Kingdoms Set #7946 King's Castle
A58: Kingdoms Set #7946 King's Castle
A59: Kingdoms Set #7946 King's Castle
A60: Community Minifigure 256 Pcs (LG-9348)
A61: Star War Hoth Wampa Set 8089
A62: 6166 Large Brick Box Building Blocks & Toys
A63: Kingdoms Set #7946 King's Castle
A64: Star War Hoth Wampa Set 8089
A65: 6166 Large Brick Box Building Blocks & Toys
A66: 2257 Ninjago Spinjitzu Starter Set
A67: Star War Hoth Wampa Set 8089
A68: Kingdoms Set #7946 King's Castle
A69: Star War Hoth Wampa Set 8089
A70: City Exclusive Limited Edition Set #10211 Grand Emporium
A71: 6166 Large Brick Box Building Blocks & Toys
A72: Star War Hoth Wampa Set 8089
A73: Community Minifigure 256 Pcs (LG-9348)
A74: 6166 Large Brick Box Building Blocks & Toys
A75: Kingdoms Set #7946 King's Castle
A76: City Exclusive Limited Edition Set #10211 Grand Emporium
A77: Star War Hoth Wampa Set 8089
A78: Star War Hoth Wampa Set 8089
A79: Star War Hoth Wampa Set 8089
A80: Kingdoms Set #7946 King's Castle
A81: City Exclusive Limited Edition Set #10211 Grand Emporium
A82: Star War Hoth Wampa Set 8089
A83: Star War Hoth Wampa Set 8089
A84: 6166 Large Brick Box Building Blocks & Toys
A85: Kingdoms Set #7946 King's Castle
A86: City Exclusive Limited Edition Set #10211 Grand Emporium
A87: Kingdoms Set #7946 King's Castle
A88: 6166 Large Brick Box Building Blocks & Toys
A89: Kingdoms Set #7946 King's Castle
A90: Kingdoms Set #7946 King's Castle
A91: Kingdoms Set #7946 King's Castle
A92: City Exclusive Limited Edition Set #10211 Grand Emporium
A93: 6166 Large Brick Box Building Blocks & Toys
A94: Kingdoms Set #7946 King's Castle
A95: Star War Hoth Wampa Set 8089
A96: Kingdoms Set #7946 King's Castle
A97: Kingdoms Set #7946 King's Castle
A98: Community Minifigure 256 Pcs (LG-9348)
A99: Kingdoms Set #7946 King's Castle
A100: Kingdoms Set #7946 King's Castle
A101: Kingdoms Set #7946 King's Castle
A102: Kingdoms Set #7946 King's Castle
A103: Kingdoms Set #7946 King's Castle
A104: 6166 Large Brick Box Building Blocks & Toys
A105: Community Minifigure 256 Pcs (LG-9348)
A106: City Exclusive Limited Edition Set #10211 Grand Emporium
A107: Kingdoms Set #7946 King's Castle
A108: Community Minifigure 256 Pcs (LG-9348)
A109: Star War Hoth Wampa Set 8089
A110: Star War Hoth Wampa Set 8089
A111: Star War Hoth Wampa Set 8089
A112: Kingdoms Set #7946 King's Castle
A113: Kingdoms Set #7946 King's Castle
A114: Community Minifigure 256 Pcs (LG-9348)
A115: Kingdoms Set #7946 King's Castle
A116: Star War Hoth Wampa Set 8089
A117: Star War Hoth Wampa Set 8089
A118: Kingdoms Set #7946 King's Castle
A119: Star War Hoth Wampa Set 8089
A120: City Exclusive Limited Edition Set #10211 Grand Emporium
A121: Community Minifigure 256 Pcs (LG-9348)
A122: 6166 Large Brick Box Building Blocks & Toys
A123: Kingdoms Set #7946 King's Castle
A124: Star War Hoth Wampa Set 8089
A125: Star War Hoth Wampa Set 8089
A126: 2257 Ninjago Spinjitzu Starter Set
A127: Kingdoms Set #7946 King's Castle
A128: Star War Hoth Wampa Set 8089
A129: 6166 Large Brick Box Building Blocks & Toys
A130: City Exclusive Limited Edition Set #10211 Grand Emporium
A131: Star War Hoth Wampa Set 8089
A132: Star War Hoth Wampa Set 8089
A133: City Exclusive Limited Edition Set #10211 Grand Emporium
A134: Star War Hoth Wampa Set 8089
A135: Star War Hoth Wampa Set 8089
A136: Kingdoms Set #7946 King's Castle
A137: Kingdoms Set #7946 King's Castle
A138: 6166 Large Brick Box Building Blocks & Toys
A139: City Exclusive Limited Edition Set #10211 Grand Emporium
A140: Kingdoms Set #7946 King's Castle
A141: 2257 Ninjago Spinjitzu Starter Set
A142: 6166 Large Brick Box Building Blocks & Toys
A143: Star War Hoth Wampa Set 8089
A144: Kingdoms Set #7946 King's Castle
A145: Star War Hoth Wampa Set 8089
A146: Star War Hoth Wampa Set 8089
A147: 6166 Large Brick Box Building Blocks & Toys
A148: Star War Hoth Wampa Set 8089
A149: Star War Hoth Wampa Set 8089
A150: City Exclusive Limited Edition Set #10211 Grand Emporium
A151: Community Minifigure 256 Pcs (LG-9348)
A152: Star War Hoth Wampa Set 8089
A153: 6166 Large Brick Box Building Blocks & Toys
A154: Star War Hoth Wampa Set 8089
A155: Star War Hoth Wampa Set 8089
A156: Community Minifigure 256 Pcs (LG-9348)
A157: Kingdoms Set #7946 King's Castle
A158: Kingdoms Set #7946 King's Castle
A159: Kingdoms Set #7946 King's Castle
A160: Kingdoms Set #7946 King's Castle
A161: 6166 Large Brick Box Building Blocks & Toys
A162: Star War Hoth Wampa Set 8089
A163: Kingdoms Set #7946 King's Castle
A164: 6166 Large Brick Box Building Blocks & Toys
A165: Kingdoms Set #7946 King's Castle
A166: 2257 Ninjago Spinjitzu Starter Set
A167: Star War Hoth Wampa Set 8089
A168: 6166 Large Brick Box Building Blocks & Toys
A169: Star War Hoth Wampa Set 8089
A170: Kingdoms Set #7946 King's Castle
A171: Kingdoms Set #7946 King's Castle
A172: City Exclusive Limited Edition Set #10211 Grand Emporium
A173: Community Minifigure 256 Pcs (LG-9348)
A174: Kingdoms Set #7946 King's Castle
A175: Star War Hoth Wampa Set 8089
A176: Kingdoms Set #7946 King's Castle
A177: City Exclusive Limited Edition Set #10211 Grand Emporium
A178: Community Minifigure 256 Pcs (LG-9348)
A179: City Exclusive Limited Edition Set #10211 Grand Emporium
A180: 6166 Large Brick Box Building Blocks & Toys
A181: City Exclusive Limited Edition Set #10211 Grand Emporium
A182: Kingdoms Set #7946 King's Castle
A183: 2257 Ninjago Spinjitzu Starter Set
A184: 2257 Ninjago Spinjitzu Starter Set
A185: Star War Hoth Wampa Set 8089
A186: 6166 Large Brick Box Building Blocks & Toys
A187: Star War Hoth Wampa Set 8089
A188: City Exclusive Limited Edition Set #10211 Grand Emporium
A189: Star War Hoth Wampa Set 8089
A190: City Exclusive Limited Edition Set #10211 Grand Emporium
A191: Star War Hoth Wampa Set 8089
A192: City Exclusive Limited Edition Set #10211 Grand Emporium
A193: 6166 Large Brick Box Building Blocks & Toys
A194: 6166 Large Brick Box Building Blocks & Toys
A195: 6166 Large Brick Box Building Blocks & Toys
A196: Star War Hoth Wampa Set 8089
A197: Kingdoms Set #7946 King's Castle
A198: 6166 Large Brick Box Building Blocks & Toys
A199: Kingdoms Set #7946 King's Castle
A200: 6166 Large Brick Box Building Blocks & Toys
A201: 2257 Ninjago Spinjitzu Starter Set
A202: City Exclusive Limited Edition Set #10211 Grand Emporium
A203: City Exclusive Limited Edition Set #10211 Grand Emporium
... 42 more rows

Sheet Mode(2an)
A1: MODE function does no good for Categorical Data.
A2: The Mode calculation is especially good for Categorical Data.
A3: What is Microsoft thinking?
A4: To find Mode for categorical Data use: COUNTIF, PivotTable, Column Chart, or array formula
G5: Lego Sets Sold During Christmas | H5: Frequency
G6: 2257 Ninjago Spinjitzu Starter Set | H6: 15
G7: 6166 Large Brick Box Building Blocks & Toys | H7: 41
A8: Lego Sets Sold During Christmas | C8: Lego Set | D8: COUNTIF | G8: City Exclusive Limited Edition Set #10211 Grand Emporium | H8: 30 | L8: Lego Sets Sold During Christmas
A9: Kingdoms Set #7946 King's Castle | C9: 2257 Ninjago Spinjitzu Starter Set | D9: =COUNTIF($A$9:$A$245,C9) -> 15 | G9: Community Minifigure 256 Pcs (LG-9348) | H9: 16 | L9: Community Minifigure 256 Pcs (LG-9348)
A10: Star War Hoth Wampa Set 8089 | C10: 6166 Large Brick Box Building Blocks & Toys | D10: 41 | G10: Kingdoms Set #7946 King's Castle | H10: 77 | L10: 6166 Large Brick Box Building Blocks & Toys
A11: 6166 Large Brick Box Building Blocks & Toys | C11: City Exclusive Limited Edition Set #10211 Grand Emporium | D11: 30 | G11: Star War Hoth Wampa Set 8089 | H11: 58 | L11: Kingdoms Set #7946 King's Castle
A12: Star War Hoth Wampa Set 8089 | C12: Community Minifigure 256 Pcs (LG-9348) | D12: 16 | G12: Grand Total | H12: 237 | L12: Star War Hoth Wampa Set 8089
A13: Kingdoms Set #7946 King's Castle | C13: Kingdoms Set #7946 King's Castle | D13: 77 | L13: City Exclusive Limited Edition Set #10211 Grand Emporium
A14: Community Minifigure 256 Pcs (LG-9348) | C14: Star War Hoth Wampa Set 8089 | D14: 58 | L14: 2257 Ninjago Spinjitzu Starter Set
A15: Kingdoms Set #7946 King's Castle
A16: 6166 Large Brick Box Building Blocks & Toys | L16: =INDEX($L$9:$L$14,RANDBETWEEN(RANDBETWEEN(1,3),RANDBETWEEN(4,6))) -> 6166 Large Brick Box Building Blocks & Toys
A17: 6166 Large Brick Box Building Blocks & Toys
A18: 2257 Ninjago Spinjitzu Starter Set
A19: 2257 Ninjago Spinjitzu Starter Set
A20: 6166 Large Brick Box Building Blocks & Toys
A21: Kingdoms Set #7946 King's Castle
A22: Kingdoms Set #7946 King's Castle
A23: 6166 Large Brick Box Building Blocks & Toys
A24: City Exclusive Limited Edition Set #10211 Grand Emporium
A25: Kingdoms Set #7946 King's Castle
A26: Star War Hoth Wampa Set 8089
A27: 2257 Ninjago Spinjitzu Starter Set
A28: Star War Hoth Wampa Set 8089
A29: City Exclusive Limited Edition Set #10211 Grand Emporium
A30: Star War Hoth Wampa Set 8089
A31: Community Minifigure 256 Pcs (LG-9348)
A32: Kingdoms Set #7946 King's Castle
A33: 6166 Large Brick Box Building Blocks & Toys | C33: Array Formula for Cetegorical Data MODE:
A34: 6166 Large Brick Box Building Blocks & Toys | C34: Mode
A35: 6166 Large Brick Box Building Blocks & Toys | C35: =INDEX($A$9:$A$245,_xlfn.MODE.SNGL(MATCH($A$9:$A$245,$A$9:$A$245,0))) -> Kingdoms Set #7946 King's Castle
A36: Kingdoms Set #7946 King's Castle | C36: Count
A37: 6166 Large Brick Box Building Blocks & Toys | C37: =COUNTIF($A$9:$A$245,C35) -> 77
A38: 6166 Large Brick Box Building Blocks & Toys
A39: Star War Hoth Wampa Set 8089
A40: 2257 Ninjago Spinjitzu Starter Set | C40: Data
A41: City Exclusive Limited Edition Set #10211 Grand Emporium | C41: 6166 Large Brick Box Building Blocks & Toys
A42: City Exclusive Limited Edition Set #10211 Grand Emporium | C42: Kingdoms Set #7946 King's Castle
A43: City Exclusive Limited Edition Set #10211 Grand Emporium | C43: Star War Hoth Wampa Set 8089
A44: 2257 Ninjago Spinjitzu Starter Set | C44: 6166 Large Brick Box Building Blocks & Toys
A45: Community Minifigure 256 Pcs (LG-9348) | C45: Kingdoms Set #7946 King's Castle
A46: Star War Hoth Wampa Set 8089 | C46: Star War Hoth Wampa Set 8089
A47: Star War Hoth Wampa Set 8089 | C47: Kingdoms Set #7946 King's Castle
A48: Star War Hoth Wampa Set 8089 | C48: Star War Hoth Wampa Set 8089
A49: Kingdoms Set #7946 King's Castle
A50: Star War Hoth Wampa Set 8089
A51: 6166 Large Brick Box Building Blocks & Toys
A52: Kingdoms Set #7946 King's Castle
A53: Kingdoms Set #7946 King's Castle
A54: 2257 Ninjago Spinjitzu Starter Set
A55: Kingdoms Set #7946 King's Castle
A56: Kingdoms Set #7946 King's Castle
A57: Kingdoms Set #7946 King's Castle
A58: Kingdoms Set #7946 King's Castle
A59: Kingdoms Set #7946 King's Castle
A60: Community Minifigure 256 Pcs (LG-9348)
A61: Star War Hoth Wampa Set 8089
A62: 6166 Large Brick Box Building Blocks & Toys
A63: Kingdoms Set #7946 King's Castle
A64: Star War Hoth Wampa Set 8089
A65: 6166 Large Brick Box Building Blocks & Toys
A66: 2257 Ninjago Spinjitzu Starter Set
A67: Star War Hoth Wampa Set 8089
A68: Kingdoms Set #7946 King's Castle
A69: Star War Hoth Wampa Set 8089
A70: City Exclusive Limited Edition Set #10211 Grand Emporium
A71: 6166 Large Brick Box Building Blocks & Toys
A72: Star War Hoth Wampa Set 8089
A73: Community Minifigure 256 Pcs (LG-9348)
A74: 6166 Large Brick Box Building Blocks & Toys
A75: Kingdoms Set #7946 King's Castle
A76: City Exclusive Limited Edition Set #10211 Grand Emporium
A77: Star War Hoth Wampa Set 8089
A78: Star War Hoth Wampa Set 8089
A79: Star War Hoth Wampa Set 8089
A80: Kingdoms Set #7946 King's Castle
A81: City Exclusive Limited Edition Set #10211 Grand Emporium
A82: Star War Hoth Wampa Set 8089
A83: Star War Hoth Wampa Set 8089
A84: 6166 Large Brick Box Building Blocks & Toys
A85: Kingdoms Set #7946 King's Castle
A86: City Exclusive Limited Edition Set #10211 Grand Emporium
A87: Kingdoms Set #7946 King's Castle
A88: 6166 Large Brick Box Building Blocks & Toys
A89: Kingdoms Set #7946 King's Castle
A90: Kingdoms Set #7946 King's Castle
A91: Kingdoms Set #7946 King's Castle
A92: City Exclusive Limited Edition Set #10211 Grand Emporium
A93: 6166 Large Brick Box Building Blocks & Toys
A94: Kingdoms Set #7946 King's Castle
A95: Star War Hoth Wampa Set 8089
A96: Kingdoms Set #7946 King's Castle
A97: Kingdoms Set #7946 King's Castle
A98: Community Minifigure 256 Pcs (LG-9348)
A99: Kingdoms Set #7946 King's Castle
A100: Kingdoms Set #7946 King's Castle
A101: Kingdoms Set #7946 King's Castle
A102: Kingdoms Set #7946 King's Castle
A103: Kingdoms Set #7946 King's Castle
A104: 6166 Large Brick Box Building Blocks & Toys
A105: Community Minifigure 256 Pcs (LG-9348)
A106: City Exclusive Limited Edition Set #10211 Grand Emporium
A107: Kingdoms Set #7946 King's Castle
A108: Community Minifigure 256 Pcs (LG-9348)
A109: Star War Hoth Wampa Set 8089
A110: Star War Hoth Wampa Set 8089
A111: Star War Hoth Wampa Set 8089
A112: Kingdoms Set #7946 King's Castle
A113: Kingdoms Set #7946 King's Castle
A114: Community Minifigure 256 Pcs (LG-9348)
A115: Kingdoms Set #7946 King's Castle
A116: Star War Hoth Wampa Set 8089
A117: Star War Hoth Wampa Set 8089
A118: Kingdoms Set #7946 King's Castle
A119: Star War Hoth Wampa Set 8089
A120: City Exclusive Limited Edition Set #10211 Grand Emporium
A121: Community Minifigure 256 Pcs (LG-9348)
A122: 6166 Large Brick Box Building Blocks & Toys
A123: Kingdoms Set #7946 King's Castle
A124: Star War Hoth Wampa Set 8089
A125: Star War Hoth Wampa Set 8089
A126: 2257 Ninjago Spinjitzu Starter Set
A127: Kingdoms Set #7946 King's Castle
A128: Star War Hoth Wampa Set 8089
A129: 6166 Large Brick Box Building Blocks & Toys
A130: City Exclusive Limited Edition Set #10211 Grand Emporium
A131: Star War Hoth Wampa Set 8089
A132: Star War Hoth Wampa Set 8089
A133: City Exclusive Limited Edition Set #10211 Grand Emporium
A134: Star War Hoth Wampa Set 8089
A135: Star War Hoth Wampa Set 8089
A136: Kingdoms Set #7946 King's Castle
A137: Kingdoms Set #7946 King's Castle
A138: 6166 Large Brick Box Building Blocks & Toys
A139: City Exclusive Limited Edition Set #10211 Grand Emporium
A140: Kingdoms Set #7946 King's Castle
A141: 2257 Ninjago Spinjitzu Starter Set
A142: 6166 Large Brick Box Building Blocks & Toys
A143: Star War Hoth Wampa Set 8089
A144: Kingdoms Set #7946 King's Castle
A145: Star War Hoth Wampa Set 8089
A146: Star War Hoth Wampa Set 8089
A147: 6166 Large Brick Box Building Blocks & Toys
A148: Star War Hoth Wampa Set 8089
A149: Star War Hoth Wampa Set 8089
A150: City Exclusive Limited Edition Set #10211 Grand Emporium
A151: Community Minifigure 256 Pcs (LG-9348)
A152: Star War Hoth Wampa Set 8089
A153: 6166 Large Brick Box Building Blocks & Toys
A154: Star War Hoth Wampa Set 8089
A155: Star War Hoth Wampa Set 8089
A156: Community Minifigure 256 Pcs (LG-9348)
A157: Kingdoms Set #7946 King's Castle
A158: Kingdoms Set #7946 King's Castle
A159: Kingdoms Set #7946 King's Castle
A160: Kingdoms Set #7946 King's Castle
A161: 6166 Large Brick Box Building Blocks & Toys
A162: Star War Hoth Wampa Set 8089
A163: Kingdoms Set #7946 King's Castle
A164: 6166 Large Brick Box Building Blocks & Toys
A165: Kingdoms Set #7946 King's Castle
A166: 2257 Ninjago Spinjitzu Starter Set
A167: Star War Hoth Wampa Set 8089
A168: 6166 Large Brick Box Building Blocks & Toys
A169: Star War Hoth Wampa Set 8089
A170: Kingdoms Set #7946 King's Castle
A171: Kingdoms Set #7946 King's Castle
A172: City Exclusive Limited Edition Set #10211 Grand Emporium
A173: Community Minifigure 256 Pcs (LG-9348)
A174: Kingdoms Set #7946 King's Castle
A175: Star War Hoth Wampa Set 8089
A176: Kingdoms Set #7946 King's Castle
A177: City Exclusive Limited Edition Set #10211 Grand Emporium
A178: Community Minifigure 256 Pcs (LG-9348)
A179: City Exclusive Limited Edition Set #10211 Grand Emporium
A180: 6166 Large Brick Box Building Blocks & Toys
A181: City Exclusive Limited Edition Set #10211 Grand Emporium
A182: Kingdoms Set #7946 King's Castle
A183: 2257 Ninjago Spinjitzu Starter Set
A184: 2257 Ninjago Spinjitzu Starter Set
A185: Star War Hoth Wampa Set 8089
A186: 6166 Large Brick Box Building Blocks & Toys
A187: Star War Hoth Wampa Set 8089
A188: City Exclusive Limited Edition Set #10211 Grand Emporium
A189: Star War Hoth Wampa Set 8089
A190: City Exclusive Limited Edition Set #10211 Grand Emporium
A191: Star War Hoth Wampa Set 8089
A192: City Exclusive Limited Edition Set #10211 Grand Emporium
A193: 6166 Large Brick Box Building Blocks & Toys
A194: 6166 Large Brick Box Building Blocks & Toys
A195: 6166 Large Brick Box Building Blocks & Toys
A196: Star War Hoth Wampa Set 8089
A197: Kingdoms Set #7946 King's Castle
A198: 6166 Large Brick Box Building Blocks & Toys
A199: Kingdoms Set #7946 King's Castle
A200: 6166 Large Brick Box Building Blocks & Toys
... 45 more rows

Sheet Location
B1: Measures of Location
A2: "Typical Values" calculated so that we have one value that can represent all the data points. | B2: Mean | C2: Arithmetic Mean: Add them up and divide by the count
C3: Good for quantitative data when there are not extreme values - extreme values can make the mean look too big or too small (Medain more representative of a typical value in that case)
B4: Median | C4: Sort, then take the one in the middle (odd count); average the middle two (even count)
C5: Good for quantitative data when there are extreme values (like house prices and salaries)
B6: Mode | C6: One that occurs most frequently (can be bimodal, multimodal)
C7: Good for Nominal and Ordinal Data
A8: Markers in a sorted list that tell us what % of values are below and above. | B8: Percentiles | C8: For data sets without a lot of duplicates, Value Marking Point within a sorted list that says what % of values are less than or equal to the Value Marking Point. With Percentiles, we start with a decimal or percent and find the value (marking point).
C9: Good for quantitative data
C10: Example: CPA exam 70th Percentile is a score of 61 ==> 70% of the scores are less than or equal to 61 and 30% of the scores are equal to or greater than 61.
B11: Quartiles | C11: Same as Percentiles but you divide the sorted list into 4 parts with 3 Value Marking Points. With Quartiles / Percentiles, we start with a decimal or percent and find the value (marking point).
C12: For the CPA exam, the 1st, 2nd and 3rd quartiles (25%, 50% and 75% percentiles) are 45, 52 and 64, respectively.
B13: PERCENTRANK function | C13: Excel function that starts with the value (marking point) and finds the % of values below that marking point (opposite of what PERCENTILE.INC function does). To find the % of values above use 1 - PERCENTILE.INC function result.
C14: PERCENTILE.INC function counts the number of values below and divides that by the count - 1 (excludes itself from the total count). If the PERCENTILE.INC function looks at a value that is not in the list it interpolates the value.
C15: Returns the rank of a value in a data set as a percentage of the data set. This function can be used to evaluate the relative standing of a value within a data set. For example, you can use PERCENTRANK.INC to evaluate the standing of an aptitude test score among all scores for the test.
B17: Sample Data | D17: AVEARGE function | E17: MEDIAN function | F17: MODE.SNGL function | G17: PERCENTILE.INC function | H17: QUARTILE.INC function | I17: PERCENTRANK.INC function
B18: 16 | D18: Quantitative Data | E18: Quantitative Data | F18: Categorical or Quatitative Data | G18: Quantitative Data | H18: Quantitative Data | I18: Quantitative Data
B19: 15 | D19: =B2 -> Mean | E19: =B4 -> Median | F19: =B6 -> Mode | G19: =B8 -> Percentiles | H19: =B11 -> Quartiles
B20: 14 | G20: 0.75 | H20: 3 | I20: 14.25
B21: 11 | E21: =IF(E20="","",TEXT(E34,"0.00%")&" of the values are less than or equal to "&DOLLAR(E20,2)&" and "&TEXT(E35,"0.00%")&" of the values are greater than or equal to "&DOLLAR(E20,2)&".") -> 
B22: 10 | G22: =IF(G21="","",TEXT(G35,"0.00%")&" of the values are less than or equal to "&DOLLAR(G21,2)&" and "&TEXT(G36,"0.00%")&" of the values are greater than or equal to "&DOLLAR(G21,2)&".") ->  | H22: =IF(H21="","",TEXT(H35,"0.00%")&" of the values are less than or equal to "&DOLLAR(H21,2)&" and "&TEXT(H36,"0.00%")&" of the values are greater than or equal to "&DOLLAR(H21,2)&".") ->  | I22: =IF(I21="","",TEXT(I21,"0.0%")&" below "&DOLLAR(I20,2)) ->  | J22: =IF(J21="","",TEXT(J21,"0.0%")&" above "&DOLLAR(I20,2)) -> 
B23: 9
B24: 9 | I24: calculated with: 6/8 | J24: calculated with: 2/8
B25: 6
E34: 0.5
E35: =1-E34 -> 0.5 | G35: =$G$20 -> 0.75 | H35: =$G$20 -> 0.75
G36: =1-G35 -> 0.25 | H36: =1-H35 -> 0.25

Sheet LocationAN
B1: Measures of Location
A2: "Typical Values" calculated so that we have one value that can represent all the data points. | B2: Mean | C2: Arithmetic Mean: Add them up and divide by the count
C3: Good for quantitative data when there are not extreme values - extreme values can make the mean look too big or too small (Medain more representative of a typical value in that case)
B4: Median | C4: Sort, then take the one in the middle (odd count); average the middle two (even count)
C5: Good for quantitative data when there are extreme values (like house prices and salaries)
B6: Mode | C6: One that occurs most frequently (can be bimodal, multimodal)
C7: Good for Nominal and Ordinal Data
A8: Markers in a sorted list that tell us what % of values are below and above. | B8: Percentiles | C8: For data sets without a lot of duplicates, Value Marking Point within a sorted list that says what % of values are less than or equal to the Value Marking Point. With Percentiles, we start with a decimal or percent and find the value (marking point).
C9: Good for quantitative data
C10: Example: CPA exam 70th Percentile is a score of 61 ==> 70% of the scores are less than or equal to 61 and 30% of the scores are equal to or greater than 61.
B11: Quartiles | C11: Same as Percentiles but you divide the sorted list into 4 parts with 3 Value Marking Points. With Quartiles / Percentiles, we start with a decimal or percent and find the value (marking point).
C12: For the CPA exam, the 1st, 2nd and 3rd quartiles (25%, 50% and 75% percentiles) are 45, 52 and 64, respectively.
B13: PERCENTRANK function | C13: Excel function that starts with the value (marking point) and finds the % of values below that marking point (opposite of what PERCENTILE function does). To find the % of values above use 1 - PERCENTILE function result.
C14: PERCENTILE function counts the number of values below and divides that by the count - 1 (excludes itself from the total count). If the PERCENTILE function looks at a value that is not in the list it interpolates the value.
C15: Returns the rank of a value in a data set as a percentage of the data set. This function can be used to evaluate the relative standing of a value within a data set. For example, you can use PERCENTRANK to evaluate the standing of an aptitude test score among all scores for the test.
B17: Sample Data | D17: AVEARGE function | E17: MEDIAN function | F17: MODE.SNGL function | G17: PERCENTILE.INC function | H17: QUARTILE.INC function | I17: PERCENTRANK.INC function
B18: 16 | D18: Quantitative Data | E18: Quantitative Data | F18: Categorical or Quatitative Data | G18: Quantitative Data | H18: Quantitative Data | I18: Quantitative Data
B19: 15 | D19: =B2 -> Mean | E19: =B4 -> Median | F19: =B6 -> Mode | G19: =B8 -> Percentiles | H19: =B11 -> Quartiles
B20: 14 | D20: =AVERAGE(B18:B25) -> 11.25 | E20: =MEDIAN(B18:B25) -> 10.5 | F20: =_xlfn.MODE.SNGL(B18:B25) -> 9 | G20: 0.75 | H20: 3 | I20: 14.25
B21: 11 | E21: =IF(E20="","",TEXT(E34,"0.00%")&" of the values are less than or equal to "&DOLLAR(E20,2)&" and "&TEXT(E35,"0.00%")&" of the values are greater than or equal to "&DOLLAR(E20,2)&".") -> 50.00% of the values are less than or equal to $10.50 and 50.00% of the values are greater than or equal to $10.50. | G21: =_xlfn.PERCENTILE.INC(B18:B25,G20) -> 14.25 | H21: =_xlfn.QUARTILE.INC(B18:B25,H20) -> 14.25 | I21: =_xlfn.PERCENTRANK.INC(B18:B25,I20) -> 0.75 | J21: =1-I21 -> 0.25
B22: 10 | G22: =IF(G21="","",TEXT(G35,"0.00%")&" of the values are less than or equal to "&DOLLAR(G21,2)&" and "&TEXT(G36,"0.00%")&" of the values are greater than or equal to "&DOLLAR(G21,2)&".") -> 75.00% of the values are less than or equal to $14.25 and 25.00% of the values are greater than or equal to $14.25. | H22: =IF(H21="","",TEXT(H35,"0.00%")&" of the values are less than or equal to "&DOLLAR(H21,2)&" and "&TEXT(H36,"0.00%")&" of the values are greater than or equal to "&DOLLAR(H21,2)&".") -> 75.00% of the values are less than or equal to $14.25 and 25.00% of the values are greater than or equal to $14.25. | I22: =IF(I21="","",TEXT(I21,"0.0%")&" below "&DOLLAR(I20,2)) -> 75.0% below $14.25 | J22: =IF(J21="","",TEXT(J21,"0.0%")&" above "&DOLLAR(I20,2)) -> 25.0% above $14.25
B23: 9
B24: 9 | I24: calculated with: 6/8 | J24: calculated with: 2/8
B25: 6
I26: =6/8 -> 0.75 | J26: =2/8 -> 0.25
E34: 0.5
E35: =1-E34 -> 0.5 | G35: =$G$20 -> 0.75 | H35: =$G$20 -> 0.75
G36: =1-G35 -> 0.25 | H36: =1-H35 -> 0.25

Sheet PER.EXC
A1: No. | B1: CPA Scores | D1: For data sets without a lot of duplicates, The pth percentile of a data set is a value such that at least p percent (decimal) of the items are less than or equal to this value and at least (1 - p) percent of the items are greater than or equal to this value.
A2: 1 | B2: 7 | D2: ="Percentile:"&CHAR(10)&"We want to have a number from the sorted list that is the marking point that will say "&TEXT(E4,"0.0%")&" of the values are below the marking point, and "&TEXT(1-E4,"0.00%")&" of the values are above the marking point - a marking point that divided that data set into two parts. Percentile provides information about 'spread' and 'location'." -> Percentile: We want to have a number from the sorted list that is the marking point that will say 90.0% of the values are below the marking point, and 10.00% of the values are above the marking point - a marking point that divided that data set into two parts. Percentile provides information about 'spread' and 'location'.
A3: 2 | B3: 17
A4: 3 | B4: 26 | D4: Percentile % | E4: 0.9 | G4: PERCENTILE.EXC
A5: 4 | B5: 27 | D5: Count = n = | G5: 1 | H5: Can't use 0% or 100%
A6: 5 | B6: 30 | D6: Position = (n+1)*p | G6: 2 | H6: Position = (n+1)*p
A7: 6 | B7: 38 | D7: How far between?
A8: 7 | B8: 39 | D8: Distance between 2?
A9: 8 | B9: 42 | D9: Amount to add to lower end
A10: 9 | B10: 43 | D10: ="Marking Point = "&TEXT(E4,"0.00%")&" Percentile" -> Marking Point = 90.00% Percentile | F10: ="Approximately "&TEXT(E4,"0.00%")&" of the CPA scores are below the score of "&E10&" and "&TEXT(1-E4,"0.00%")&" and above the score of "&E10&"." -> Approximately 90.00% of the CPA scores are below the score of and 10.00% and above the score of .
A11: 10 | B11: 45 | D11: ="Marking Point = "&TEXT(E4,"0.00%")&" Percentile" -> Marking Point = 90.00% Percentile | F11: PERCENTILE.EXC
A12: 11 | B12: 54
A13: 12 | B13: 54 | F13: Below | G13: =COUNT(B2:B14)/COUNT(B2:B15) -> 0.9285714286
A14: 13 | B14: 59 | C14: 13th | D14: << == Somewhere between these two. | F14: Above | G14: =COUNT(B15)/COUNT(B2:B15) -> 0.07142857143
A15: 14 | B15: 97 | C15: 14th | F15: Total | G15: =SUM(G13:G14) -> 1

Sheet PER.EXC (an)
A1: No. | B1: CPA Scores | D1: For data sets without a lot of duplicates, The pth percentile of a data set is a value such that at least p percent (decimal) of the items are less than or equal to this value and at least (1 - p) percent of the items are greater than or equal to this value.
A2: 1 | B2: 7 | D2: ="Percentile:"&CHAR(10)&"We want to have a number from the sorted list that is the marking point that will say "&TEXT(E4,"0.0%")&" of the values are below the marking point, and "&TEXT(1-E4,"0.00%")&" of the values are above the marking point - a marking point that divided that data set into two parts. Percentile provides information about 'spread' and 'location'." -> Percentile: We want to have a number from the sorted list that is the marking point that will say 90.0% of the values are below the marking point, and 10.00% of the values are above the marking point - a marking point that divided that data set into two parts. Percentile provides information about 'spread' and 'location'.
A3: 2 | B3: 17
A4: 3 | B4: 26 | D4: Percentile % | E4: 0.9 | G4: PERCENTILE.EXC
A5: 4 | B5: 27 | D5: Count = n = | E5: =COUNT(B2:B15) -> 14 | G5: 1 | H5: Can't use 0% or 100%
A6: 5 | B6: 30 | D6: Position = (n+1)*p | E6: =(E5+1)*E4 -> 13.5 | G6: 2 | H6: Position = (n+1)*p
A7: 6 | B7: 38 | D7: How far between? | E7: =E6-INT(E6) -> 0.5
A8: 7 | B8: 39 | D8: Distance between 2? | E8: =B15-B14 -> 38
A9: 8 | B9: 42 | D9: Amount to add to lower end | E9: =E8*E7 -> 19
A10: 9 | B10: 43 | D10: ="Marking Point = "&TEXT(E4,"0.00%")&" Percentile" -> Marking Point = 90.00% Percentile | E10: =B14+E9 -> 78 | F10: ="Approximately "&TEXT(E4,"0.00%")&" of the CPA scores are below the score of "&E10&" and "&TEXT(1-E4,"0.00%")&" and above the score of "&E10&"." -> Approximately 90.00% of the CPA scores are below the score of 78 and 10.00% and above the score of 78.
A11: 10 | B11: 45 | D11: ="Marking Point = "&TEXT(E4,"0.00%")&" Percentile" -> Marking Point = 90.00% Percentile | E11: =_xlfn.PERCENTILE.EXC(B2:B15,E4) -> 78 | F11: PERCENTILE.EXC
A12: 11 | B12: 54
A13: 12 | B13: 54 | F13: Below | G13: =COUNT(B2:B14)/COUNT(B2:B15) -> 0.9285714286
A14: 13 | B14: 59 | C14: 13th | D14: << == Somewhere between these two. | F14: Above | G14: =COUNT(B15)/COUNT(B2:B15) -> 0.07142857143
A15: 14 | B15: 97 | C15: 14th | F15: Total | G15: =SUM(G13:G14) -> 1

Sheet PER.INC
A1: No. | B1: CPA Scores | D1: For data sets without a lot of duplicates, The pth percentile of a data set is a value such that at least p percent (decimal) of the items are less than or equal to this value and at least (1 - p) percent of the items are greater than or equal to this value.
A2: 1 | B2: 7 | D2: ="Percentile:"&CHAR(10)&"We want to have a number from the sorted list that is the marking point that will say "&TEXT(E4,"0.0%")&" of the values are below the marking point, and "&TEXT(1-E4,"0.00%")&" of the values are above the marking point - a marking point that divided that data set into two parts. Percentile provides information about 'spread' and 'location'." -> Percentile: We want to have a number from the sorted list that is the marking point that will say 90.0% of the values are below the marking point, and 10.00% of the values are above the marking point - a marking point that divided that data set into two parts. Percentile provides information about 'spread' and 'location'.
A3: 2 | B3: 17
A4: 3 | B4: 26 | D4: Percentile % | E4: 0.9 | G4: PERCENTILE.INC
A5: 4 | B5: 27 | D5: Count = n = | G5: 1 | H5: Can use 0% and 100%
A6: 5 | B6: 30 | D6: Position = p*n+(1-p) | G6: 2 | H6: Position = p*n+(1-p)
A7: 6 | B7: 38 | D7: How far between?
A8: 7 | B8: 39 | D8: Distance between 2?
A9: 8 | B9: 42 | D9: Amount to add to lower end
A10: 9 | B10: 43 | D10: ="Marking Point = "&TEXT($E$4,"0.00%")&" Percentile" -> Marking Point = 90.00% Percentile | F10: ="Approximately "&TEXT(E4,"0.00%")&" of the CPA scores are below the score of "&E10&" and "&TEXT(1-E4,"0.00%")&" and below the score of "&E10&"." -> Approximately 90.00% of the CPA scores are below the score of and 10.00% and below the score of .
A11: 10 | B11: 45 | D11: ="Marking Point = "&TEXT($E$4,"0.00%")&" Percentile" -> Marking Point = 90.00% Percentile | F11: PERCENTILE.INC
A12: 11 | B12: 54 | D12: Marking Point = 90.00% Percentile | F12: PERCENTILE
A13: 12 | B13: 54 | C13: 12th | D13: << == Somewhere between these two.
A14: 13 | B14: 59 | C14: 13th
A15: 14 | B15: 97 | F15: Below | G15: =COUNT(B2:B13)/COUNT(B2:B15) -> 0.8571428571
F16: Above | G16: =COUNT(B14:B15)/COUNT(B2:B15) -> 0.1428571429
F17: Total | G17: =SUM(G15:G16) -> 1

Sheet PER.INC (an)
A1: No. | B1: CPA Scores | D1: For data sets without a lot of duplicates, The pth percentile of a data set is a value such that at least p percent (decimal) of the items are less than or equal to this value and at least (1 - p) percent of the items are greater than or equal to this value.
A2: 1 | B2: 7 | D2: ="Percentile:"&CHAR(10)&"We want to have a number from the sorted list that is the marking point that will say "&TEXT(E4,"0.0%")&" of the values are below the marking point, and "&TEXT(1-E4,"0.00%")&" of the values are above the marking point - a marking point that divided that data set into two parts. Percentile provides information about 'spread' and 'location'." -> Percentile: We want to have a number from the sorted list that is the marking point that will say 90.0% of the values are below the marking point, and 10.00% of the values are above the marking point - a marking point that divided that data set into two parts. Percentile provides information about 'spread' and 'location'.
A3: 2 | B3: 17
A4: 3 | B4: 26 | D4: Percentile % | E4: 0.9 | G4: PERCENTILE.INC
A5: 4 | B5: 27 | D5: Count = n = | E5: =COUNT(B2:B15) -> 14 | G5: 1 | H5: Can use 0% and 100%
A6: 5 | B6: 30 | D6: Position = p*n+(1-p) | E6: =E4*E5+(1-E4) -> 12.7 | G6: 2 | H6: Position = p*n+(1-p)
A7: 6 | B7: 38 | D7: How far between? | E7: =E6-INT(E6) -> 0.7
A8: 7 | B8: 39 | D8: Distance between 2? | E8: =B14-B13 -> 5
A9: 8 | B9: 42 | D9: Amount to add to lower end | E9: =E8*E7 -> 3.5
A10: 9 | B10: 43 | D10: ="Marking Point = "&TEXT($E$4,"0.00%")&" Percentile" -> Marking Point = 90.00% Percentile | E10: =B13+E9 -> 57.5 | F10: ="Approximately "&TEXT(E4,"0.00%")&" of the CPA scores are below the score of "&E10&" and "&TEXT(1-E4,"0.00%")&" and below the score of "&E10&"." -> Approximately 90.00% of the CPA scores are below the score of 57.5 and 10.00% and below the score of 57.5.
A11: 10 | B11: 45 | D11: ="Marking Point = "&TEXT($E$4,"0.00%")&" Percentile" -> Marking Point = 90.00% Percentile | E11: =_xlfn.PERCENTILE.INC(B2:B15,E4) -> 57.5 | F11: PERCENTILE.INC
A12: 11 | B12: 54 | D12: Marking Point = 90.00% Percentile | E12: =PERCENTILE(B2:B15,E4) -> 57.5 | F12: PERCENTILE
A13: 12 | B13: 54 | C13: 12th | D13: << == Somewhere between these two.
A14: 13 | B14: 59 | C14: 13th
A15: 14 | B15: 97 | F15: Below | G15: =COUNT(B2:B13)/COUNT(B2:B15) -> 0.8571428571
F16: Above | G16: =COUNT(B14:B15)/COUNT(B2:B15) -> 0.1428571429
F17: Total | G17: =SUM(G15:G16) -> 1

Sheet PER.Textbook
A1: No. | B1: CPA Scores | D1: For data sets without a lot of duplicates, The pth percentile of a data set is a value such that at least p percent (decimal) of the items are less than or equal to this value and at least (1 - p) percent of the items are greater than or equal to this value.
A2: 1 | B2: 7 | D2: ="Percentile:"&CHAR(10)&"We want to have a number from the sorted list that is the marking point that will say "&TEXT(E4,"0.0%")&" of the values are below the marking point, and "&TEXT(1-E4,"0.00%")&" of the values are above the marking point - a marking point that divided that data set into two parts. Percentile provides information about 'spread' and 'location'." -> Percentile: We want to have a number from the sorted list that is the marking point that will say 90.0% of the values are below the marking point, and 10.00% of the values are above the marking point - a marking point that divided that data set into two parts. Percentile provides information about 'spread' and 'location'.
A3: 2 | B3: 17
A4: 3 | B4: 26 | D4: Percentile % | E4: 0.9 | G4: Textbook: Percentile tells you the value in the sorted list that is a "dividing line" or "marking point" and marks that point at which approximately p% values lie blow marking point and (1-p%) values lie above marking point. If there are many duplicates, the approximation may be off a bit.
A5: 4 | B5: 27 | D5: Count = n = | G5: Step 1 | H5: Sort A to Z
A6: 5 | B6: 30 | D6: Position = n*p | G6: Step 2 | H6: Compute Index = i = p*n p = pth percentile as % (different than book) n = count of sample items i = tells you the position of the item in the sorted list
A7: 6 | B7: 38 | D7: Percentile value | G7: Step 3 | H7: If i is not an integer, round up to the next position, if it is an integer, average i and i + 1.
A8: 7 | B8: 39
A9: 8 | B9: 42 | D9: No function for this method | F9: textbook
A10: 9 | B10: 43 | F10: 1 | G10: Can use 0% and 100%
A11: 10 | B11: 45 | F11: 2 | G11: Position = n*p
A12: 11 | B12: 54
A13: 12 | B13: 54 | C13: 12th | E13: Below | F13: =COUNT(B2:B13)/COUNT(B2:B15) -> 0.8571428571
A14: 13 | B14: 59 | C14: 13th | E14: Above | F14: =COUNT(B15)/COUNT(B2:B15) -> 0.07142857143
A15: 14 | B15: 97 | E15: Total | F15: =SUM(F13:F14) -> 0.9285714286

Sheet PER.Textbook (an)
A1: No. | B1: CPA Scores | D1: For data sets without a lot of duplicates, The pth percentile of a data set is a value such that at least p percent (decimal) of the items are less than or equal to this value and at least (1 - p) percent of the items are greater than or equal to this value.
A2: 1 | B2: 7 | D2: ="Percentile:"&CHAR(10)&"We want to have a number from the sorted list that is the marking point that will say "&TEXT(E4,"0.0%")&" of the values are below the marking point, and "&TEXT(1-E4,"0.00%")&" of the values are above the marking point - a marking point that divided that data set into two parts. Percentile provides information about 'spread' and 'location'." -> Percentile: We want to have a number from the sorted list that is the marking point that will say 90.0% of the values are below the marking point, and 10.00% of the values are above the marking point - a marking point that divided that data set into two parts. Percentile provides information about 'spread' and 'location'.
A3: 2 | B3: 17
A4: 3 | B4: 26 | D4: Percentile % | E4: 0.9 | G4: Textbook: Percentile tells you the value in the sorted list that is a "dividing line" or "marking point" and marks that point at which approximately p% values lie blow marking point and (1-p%) values lie above marking point. If there are many duplicates, the approximation may be off a bit.
A5: 4 | B5: 27 | D5: Count = n = | E5: =COUNT(B2:B15) -> 14 | G5: Step 1 | H5: Sort A to Z
A6: 5 | B6: 30 | D6: Position = n*p | E6: =E5*E4 -> 12.6 | G6: Step 2 | H6: Compute Index = i = p*n p = pth percentile as % (different than book) n = count of sample items i = tells you the position of the item in the sorted list
A7: 6 | B7: 38 | D7: Percentile value | E7: =B14 -> 59 | G7: Step 3 | H7: If i is not an integer, round up to the next position, if it is an integer, average i and i + 1.
A8: 7 | B8: 39
A9: 8 | B9: 42 | D9: No function for this method | F9: textbook
A10: 9 | B10: 43 | F10: 1 | G10: Can use 0% and 100%
A11: 10 | B11: 45 | F11: 2 | G11: Position = n*p
A12: 11 | B12: 54
A13: 12 | B13: 54 | C13: 12th | E13: Below | F13: =COUNT(B2:B13)/COUNT(B2:B15) -> 0.8571428571
A14: 13 | B14: 59 | C14: 13th | E14: Above | F14: =COUNT(B15)/COUNT(B2:B15) -> 0.07142857143
A15: 14 | B15: 97 | E15: Total | F15: =SUM(F13:F14) -> 0.9285714286

Sheet PR
A1: No. | B1: CPA Scores
A2: 1 | B2: 7 | D2: PERCENTRANK.INC ==>> you give it the value and it will tell you the Percentile
A3: 2 | B3: 17
A4: 3 | B4: 26 | D4: Value | E4: 54
A5: 4 | B5: 27 | D5: Percentile | F5: PERCENTRANK.INC tells us the percentile
A6: 5 | B6: 30
A7: 6 | B7: 38 | D7: =IF(E5<>"","Approximately "&TEXT(E5,"0.00%")&" values below score of "&E4&" and "&TEXT(1-E5,"0.00%")&" values above.","") -> 
A8: 7 | B8: 39
A9: 8 | B9: 42
A10: 9 | B10: 43
A11: 10 | B11: 45
A12: 11 | B12: 54
A13: 12 | B13: 54
A14: 13 | B14: 59
A15: 14 | B15: 97

Sheet PR(an)
A1: No. | B1: CPA Scores
A2: 1 | B2: 7 | D2: PERCENTRANK.INC ==>> you give it the value and it will tell you the Percentile
A3: 2 | B3: 17
A4: 3 | B4: 26 | D4: Value | E4: 54
A5: 4 | B5: 27 | D5: Percentile | E5: =_xlfn.PERCENTRANK.INC(B2:B15,E4) -> 0.769 | F5: PERCENTRANK.INC tells us the percentile
A6: 5 | B6: 30
A7: 6 | B7: 38 | D7: =IF(E5<>"","Approximately "&TEXT(E5,"0.00%")&" values below score of "&E4&" and "&TEXT(1-E5,"0.00%")&" values above.","") -> Approximately 76.90% values below score of 54 and 23.10% values above.
A8: 7 | B8: 39
A9: 8 | B9: 42 | D9: Point | E9: Column1 | F9: Rank | G9: Percent
A10: 9 | B10: 43 | D10: 14 | E10: 97 | F10: 1 | G10: 1
A11: 10 | B11: 45 | D11: 13 | E11: 59 | F11: 2 | G11: 0.923
A12: 11 | B12: 54 | D12: 11 | E12: 54 | F12: 3 | G12: 0.769
A13: 12 | B13: 54 | D13: 12 | E13: 54 | F13: 3 | G13: 0.769
A14: 13 | B14: 59 | D14: 10 | E14: 45 | F14: 5 | G14: 0.692
A15: 14 | B15: 97 | D15: 9 | E15: 43 | F15: 6 | G15: 0.615
D16: 8 | E16: 42 | F16: 7 | G16: 0.538
D17: 7 | E17: 39 | F17: 8 | G17: 0.461
D18: 6 | E18: 38 | F18: 9 | G18: 0.384
D19: 5 | E19: 30 | F19: 10 | G19: 0.307
D20: 4 | E20: 27 | F20: 11 | G20: 0.23
D21: 3 | E21: 26 | F21: 12 | G21: 0.153
D22: 2 | E22: 17 | F22: 13 | G22: 0.076
D23: 1 | E23: 7 | F23: 14 | G23: 0

Sheet QUA.EXC
A1: No. | B1: CPA Scores | D1: For data sets without a lot of duplicates, The pth percentile of a data set is a value such that at least p percent (decimal) of the items are less than or equal to this value and at least (1 - p) percent of the items are greater than or equal to this value.
A2: 1 | B2: 7 | D2: ="Percentile:"&CHAR(10)&"We want to have a number from the sorted list that is the marking point that will say "&TEXT(E4,"0.0%")&" of the values are below the marking point, and "&TEXT(1-E4,"0.00%")&" of the values are above the marking point - a marking point that divided that data set into two parts. Percentile provides information about 'spread' and 'location'." -> Percentile: We want to have a number from the sorted list that is the marking point that will say 75.0% of the values are below the marking point, and 25.00% of the values are above the marking point - a marking point that divided that data set into two parts. Percentile provides information about 'spread' and 'location'.
A3: 2 | B3: 17
A4: 3 | B4: 26 | D4: Percentile % | E4: 0.75 | F4: 3
A5: 4 | B5: 27 | D5: Count = n = | E5: =COUNT(B2:B15) -> 14
A6: 5 | B6: 30 | D6: Position = (n+1)*p | E6: =(E5+1)*E4 -> 11.25 | H6: QUARTILE.EXC
A7: 6 | B7: 38 | D7: How far between? | E7: =E6-INT(E6) -> 0.25
A8: 7 | B8: 39 | D8: Distance between 2? | E8: =B13-B12 -> 0
A9: 8 | B9: 42 | D9: Amount to add to lower end | E9: =E8*E7 -> 0
A10: 9 | B10: 43 | D10: ="Marking Point = "&TEXT(E4,"0.00%")&" Percentile" -> Marking Point = 75.00% Percentile | E10: =B12+E9 -> 54 | F10: ="Approximately "&TEXT(E4,"0.00%")&" of the CPA scores are below the score of "&E10&" and "&TEXT(1-E4,"0.00%")&" and below the score of "&E10&"." -> Approximately 75.00% of the CPA scores are below the score of 54 and 25.00% and below the score of 54.
A11: 10 | B11: 45 | D11: ="Marking Point = "&TEXT(E4,"0.00%")&" Percentile" -> Marking Point = 75.00% Percentile | E11: =_xlfn.QUARTILE.EXC(B2:B15,F4) -> 54 | F11: QUARTILE.EXC
A12: 11 | B12: 54
A13: 12 | B13: 54 | F13: Below | G13: =COUNT(B2:B11)/COUNT(B2:B15) -> 0.7142857143
A14: 13 | B14: 59 | F14: Above | G14: =COUNT(B14:B15)/COUNT(B2:B15) -> 0.1428571429
A15: 14 | B15: 97

Sheet QUA.INC
A1: No. | B1: CPA Scores | D1: For data sets without a lot of duplicates, The pth percentile of a data set is a value such that at least p percent (decimal) of the items are less than or equal to this value and at least (1 - p) percent of the items are greater than or equal to this value.
A2: 1 | B2: 7 | D2: ="Percentile:"&CHAR(10)&"We want to have a number from the sorted list that is the marking point that will say "&TEXT(E4,"0.0%")&" of the values are below the marking point, and "&TEXT(1-E4,"0.00%")&" of the values are above the marking point - a marking point that divided that data set into two parts. Percentile provides information about 'spread' and 'location'." -> Percentile: We want to have a number from the sorted list that is the marking point that will say 75.0% of the values are below the marking point, and 25.00% of the values are above the marking point - a marking point that divided that data set into two parts. Percentile provides information about 'spread' and 'location'.
A3: 2 | B3: 17
A4: 3 | B4: 26 | D4: Percentile % | E4: 0.75 | F4: 3
A5: 4 | B5: 27 | D5: Count = n = | E5: =COUNT(B2:B15) -> 14
A6: 5 | B6: 30 | D6: Position = p*n+(1-p) | E6: =E4*E5+(1-E4) -> 10.75
A7: 6 | B7: 38 | D7: How far between? | E7: =E6-INT(E6) -> 0.75
A8: 7 | B8: 39 | D8: Distance between 2? | E8: =B12-B11 -> 9
A9: 8 | B9: 42 | D9: Amount to add to lower end | E9: =E8*E7 -> 6.75
A10: 9 | B10: 43 | D10: ="Marking Point = "&TEXT($E$4,"0.00%")&" Percentile" -> Marking Point = 75.00% Percentile | E10: =B11+E9 -> 51.75 | F10: ="Approximately "&TEXT(E4,"0.00%")&" of the CPA scores are below the score of "&E10&" and "&TEXT(1-E4,"0.00%")&" and below the score of "&E10&"." -> Approximately 75.00% of the CPA scores are below the score of 51.75 and 25.00% and below the score of 51.75.
A11: 10 | B11: 45 | D11: ="Marking Point = "&TEXT($E$4,"0.00%")&" Percentile" -> Marking Point = 75.00% Percentile | E11: =_xlfn.QUARTILE.INC(B2:B15,F4) -> 51.75 | F11: QUARTILE.INC
A12: 11 | B12: 54 | D12: Marking Point = 75.00% Percentile | E12: =QUARTILE(B2:B15,F4) -> 51.75
A13: 12 | B13: 54
A14: 13 | B14: 59
A15: 14 | B15: 97 | F15: Below | G15: =COUNT(B2:B11)/COUNT(B2:B15) -> 0.7142857143
F16: Above | G16: =COUNT(B12:B15)/COUNT(B2:B15) -> 0.2857142857

Sheet QUA.Textbook
A1: No. | B1: CPA Scores | D1: For data sets without a lot of duplicates, The pth percentile of a data set is a value such that at least p percent (decimal) of the items are less than or equal to this value and at least (1 - p) percent of the items are greater than or equal to this value.
A2: 1 | B2: 7 | D2: ="Percentile:"&CHAR(10)&"We want to have a number from the sorted list that is the marking point that will say "&TEXT(E4,"0.0%")&" of the values are below the marking point, and "&TEXT(1-E4,"0.00%")&" of the values are above the marking point - a marking point that divided that data set into two parts. Percentile provides information about 'spread' and 'location'." -> Percentile: We want to have a number from the sorted list that is the marking point that will say 75.0% of the values are below the marking point, and 25.00% of the values are above the marking point - a marking point that divided that data set into two parts. Percentile provides information about 'spread' and 'location'.
A3: 2 | B3: 17
A4: 3 | B4: 26 | D4: Percentile % | E4: 0.75 | G4: Textbook: Percentile tells you the value in the sorted list that is a "dividing line" or "marking point" and marks that point at which approximately p% values lie blow marking point and (1-p%) values lie above marking point. If there are many duplicates, the approximation may be off a bit.
A5: 4 | B5: 27 | D5: Count = n = | E5: =COUNT(B2:B15) -> 14 | G5: Step 1 | H5: Sort A to Z
A6: 5 | B6: 30 | D6: Position = n*p | E6: =E5*E4 -> 10.5 | G6: Step 2 | H6: Compute Index = i = p*n p = pth percentile as % (different than book) n = count of sample items i = tells you the position of the item in the sorted list
A7: 6 | B7: 38 | D7: Percentile value | E7: =B12 -> 54 | G7: Step 3 | H7: If i is not an integer, round up to the next position, if it is an integer, average i and i + 1.
A8: 7 | B8: 39
A9: 8 | B9: 42 | D9: No function for this method
A10: 9 | B10: 43
A11: 10 | B11: 45
A12: 11 | B12: 54
A13: 12 | B13: 54 | C13: 12th | E13: Below | F13: =COUNT(B2:B11)/COUNT(B2:B15) -> 0.7142857143
A14: 13 | B14: 59 | C14: 13th | E14: Above | F14: =COUNT(B14:B15)/COUNT(B2:B15) -> 0.1428571429
A15: 14 | B15: 97

Sheet Quartile
C1: Quartile divides data set in 4 parts with 3 markers
C2: Percentile divided data set in 2 with 1 marker
A3: CPA Scores | C3: % | D3: Quartile | E3: QUARTILE.EXC | F3: QUARTILE.INC | H3: PERCENTILE.EXC | I3: PERCENTILE.INC
A4: 7 | C4: 0 | D4: 0 | H4: =_xlfn.PERCENTILE.EXC($A$4:$A$17,C4) ->  | I4: =_xlfn.PERCENTILE.INC($A$4:$A$17,C4) -> 7
A5: 17 | C5: 0.25 | D5: 1 | H5: =_xlfn.PERCENTILE.EXC($A$4:$A$17,C5) -> 26.75 | I5: =_xlfn.PERCENTILE.INC($A$4:$A$17,C5) -> 27.75
A6: 26 | C6: 0.5 | D6: 2 | H6: =_xlfn.PERCENTILE.EXC($A$4:$A$17,C6) -> 40.5 | I6: =_xlfn.PERCENTILE.INC($A$4:$A$17,C6) -> 40.5
A7: 27 | C7: 0.75 | D7: 3 | H7: =_xlfn.PERCENTILE.EXC($A$4:$A$17,C7) -> 54 | I7: =_xlfn.PERCENTILE.INC($A$4:$A$17,C7) -> 51.75
A8: 30 | C8: 1 | D8: 4 | H8: =_xlfn.PERCENTILE.EXC($A$4:$A$17,C8) ->  | I8: =_xlfn.PERCENTILE.INC($A$4:$A$17,C8) -> 97
A9: 38
A10: 39 | D10: 0 = MIN
A11: 42 | D11: 1 = 1st Quartile
A12: 43 | D12: 2 = 2nd Quartile
A13: 45 | D13: 3 = 3rd Quartile
A14: 54 | D14: 4 = MAX
A15: 54
A16: 59
A17: 97

Sheet Quartile (an)
C1: Quartile divides data set in 4 parts with 3 markers
C2: Percentile divided data set in 2 with 1 marker
A3: CPA Scores | C3: % | D3: Quartile | E3: QUARTILE.EXC | F3: QUARTILE.INC | H3: PERCENTILE.EXC | I3: PERCENTILE.INC
A4: 7 | C4: 0 | D4: 0 | E4: =_xlfn.QUARTILE.EXC($A$4:$A$17,D4) ->  | F4: =_xlfn.QUARTILE.INC($A$4:$A$17,D4) -> 7 | H4: =_xlfn.PERCENTILE.EXC($A$4:$A$17,C4) ->  | I4: =_xlfn.PERCENTILE.INC($A$4:$A$17,C4) -> 7
A5: 17 | C5: 0.25 | D5: 1 | E5: =_xlfn.QUARTILE.EXC($A$4:$A$17,D5) -> 26.75 | F5: =_xlfn.QUARTILE.INC($A$4:$A$17,D5) -> 27.75 | H5: =_xlfn.PERCENTILE.EXC($A$4:$A$17,C5) -> 26.75 | I5: =_xlfn.PERCENTILE.INC($A$4:$A$17,C5) -> 27.75
A6: 26 | C6: 0.5 | D6: 2 | E6: 40.5 | F6: 40.5 | H6: =_xlfn.PERCENTILE.EXC($A$4:$A$17,C6) -> 40.5 | I6: =_xlfn.PERCENTILE.INC($A$4:$A$17,C6) -> 40.5
A7: 27 | C7: 0.75 | D7: 3 | E7: 54 | F7: 51.75 | H7: =_xlfn.PERCENTILE.EXC($A$4:$A$17,C7) -> 54 | I7: =_xlfn.PERCENTILE.INC($A$4:$A$17,C7) -> 51.75
A8: 30 | C8: 1 | D8: 4 | F8: 97 | H8: =_xlfn.PERCENTILE.EXC($A$4:$A$17,C8) ->  | I8: =_xlfn.PERCENTILE.INC($A$4:$A$17,C8) -> 97
A9: 38
A10: 39 | D10: 0 = MIN
A11: 42 | D11: 1 = 1st Quartile
A12: 43 | D12: 2 = 2nd Quartile
A13: 45 | D13: 3 = 3rd Quartile
A14: 54 | D14: 4 = MAX
A15: 54
A16: 59
A17: 97

Sheet LargeDataSet
A1: Entrance Exam Scores | C1: Function | D1: % | E1: Result
A2: 32 | C2: PERCENTILE.EXC | D2: 0.75
A3: 43 | C3: PERCENTILE.INC | D3: 0.75
A4: 86 | C4: QUARTILE.EXC | D4: 3
A5: 63 | C5: QUARTILE.INC | D5: 3
A6: 36 | C6: PERCENTRANK.EXC | D6: 74
A7: 36 | C7: PERCENTRANK.INC | D7: 74
A8: 52
A9: 88
A10: 51
A11: 89
A12: 44
A13: 39
A14: 10
A15: 74
A16: 82
A17: 20
A18: 14
A19: 43
A20: 10
A21: 41
A22: 44
A23: 86
A24: 89
A25: 78
A26: 30
A27: 8
A28: 13
A29: 4
A30: 38
A31: 83
A32: 70
A33: 37
A34: 69
A35: 86
A36: 63
A37: 23
A38: 20
A39: 23
A40: 61
A41: 60
A42: 93
A43: 75
A44: 29
A45: 11
A46: 29
A47: 2
A48: 25
A49: 94
A50: 73
A51: 56
A52: 6
A53: 33
A54: 27
A55: 64
A56: 5
A57: 72
A58: 87
A59: 2
A60: 33
A61: 48
A62: 12
A63: 57
A64: 42
A65: 41
A66: 89
A67: 63
A68: 26
A69: 78
A70: 86
A71: 60
A72: 34
A73: 7
A74: 39
A75: 10
A76: 94
A77: 47
A78: 71
A79: 29
A80: 16
A81: 72
A82: 45
A83: 1
A84: 10
A85: 81
A86: 51
A87: 78
A88: 20
A89: 32
A90: 60
A91: 82
A92: 64
A93: 77
A94: 68
A95: 43
A96: 8
A97: 83
A98: 15
A99: 79
A100: 65
A101: 74
A102: 2
A103: 78
A104: 3
A105: 76

Sheet LargeDataSet (an)
A1: Entrance Exam Scores | C1: Function | D1: % | E1: Result
A2: 32 | C2: PERCENTILE.EXC | D2: 0.75 | E2: =_xlfn.PERCENTILE.EXC($A$2:$A$105,D2) -> 74
A3: 43 | C3: PERCENTILE.INC | D3: 0.75 | E3: =_xlfn.PERCENTILE.INC($A$2:$A$105,D3) -> 74
A4: 86 | C4: QUARTILE.EXC | D4: 3 | E4: =_xlfn.QUARTILE.EXC($A$2:$A$105,D4) -> 74
A5: 63 | C5: QUARTILE.INC | D5: 3 | E5: =_xlfn.QUARTILE.INC($A$2:$A$105,D5) -> 74
A6: 36 | C6: PERCENTRANK.EXC | D6: 74 | E6: =_xlfn.PERCENTRANK.EXC($A$2:$A$105,D6) -> 0.742
A7: 36 | C7: PERCENTRANK.INC | D7: 74 | E7: =_xlfn.PERCENTRANK.INC(A2:A105,D7) -> 0.747
A8: 52
A9: 88
A10: 51
A11: 89
A12: 44
A13: 39
A14: 10
A15: 74
A16: 82
A17: 20
A18: 14
A19: 43
A20: 10
A21: 41
A22: 44
A23: 86
A24: 89
A25: 78
A26: 30
A27: 8
A28: 13
A29: 4
A30: 38
A31: 83
A32: 70
A33: 37
A34: 69
A35: 86
A36: 63
A37: 23
A38: 20
A39: 23
A40: 61
A41: 60
A42: 93
A43: 75
A44: 29
A45: 11
A46: 29
A47: 2
A48: 25
A49: 94
A50: 73
A51: 56
A52: 6
A53: 33
A54: 27
A55: 64
A56: 5
A57: 72
A58: 87
A59: 2
A60: 33
A61: 48
A62: 12
A63: 57
A64: 42
A65: 41
A66: 89
A67: 63
A68: 26
A69: 78
A70: 86
A71: 60
A72: 34
A73: 7
A74: 39
A75: 10
A76: 94
A77: 47
A78: 71
A79: 29
A80: 16
A81: 72
A82: 45
A83: 1
A84: 10
A85: 81
A86: 51
A87: 78
A88: 20
A89: 32
A90: 60
A91: 82
A92: 64
A93: 77
A94: 68
A95: 43
A96: 8
A97: 83
A98: 15
A99: 79
A100: 65
A101: 74
A102: 2
A103: 78
A104: 3
A105: 76

Sheet Rank
A1: Sales Reps | B1: Sales | C1: RANK.EQ | D1: Percentile Rank | F1: RANK.AVE
A2: Sioux | B2: 57635
A3: Chris | B3: 77866
A4: Sue | B4: 72926
A5: Phil | B5: 61073
A6: Herb | B6: 76079
A7: Tina | B7: 76363
A8: Luong | B8: 72097
A9: Fred | B9: 56871
A10: Chin | B10: 74487
A11: Choi | B11: =B10 -> 74487
A13: RANK.EQ deals with ties as equal, RANK.AVE deals with ties by averaging th epositional values; ex: (4+5)/2 = 4.5
A14: RANK.EQ or RANK.AVE function: ref is all the values, number is the particular value to rank, 0 = big to small (order)
A15: Screen shot of Rank & Percentile Excel tool:

Sheet Rank (an)
A1: Sales Reps | B1: Sales | C1: RANK.EQ | D1: Percentile Rank | F1: RANK.AVE
A2: Sioux | B2: 57635 | C2: =_xlfn.RANK.EQ(B2,$B$2:$B$11,0) -> 9 | D2: =_xlfn.PERCENTRANK.INC($B$2:$B$11,B2) -> 0.111 | F2: =_xlfn.RANK.AVG(B2,$B$2:$B$11,0) -> 9
A3: Chris | B3: 77866 | C3: =_xlfn.RANK.EQ(B3,$B$2:$B$11,0) -> 1 | D3: =_xlfn.PERCENTRANK.INC($B$2:$B$11,B3) -> 1 | F3: =_xlfn.RANK.AVG(B3,$B$2:$B$11,0) -> 1
A4: Sue | B4: 72926 | C4: 6 | D4: 0.444 | F4: 6
A5: Phil | B5: 61073 | C5: 8 | D5: 0.222 | F5: 8
A6: Herb | B6: 76079 | C6: 3 | D6: 0.777 | F6: 3
A7: Tina | B7: 76363 | C7: 2 | D7: 0.888 | F7: 2
A8: Luong | B8: 72097 | C8: 7 | D8: 0.333 | F8: 7
A9: Fred | B9: 56871 | C9: 10 | D9: 0 | F9: 10
A10: Chin | B10: 74487 | C10: 4 | D10: 0.555 | F10: 4.5
A11: Choi | B11: =B10 -> 74487 | C11: 4 | D11: 0.555 | F11: 4.5
A13: RANK.EQ deals with ties as equal, RANK.AVE deals with ties by averaging th epositional values; ex: (4+5)/2 = 4.5
A14: RANK.EQ or RANK.AVE function: ref is all the values, number is the particular value to rank, 0 = big to small (order)
A15: Screen shot of Rank & Percentile Excel tool:

Sheet BP(1)
A1: Sample Data | C1: by hand | E1: position | F1: Proportion
A2: 15 | C2: MIN | D2: =MIN(A2:A9) -> 15
A3: 20 | C3: Quartile1 | D3: =AVERAGE(A3:A4) -> 22.5 | E3: =COUNT($A$2:$A$9)*F3 -> 2 | F3: 0.25
A4: 25 | C4: Quartile2 | D4: =MEDIAN(A2:A9) -> 26
A5: 25 | C5: Quartile3 | D5: =AVERAGE(A7:A8) -> 29 | E5: =COUNT($A$2:$A$9)*F5 -> 6 | F5: 0.75
A6: 27 | C6: MAX | D6: =MAX(A2:A9) -> 34
A7: 28 | C7: Interquartile Range | D7: =D5-D3 -> 6.5
A8: 30 | C8: Lower Limit | D8: =D3-1.5*D7 -> 12.75 | E8: Quartile 1 - 1.5*Interquartile Range
A9: 34 | C9: Higher Limit | D9: =D5+1.5*D7 -> 38.75 | E9: Quartile 3 + 1.5*Interquartile Range
C10: Smallest inside lower limit
C11: Biggest inside lower limit
C15: =C2 -> MIN | D15: =D2-D1 -> 15
C16: =C3 -> Quartile1 | D16: =D3-D2 -> 7.5 | E16: Neg Error Bar
C17: =C4 -> Quartile2 | D17: =D4-D3 -> 3.5
C18: =C5 -> Quartile3 | D18: =D5-D4 -> 3
C19: =C6 -> MAX | D19: =D6-D5 -> 5 | E19: Pos Error Bar
C20: Mean
C21: =AVERAGE(A2:A9) -> 25.5 | D21: 1
C29: =C2&" = "&D2&CHAR(10)&C3&" = "&D3&CHAR(10)&C4&" = "&D4&CHAR(10)&C5&" = "&D5&CHAR(10)&C6&" = "&D6&CHAR(10)&C20&" = "&C21 -> MIN = 15 Quartile1 = 22.5 Quartile2 = 26 Quartile3 = 29 MAX = 34 Mean = 25.5
B31: Excel Box Plot Notes:
B32: 1 | C32: Calculate 5 number summary
B33: 2 | C33: Calculate the difference between each of the values: 1) Min - 0, 2) Q1 - MIN, 3) Q2 - Q1, 4) Q3 - Q3, 5) Max - Q3
B34: 3 | C34: Create Stacked Bar Chart
B35: 4 | C35: Switch Row and Column
B36: 5 | C36: Add fill = "No Fill" to 1st two parts of bar and last
B37: 6 | C37: Add Error Bar to 2nd part of bar with Minus / Custom / Negative = Quartile 1 - MIN
B38: 7 | C38: Add Error Bar to 4th part of bar with Plus / Custom / Positive = Max - Q3
B39: 8 | C39: Calculate Mean
B40: 9 | C40: Add Mean to Chart
B41: 10 | C41: Change that data point to X - Y Scatter
B42: 11 | C42: Edit Source data for X - Y Scatter and change X to Mean Value and Y to 1.
B49: or
B59: 6 | C59: Add Error Bar 2nd part of bar as negative 100%
B60: 7 | C60: Add Error bar to 4th part with Positive Custom = Max - Q3

Sheet BP(1an)
A1: Sample Data | C1: by hand | E1: position | F1: Proportion
A2: 15 | C2: MIN | D2: =MIN(A2:A9) -> 15
A3: 20 | C3: Quartile1 | D3: =AVERAGE(A3:A4) -> 22.5 | E3: =COUNT($A$2:$A$9)*F3 -> 2 | F3: 0.25
A4: 25 | C4: Quartile2 | D4: =MEDIAN(A2:A9) -> 26
A5: 25 | C5: Quartile3 | D5: =AVERAGE(A7:A8) -> 29 | E5: =COUNT($A$2:$A$9)*F5 -> 6 | F5: 0.75
A6: 27 | C6: MAX | D6: =MAX(A2:A9) -> 34
A7: 28 | C7: Interquartile Range | D7: =D5-D3 -> 6.5
A8: 30 | C8: Lower Limit | D8: =D3-1.5*D7 -> 12.75 | E8: Quartile 1 - 1.5*Interquartile Range
A9: 34 | C9: Higher Limit | D9: =D5+1.5*D7 -> 38.75 | E9: Quartile 3 + 1.5*Interquartile Range
C10: Smallest inside lower limit
C11: Biggest inside lower limit
C15: =C2 -> MIN | D15: =D2-D1 -> 15
C16: =C3 -> Quartile1 | D16: =D3-D2 -> 7.5 | E16: Neg Error Bar
C17: =C4 -> Quartile2 | D17: =D4-D3 -> 3.5
C18: =C5 -> Quartile3 | D18: =D5-D4 -> 3
C19: =C6 -> MAX | D19: =D6-D5 -> 5 | E19: Pos Error Bar
C20: Mean
C21: =AVERAGE(A2:A9) -> 25.5 | D21: 1
C29: =C2&" = "&D2&CHAR(10)&C3&" = "&D3&CHAR(10)&C4&" = "&D4&CHAR(10)&C5&" = "&D5&CHAR(10)&C6&" = "&D6&CHAR(10)&C20&" = "&C21 -> MIN = 15 Quartile1 = 22.5 Quartile2 = 26 Quartile3 = 29 MAX = 34 Mean = 25.5
B31: Excel Box Plot Notes:
B32: 1 | C32: Calculate 5 number summary
B33: 2 | C33: Calculate the difference between each of the values: 1) Min - 0, 2) Q1 - MIN, 3) Q2 - Q1, 4) Q3 - Q3, 5) Max - Q3
B34: 3 | C34: Create Stacked Bar Chart
B35: 4 | C35: Switch Row and Column
B36: 5 | C36: Add fill = "No Fill" to 1st two parts of bar and last
B37: 6 | C37: Add Error Bar to 2nd part of bar with Minus / Custom / Negative = Quartile 1 - MIN
B38: 7 | C38: Add Error Bar to 4th part of bar with Plus / Custom / Positive = Max - Q3
B39: 8 | C39: Calculate Mean
B40: 9 | C40: Add Mean to Chart
B41: 10 | C41: Change that data point to X - Y Scatter
B42: 11 | C42: Edit Source data for X - Y Scatter and change X to Mean Value and Y to 1.
B49: or
B59: 6 | C59: Add Error Bar 2nd part of bar as negative 100%
B60: 7 | C60: Add Error bar to 4th part with Positive Custom = Max - Q3

Sheet BP(2)
A1: Test Scores | I1: Lower Limit | J1: Y | L1: Upper Limit | M1: Y
A2: 94 | C2: 0 | D2: MIN | I2: =$E$8 -> 0 | J2: 0 | L2: =$E$9 -> 0 | M2: 0
A3: 55 | C3: 1 | D3: Quartile 1 | I3: 0 | J3: 1 | L3: 0 | M3: 1
A4: 72 | C4: 2 | D4: Quartile 2
A5: 96 | C5: 3 | D5: Quartile 3
A6: 74 | C6: 4 | D6: Max
A7: 75 | D7: Interquartile Range | F7: middle 50% of values
A8: 28 | D8: Lower Limit | F8: Quartile 1 - 1.5*Interquartile Range
A9: 40 | D9: Upper Limit | F9: Quartile 3 + 1.5*Interquartile Range
A10: 78 | D10: Mean | F10: 1
A11: 65
A12: 67
A13: 54 | D13: differences
A14: 95 | E14: Scores
A15: 82 | D15: =D2 -> MIN
A16: 23 | D16: =D3 -> Quartile 1
A17: 70 | D17: =D4 -> Quartile 2
A18: 82 | D18: =D5 -> Quartile 3
A19: 34 | D19: =D6 -> Max
A20: 49
A21: 80 | D21: Excel Box Plot Notes:
D22: 1 | E22: Calculate 5 number summary
D23: 2 | E23: Calculate the difference between each of the values: 1) Min - 0, 2) Q1 - MIN, 3) Q2 - Q1, 4) Q3 - Q3, 5) Max - Q3
D24: 3 | E24: Create Stacked Bar Chart
D25: 4 | E25: Switch Row and Column
D26: 5 | E26: Add fill = "No Fill" to 1st two parts of bar and last
D27: 6 | E27: Add Error Bar to 2nd part of bar with Minus / Custom / Negative = Quartile 1 - MIN
D28: 7 | E28: Add Error Bar to 4th part of bar with Plus / Custom / Positive = Max - Q3
D29: 8 | E29: Calculate Mean
D30: 9 | E30: Add Mean to Chart
D31: 10 | E31: Change that data point to X - Y Scatter
D32: 11 | E32: Edit Source data for X - Y Scatter and change X to Mean Value and Y to 1.
D33: 12 | E33: Add Lower Limit and Upper Limit as X-Y Scatter Line.

Sheet BP(2an)
A1: Test Scores | I1: Lower Limit | J1: Y | L1: Upper Limit | M1: Y
A2: 94 | C2: 0 | D2: MIN | E2: =_xlfn.QUARTILE.INC($A$2:$A$21,C2) -> 23 | I2: =$E$8 -> 11.125 | J2: 0 | L2: =$E$9 -> 122.125 | M2: 0
A3: 55 | C3: 1 | D3: Quartile 1 | E3: =_xlfn.QUARTILE.INC($A$2:$A$21,C3) -> 52.75 | I3: 11.125 | J3: 1 | L3: 122.125 | M3: 1
A4: 72 | C4: 2 | D4: Quartile 2 | E4: 71
A5: 96 | C5: 3 | D5: Quartile 3 | E5: 80.5
A6: 74 | C6: 4 | D6: Max | E6: 96
A7: 75 | D7: Interquartile Range | E7: =E5-E3 -> 27.75 | F7: middle 50% of values
A8: 28 | D8: Lower Limit | E8: =E3-E7*1.5 -> 11.125 | F8: Quartile 1 - 1.5*Interquartile Range
A9: 40 | D9: Upper Limit | E9: =E5+E7*1.5 -> 122.125 | F9: Quartile 3 + 1.5*Interquartile Range
A10: 78 | D10: Mean | E10: =AVERAGE(A2:A21) -> 65.65 | F10: 1
A11: 65
A12: 67
A13: 54 | D13: differences
A14: 95 | E14: Scores
A15: 82 | D15: =D2 -> MIN | E15: =E2-E1 -> 23
A16: 23 | D16: =D3 -> Quartile 1 | E16: =E3-E2 -> 29.75
A17: 70 | D17: =D4 -> Quartile 2 | E17: 18.25
A18: 82 | D18: =D5 -> Quartile 3 | E18: 9.5
A19: 34 | D19: =D6 -> Max | E19: 15.5
A20: 49
A21: 80 | D21: Excel Box Plot Notes:
D22: 1 | E22: Calculate 5 number summary
D23: 2 | E23: Calculate the difference between each of the values: 1) Min - 0, 2) Q1 - MIN, 3) Q2 - Q1, 4) Q3 - Q3, 5) Max - Q3
D24: 3 | E24: Create Stacked Bar Chart
D25: 4 | E25: Switch Row and Column
D26: 5 | E26: Add fill = "No Fill" to 1st two parts of bar and last
D27: 6 | E27: Add Error Bar to 2nd part of bar with Minus / Custom / Negative = Quartile 1 - MIN
D28: 7 | E28: Add Error Bar to 4th part of bar with Plus / Custom / Positive = Max - Q3
D29: 8 | E29: Calculate Mean
D30: 9 | E30: Add Mean to Chart
D31: 10 | E31: Change that data point to X - Y Scatter
D32: 11 | E32: Edit Source data for X - Y Scatter and change X to Mean Value and Y to 1.
D33: 12 | E33: Add Lower Limit and Upper Limit as X-Y Scatter Line.

Sheet BP(3)
A1: Differences to Determine Bar Lengths
B2: CPA Scores 1 | C2: CPA Scores 2 | D2: CPA Scores 3 | E2: CPA Scores 4 | F2: CPA Scores 5
A3: Min
A4: Q1 | G4: Neg. Errors Bar
A5: Q2
A6: Q3
A7: Max | G7: Pos. Errors Bar
A9: Min | G9: 0
A10: Q1 | G10: 1
A11: Q2 | G11: 2
A12: Q3 | G12: 3
A13: Max | G13: 4
B15: CPA Scores 1 | C15: CPA Scores 2 | D15: CPA Scores 3 | E15: CPA Scores 4 | F15: CPA Scores 5
B16: =CHOOSE(RANDBETWEEN(1,5),RANDBETWEEN(RANDBETWEEN(0,50),RANDBETWEEN(51,100)),RANDBETWEEN(RANDBETWEEN(30,50),RANDBETWEEN(51,70)),RANDBETWEEN(RANDBETWEEN(40,50),RANDBETWEEN(51,60)),RANDBETWEEN(RANDBETWEEN(30,70),RANDBETWEEN(71,85)),RANDBETWEEN(RANDBETWEEN(0,25),RANDBETWEEN(26,85))) -> 57 | C16: =CHOOSE(RANDBETWEEN(1,5),RANDBETWEEN(RANDBETWEEN(0,50),RANDBETWEEN(51,100)),RANDBETWEEN(RANDBETWEEN(30,50),RANDBETWEEN(51,70)),RANDBETWEEN(RANDBETWEEN(40,50),RANDBETWEEN(51,60)),RANDBETWEEN(RANDBETWEEN(30,70),RANDBETWEEN(71,85)),RANDBETWEEN(RANDBETWEEN(0,25),RANDBETWEEN(26,85))) -> 68 | D16: 63 | E16: 51 | F16: 77
B17: =CHOOSE(RANDBETWEEN(1,5),RANDBETWEEN(RANDBETWEEN(0,50),RANDBETWEEN(51,100)),RANDBETWEEN(RANDBETWEEN(30,50),RANDBETWEEN(51,70)),RANDBETWEEN(RANDBETWEEN(40,50),RANDBETWEEN(51,60)),RANDBETWEEN(RANDBETWEEN(30,70),RANDBETWEEN(71,85)),RANDBETWEEN(RANDBETWEEN(0,25),RANDBETWEEN(26,85))) -> 50 | C17: 55 | D17: 29 | E17: 47 | F17: 61
B18: 51 | C18: 2 | D18: 34 | E18: 8 | F18: 52
B19: 50 | C19: 63 | D19: 34 | E19: 56 | F19: 70
B20: 52 | C20: 61 | D20: 18 | E20: 30 | F20: 43
B21: 65 | C21: 60 | D21: 48 | E21: 49 | F21: 45
B22: 52 | C22: 40 | D22: 57 | E22: 45 | F22: 64
B23: 25 | C23: 65 | D23: 45 | E23: 75 | F23: 53
B24: 33 | C24: 49 | D24: 58 | E24: 38 | F24: 25
B25: 43 | C25: 70 | D25: 17 | E25: 49 | F25: 48
B26: 59 | C26: 51 | D26: 50 | E26: 51 | F26: 55
B27: 49 | C27: 23 | D27: 50 | E27: 48 | F27: 58
B28: 62 | C28: 52 | D28: 48 | E28: 70 | F28: 56
B29: 59 | C29: 42 | D29: 61 | E29: 57 | F29: 67
B30: 50 | C30: 70 | D30: 61 | E30: 54 | F30: 47
B31: 30 | C31: 19 | D31: 46 | E31: 34 | F31: 45
B32: 40 | C32: 51 | D32: 55 | E32: 56 | F32: 49
B33: 22 | C33: 8 | D33: 16 | E33: 23 | F33: 18
B34: 62 | C34: 50 | D34: 48 | E34: 82 | F34: 55
B35: 24 | C35: 18 | D35: 75 | E35: 47 | F35: 52
B36: 51 | C36: 53 | D36: 72 | E36: 53 | F36: 48
B37: 79 | C37: 29 | D37: 27 | E37: 51 | F37: 48
B38: 61 | C38: 49 | D38: 43 | E38: 41 | F38: 51
B39: 70 | C39: 46 | D39: 68 | E39: 60 | F39: 24
B40: 19 | C40: 54 | D40: 74 | E40: 30 | F40: 49
B41: 70 | C41: 59 | D41: 39 | E41: 52 | F41: 51
B42: 62 | C42: 51 | D42: 75 | E42: 66 | F42: 44
B43: 48 | C43: 16 | D43: 51 | E43: 32 | F43: 58
B44: 47 | C44: 35 | D44: 54 | E44: 25 | F44: 53
B45: 45 | C45: 44 | D45: 43 | E45: 52 | F45: 51
B46: 53 | C46: 69 | D46: 71 | E46: 49 | F46: 45
B47: 47 | C47: 56 | D47: 49 | E47: 66 | F47: 59
B48: 36 | C48: 61 | D48: 9 | E48: 60 | F48: 50
B49: 58 | C49: 44 | D49: 43 | E49: 49 | F49: 43
B50: 60 | C50: 39 | D50: 29 | E50: 52 | F50: 42
B51: 53 | C51: 45 | D51: 52 | E51: 40 | F51: 53
B52: 52 | C52: 26 | D52: 45 | E52: 42 | F52: 64
B53: 48 | C53: 44 | D53: 36 | E53: 72 | F53: 43
B54: 50 | C54: 27 | D54: 55 | E54: 71 | F54: 46
B55: 53 | C55: 50 | D55: 69 | E55: 45 | F55: 37
B56: 37 | C56: 6 | D56: 35 | E56: 48 | F56: 80
B57: 4 | C57: 56 | D57: 72 | E57: 56 | F57: 56
B58: 17 | C58: 83 | D58: 79 | E58: 74 | F58: 55
B59: 59 | C59: 48 | D59: 50 | E59: 48 | F59: 75
B60: 71 | C60: 55 | D60: 66 | E60: 58 | F60: 63
B61: 52 | C61: 57 | D61: 45 | E61: 80 | F61: 53
B62: 83 | C62: 47 | D62: 60 | E62: 29 | F62: 45
B63: 64 | C63: 51 | D63: 5 | E63: 49 | F63: 23
B64: 46 | C64: 19 | D64: 32 | E64: 55 | F64: 73
B65: 22 | C65: 72 | D65: 49 | E65: 46 | F65: 32
B66: 54 | C66: 67 | D66: 49 | E66: 54 | F66: 47
B67: 34 | C67: 47 | D67: 39 | E67: 68 | F67: 46
B68: 12 | C68: 40 | D68: 65 | E68: 35 | F68: 59
B69: 53 | C69: 56 | D69: 34 | E69: 56 | F69: 48
B70: 46 | C70: 68 | D70: 50 | E70: 50 | F70: 70
B71: 50 | C71: 46 | D71: 54 | E71: 51 | F71: 48
B72: 48 | C72: 40 | D72: 49 | E72: 45 | F72: 67
B73: 41 | C73: 75 | D73: 51 | E73: 52 | F73: 65
B74: 72 | C74: 44 | D74: 59 | E74: 44 | F74: 30
B75: 69 | C75: 33 | D75: 45 | E75: 26 | F75: 41
B76: 32 | C76: 69 | D76: 24 | E76: 34 | F76: 14
B77: 64 | C77: 99 | D77: 48 | E77: 50 | F77: 54
B78: 71 | C78: 11 | D78: 49 | E78: 76 | F78: 71
B79: 42 | C79: 56 | D79: 62 | E79: 68 | F79: 58
B80: =CHOOSE(RANDBETWEEN(1,5),RANDBETWEEN(RANDBETWEEN(0,50),RANDBETWEEN(51,100)),RANDBETWEEN(RANDBETWEEN(30,50),RANDBETWEEN(51,70)),RANDBETWEEN(RANDBETWEEN(40,50),RANDBETWEEN(51,60)),RANDBETWEEN(RANDBETWEEN(30,70),RANDBETWEEN(71,85)),RANDBETWEEN(RANDBETWEEN(0,25),RANDBETWEEN(26,85))) -> 43 | C80: 33 | D80: 40 | E80: 43 | F80: 39
B81: 67 | C81: 72 | D81: 40 | E81: 29 | F81: 50
B82: 49 | C82: 55 | D82: 47 | E82: 46 | F82: 52
B83: 48 | C83: 41 | D83: 51 | E83: 55 | F83: 68
B84: 77 | C84: 50 | D84: 53 | E84: 59 | F84: 64
B85: 22 | C85: 49 | D85: 18 | E85: 60 | F85: 58
B86: 47 | C86: 55 | D86: 80 | E86: 37 | F86: 48
B87: 54 | C87: 72 | D87: 45 | E87: 51 | F87: 58
B88: 45 | C88: 60 | D88: 37 | E88: 55 | F88: 52
B89: 55 | C89: 52 | D89: 13 | E89: 64 | F89: 51
B90: 43 | C90: 37 | D90: 50 | E90: 54 | F90: 26
B91: 28 | C91: 79 | D91: 58 | E91: 67 | F91: 37
B92: 61 | C92: 43 | D92: 42 | E92: 54 | F92: 55
B93: 46 | C93: 49 | D93: 55 | E93: 51 | F93: 51
B94: 63 | C94: 70 | D94: 48 | E94: 46 | F94: 55
B95: 36 | C95: 47 | D95: 51 | E95: 52 | F95: 60
B96: 54 | C96: 44 | D96: 19 | E96: 28 | F96: 45
B97: 62 | C97: 41 | D97: 49 | E97: 26 | F97: 57
B98: 49 | C98: 41 | D98: 62 | E98: 14 | F98: 27
B99: 26 | C99: 55 | D99: 49 | E99: 51 | F99: 36
B100: 56 | C100: 1 | D100: 53 | E100: 47 | F100: 47
B101: 82 | C101: 63 | D101: 18 | E101: 56 | F101: 28
B102: 65 | C102: 48 | D102: 51 | E102: 75 | F102: 69
B103: 59 | C103: 67 | D103: 14 | E103: 56 | F103: 52
B104: 68 | C104: 44 | D104: 33 | E104: 49 | F104: 36
B105: 33 | C105: 19 | D105: 78 | E105: 61 | F105: 59
B106: 28 | C106: 52 | D106: 38 | E106: 50 | F106: 47
B107: 41 | C107: 7 | D107: 49 | E107: 22 | F107: 46
B108: 59 | C108: 58 | D108: 52 | E108: 63 | F108: 32
B109: 84 | C109: 53 | D109: 52 | E109: 12 | F109: 58
B110: 58 | C110: 51 | D110: 67 | E110: 22 | F110: 25
B111: 66 | C111: 37 | D111: 39 | E111: 27 | F111: 34
B112: 74 | C112: 52 | D112: 27 | E112: 45 | F112: 28
B113: 36 | C113: 53 | D113: 57 | E113: 74 | F113: 45
B114: 79 | C114: 41 | D114: 60 | E114: 50 | F114: 51
B115: 28 | C115: 66 | D115: 75 | E115: 78 | F115: 39
B116: 50 | C116: 41 | D116: 17 | E116: 49 | F116: 40
B117: 59 | C117: 56 | D117: 51 | E117: 52 | F117: 85
B118: 49 | C118: 30 | D118: 90 | E118: 18 | F118: 41
B119: 27 | C119: 24 | D119: 14 | E119: 63 | F119: 22
B120: 57 | C120: 32 | D120: 79 | E120: 18 | F120: 68
B121: 69 | C121: 37 | D121: 53 | E121: 69 | F121: 53
B122: 37 | C122: 55 | D122: 49 | E122: 44 | F122: 41
B123: 53 | C123: 42 | D123: 54 | E123: 22 | F123: 28
B124: 31 | C124: 42 | D124: 51 | E124: 47 | F124: 76
B125: 68 | C125: 47 | D125: 76 | E125: 64 | F125: 56
B126: 5 | C126: 24 | D126: 72 | E126: 35 | F126: 38
B127: 45 | C127: 57 | D127: 64 | E127: 64 | F127: 56
B128: 53 | C128: 44 | D128: 51 | E128: 72 | F128: 49
B129: 53 | C129: 50 | D129: 54 | E129: 12 | F129: 52
B130: 32 | C130: 27 | D130: 54 | E130: 44 | F130: 58
B131: =CHOOSE(RANDBETWEEN(1,5),RANDBETWEEN(RANDBETWEEN(0,50),RANDBETWEEN(51,100)),RANDBETWEEN(RANDBETWEEN(30,50),RANDBETWEEN(51,70)),RANDBETWEEN(RANDBETWEEN(40,50),RANDBETWEEN(51,60)),RANDBETWEEN(RANDBETWEEN(30,70),RANDBETWEEN(71,85)),RANDBETWEEN(RANDBETWEEN(0,25),RANDBETWEEN(26,85))) -> 51 | C131: 69 | D131: 51 | E131: 48 | F131: 49
B132: 52 | C132: 67 | D132: 45 | E132: 53 | F132: 52
B133: 45 | C133: 46 | D133: 46 | E133: 70 | F133: 55
B134: 45 | C134: 66 | D134: 80 | E134: 63 | F134: 51
B135: 35 | C135: 23 | D135: 56 | E135: 49 | F135: 54
B136: 49 | C136: 53 | D136: 43 | E136: 49 | F136: 31
B137: 39 | C137: 36 | D137: 54 | E137: 40 | F137: 40
B138: 67 | C138: 50 | D138: 43 | E138: 70 | F138: 51
B139: 66 | C139: 62 | D139: 50 | E139: 32 | F139: 51
B140: 36 | C140: 65 | D140: 41 | E140: 75 | F140: 11
B141: 68 | C141: 55 | D141: 41 | E141: 51 | F141: 62
B142: 10 | C142: 59 | D142: 59 | E142: 75 | F142: 40
B143: 70 | C143: 44 | D143: 56 | E143: 51 | F143: 61
B144: 53 | C144: 64 | D144: 82 | E144: 50 | F144: 21
B145: 49 | C145: 25 | D145: 82 | E145: 46 | F145: 25
B146: 46 | C146: 37 | D146: 34 | E146: 36 | F146: 52
B147: 28 | C147: 50 | D147: 10 | E147: 37 | F147: 62
B148: 51 | C148: 50 | D148: 49 | E148: 53 | F148: 68
B149: 52 | C149: 45 | D149: 21 | E149: 61 | F149: 62
B150: 50 | C150: 77 | D150: 6 | E150: 51 | F150: 3
B151: 23 | C151: 52 | D151: 71 | E151: 21 | F151: 48
B152: 34 | C152: 51 | D152: 60 | E152: 67 | F152: 49
B153: 62 | C153: 73 | D153: 60 | E153: 72 | F153: 51
B154: 10 | C154: 52 | D154: 73 | E154: 49 | F154: 48
B155: 47 | C155: 59 | D155: 44 | E155: 51 | F155: 70
B156: 40 | C156: 48 | D156: 50 | E156: 59 | F156: 71
B157: 49 | C157: 55 | D157: 55 | E157: 22 | F157: 49
B158: 55 | C158: 44 | D158: 63 | E158: 40 | F158: 52
B159: 51 | C159: 52 | D159: 25 | E159: 42 | F159: 50
B160: 57 | C160: 76 | D160: 57 | E160: 61 | F160: 70
B161: 72 | C161: 65 | D161: 64 | E161: 8 | F161: 43
B162: 61 | C162: 65 | D162: 55 | E162: 3 | F162: 58
B163: 20 | C163: 23 | D163: 45 | E163: 29 | F163: 55
B164: 76 | C164: 70 | D164: 47 | E164: 43 | F164: 47
B165: 69 | C165: 72 | D165: 49 | E165: 69 | F165: 44
B166: 37 | C166: 71 | D166: 52 | E166: 47 | F166: 31
B167: 62 | C167: 71 | D167: 65 | E167: 57 | F167: 49
B168: 54 | C168: 46 | D168: 48 | E168: 8 | F168: 37
B169: 65 | C169: 53 | D169: 49 | E169: 40 | F169: 51
B170: 22 | C170: 58 | D170: 53 | E170: 74 | F170: 28
B171: 56 | C171: 51 | D171: 55 | E171: 49 | F171: 52
B172: 57 | C172: 49 | D172: 24 | E172: 54 | F172: 32
B173: 47 | C173: 45 | D173: 49 | E173: 56 | F173: 14
B174: 65 | C174: 24 | D174: 48 | E174: 70 | F174: 51
B175: 57 | C175: 43 | D175: 78 | E175: 66 | F175: 27
B176: 23 | C176: 53 | D176: 54 | E176: 35 | F176: 52
B177: 41 | C177: 50 | D177: 47 | E177: 47 | F177: 45
B178: 22 | C178: 14 | D178: 34 | E178: 41 | F178: 71
B179: 43 | C179: 70 | D179: 38 | E179: 46 | F179: 55
B180: 57 | C180: 47 | D180: 51 | E180: 57 | F180: 30
B181: 71 | C181: 23 | D181: 48 | E181: 20 | F181: 43
B182: =CHOOSE(RANDBETWEEN(1,5),RANDBETWEEN(RANDBETWEEN(0,50),RANDBETWEEN(51,100)),RANDBETWEEN(RANDBETWEEN(30,50),RANDBETWEEN(51,70)),RANDBETWEEN(RANDBETWEEN(40,50),RANDBETWEEN(51,60)),RANDBETWEEN(RANDBETWEEN(30,70),RANDBETWEEN(71,85)),RANDBETWEEN(RANDBETWEEN(0,25),RANDBETWEEN(26,85))) -> 70 | C182: 68 | D182: 66 | E182: 43 | F182: 56
B183: 78 | C183: 69 | D183: 51 | E183: 55 | F183: 53
B184: 90 | C184: 63 | D184: 53 | E184: 56 | F184: 49
B185: 51 | C185: 63 | D185: 45 | E185: 74 | F185: 53
B186: 34 | C186: 52 | D186: 61 | E186: 40 | F186: 45
B187: 61 | C187: 31 | D187: 38 | E187: 51 | F187: 78
B188: 26 | C188: 51 | D188: 59 | E188: 44 | F188: 55
B189: 31 | C189: 25 | D189: 52 | E189: 74 | F189: 71
B190: 43 | C190: 47 | D190: 58 | E190: 75 | F190: 71
B191: 18 | C191: 35 | D191: 55 | E191: 68 | F191: 66
B192: 52 | C192: 51 | D192: 52 | E192: 55 | F192: 18
B193: 49 | C193: 47 | D193: 25 | E193: 55 | F193: 57
B194: 23 | C194: 71 | D194: 65 | E194: 68 | F194: 68
B195: 17 | C195: 49 | D195: 40 | E195: 56 | F195: 50
B196: 57 | C196: 76 | D196: 54 | E196: 21 | F196: 48
B197: 55 | C197: 39 | D197: 30 | E197: 25 | F197: 24
B198: 55 | C198: 49 | D198: 70 | E198: 59 | F198: 65
B199: 76 | C199: 52 | D199: 51 | E199: 49 | F199: 51
B200: 48 | C200: 51 | D200: 19 | E200: 56 | F200: 52
B201: 32 | C201: 75 | D201: 29 | E201: 79 | F201: 23
B202: 56 | C202: 24 | D202: 51 | E202: 50 | F202: 25
... 196 more rows

Sheet BP(3an)
A1: Differences to Determine Bar Lengths
B2: CPA Scores 1 | C2: CPA Scores 2 | D2: CPA Scores 3 | E2: CPA Scores 4 | F2: CPA Scores 5
A3: Min | B3: =B9-B8 -> 3 | C3: =C9-C8 -> 3 | D3: 5 | E3: 2 | F3: 4
A4: Q1 | B4: =B10-B9 -> 40 | C4: 41 | D4: 35 | E4: 41 | F4: 39 | G4: Neg. Errors Bar
A5: Q2 | B5: 8 | C5: 8 | D5: 9 | E5: 7 | F5: 8
A6: Q3 | B6: 7 | C6: 9 | D6: 9.5 | E6: 7.5 | F6: 11
A7: Max | B7: 28 | C7: 30 | D7: 28.5 | E7: 33.5 | F7: 27 | G7: Pos. Errors Bar
A9: Min | B9: =_xlfn.QUARTILE.INC(B$16:B$398,ROWS(B$9:B9)-1) -> 3 | C9: =_xlfn.QUARTILE.INC(C$16:C$398,ROWS(C$9:C9)-1) -> 3 | D9: =_xlfn.QUARTILE.INC(D$16:D$398,ROWS(D$9:D9)-1) -> 5 | E9: =_xlfn.QUARTILE.INC(E$16:E$398,ROWS(E$9:E9)-1) -> 2 | F9: =_xlfn.QUARTILE.INC(F$16:F$398,ROWS(F$9:F9)-1) -> 4
A10: Q1 | B10: =_xlfn.QUARTILE.INC(B$16:B$398,ROWS(B$9:B10)-1) -> 43 | C10: =_xlfn.QUARTILE.INC(C$16:C$398,ROWS(C$9:C10)-1) -> 44 | D10: =_xlfn.QUARTILE.INC(D$16:D$398,ROWS(D$9:D10)-1) -> 40 | E10: =_xlfn.QUARTILE.INC(E$16:E$398,ROWS(E$9:E10)-1) -> 43 | F10: =_xlfn.QUARTILE.INC(F$16:F$398,ROWS(F$9:F10)-1) -> 43
A11: Q2 | B11: =_xlfn.QUARTILE.INC(B$16:B$398,ROWS(B$9:B11)-1) -> 51 | C11: =_xlfn.QUARTILE.INC(C$16:C$398,ROWS(C$9:C11)-1) -> 52 | D11: =_xlfn.QUARTILE.INC(D$16:D$398,ROWS(D$9:D11)-1) -> 49 | E11: =_xlfn.QUARTILE.INC(E$16:E$398,ROWS(E$9:E11)-1) -> 50 | F11: =_xlfn.QUARTILE.INC(F$16:F$398,ROWS(F$9:F11)-1) -> 51
A12: Q3 | B12: =_xlfn.QUARTILE.INC(B$16:B$398,ROWS(B$9:B12)-1) -> 58 | C12: =_xlfn.QUARTILE.INC(C$16:C$398,ROWS(C$9:C12)-1) -> 61 | D12: =_xlfn.QUARTILE.INC(D$16:D$398,ROWS(D$9:D12)-1) -> 58.5 | E12: =_xlfn.QUARTILE.INC(E$16:E$398,ROWS(E$9:E12)-1) -> 57.5 | F12: =_xlfn.QUARTILE.INC(F$16:F$398,ROWS(F$9:F12)-1) -> 62
A13: Max | B13: =_xlfn.QUARTILE.INC(B$16:B$398,ROWS(B$9:B13)-1) -> 86 | C13: =_xlfn.QUARTILE.INC(C$16:C$398,ROWS(C$9:C13)-1) -> 91 | D13: =_xlfn.QUARTILE.INC(D$16:D$398,ROWS(D$9:D13)-1) -> 87 | E13: =_xlfn.QUARTILE.INC(E$16:E$398,ROWS(E$9:E13)-1) -> 91 | F13: =_xlfn.QUARTILE.INC(F$16:F$398,ROWS(F$9:F13)-1) -> 89
B15: CPA Scores 1 | C15: CPA Scores 2 | D15: CPA Scores 3 | E15: CPA Scores 4 | F15: CPA Scores 5
B16: =CHOOSE(RANDBETWEEN(1,5),RANDBETWEEN(RANDBETWEEN(0,50),RANDBETWEEN(51,100)),RANDBETWEEN(RANDBETWEEN(30,50),RANDBETWEEN(51,70)),RANDBETWEEN(RANDBETWEEN(40,50),RANDBETWEEN(51,60)),RANDBETWEEN(RANDBETWEEN(30,70),RANDBETWEEN(71,85)),RANDBETWEEN(RANDBETWEEN(0,25),RANDBETWEEN(26,85))) -> 57 | C16: =CHOOSE(RANDBETWEEN(1,5),RANDBETWEEN(RANDBETWEEN(0,50),RANDBETWEEN(51,100)),RANDBETWEEN(RANDBETWEEN(30,50),RANDBETWEEN(51,70)),RANDBETWEEN(RANDBETWEEN(40,50),RANDBETWEEN(51,60)),RANDBETWEEN(RANDBETWEEN(30,70),RANDBETWEEN(71,85)),RANDBETWEEN(RANDBETWEEN(0,25),RANDBETWEEN(26,85))) -> 54 | D16: 46 | E16: 21 | F16: 51
B17: =CHOOSE(RANDBETWEEN(1,5),RANDBETWEEN(RANDBETWEEN(0,50),RANDBETWEEN(51,100)),RANDBETWEEN(RANDBETWEEN(30,50),RANDBETWEEN(51,70)),RANDBETWEEN(RANDBETWEEN(40,50),RANDBETWEEN(51,60)),RANDBETWEEN(RANDBETWEEN(30,70),RANDBETWEEN(71,85)),RANDBETWEEN(RANDBETWEEN(0,25),RANDBETWEEN(26,85))) -> 42 | C17: 37 | D17: 62 | E17: 52 | F17: 47
B18: 69 | C18: 51 | D18: 69 | E18: 67 | F18: 57
B19: 53 | C19: 59 | D19: 52 | E19: 32 | F19: 49
B20: 67 | C20: 3 | D20: 27 | E20: 54 | F20: 62
B21: 13 | C21: 53 | D21: 46 | E21: 51 | F21: 65
B22: 39 | C22: 72 | D22: 46 | E22: 40 | F22: 40
B23: 55 | C23: 61 | D23: 15 | E23: 53 | F23: 44
B24: 52 | C24: 53 | D24: 45 | E24: 35 | F24: 66
B25: 52 | C25: 74 | D25: 16 | E25: 26 | F25: 60
B26: 52 | C26: 58 | D26: 57 | E26: 51 | F26: 63
B27: 81 | C27: 39 | D27: 46 | E27: 31 | F27: 51
B28: 56 | C28: 60 | D28: 15 | E28: 57 | F28: 81
B29: 44 | C29: 49 | D29: 25 | E29: 52 | F29: 50
B30: 33 | C30: 48 | D30: 69 | E30: 38 | F30: 50
B31: 32 | C31: 48 | D31: 43 | E31: 32 | F31: 44
B32: 66 | C32: 76 | D32: 74 | E32: 58 | F32: 62
B33: 57 | C33: 44 | D33: 52 | E33: 47 | F33: 50
B34: 51 | C34: 36 | D34: 22 | E34: 55 | F34: 49
B35: 49 | C35: 89 | D35: 44 | E35: 53 | F35: 59
B36: 68 | C36: 51 | D36: 52 | E36: 45 | F36: 74
B37: 47 | C37: 63 | D37: 59 | E37: 51 | F37: 60
B38: 58 | C38: 53 | D38: 69 | E38: 86 | F38: 48
B39: 68 | C39: 75 | D39: 41 | E39: 84 | F39: 54
B40: 53 | C40: 73 | D40: 69 | E40: 48 | F40: 43
B41: 71 | C41: 22 | D41: 8 | E41: 44 | F41: 86
B42: 26 | C42: 52 | D42: 50 | E42: 53 | F42: 70
B43: 51 | C43: 62 | D43: 36 | E43: 47 | F43: 49
B44: 55 | C44: 80 | D44: 52 | E44: 45 | F44: 17
B45: 51 | C45: 63 | D45: 54 | E45: 77 | F45: 46
B46: 46 | C46: 52 | D46: 48 | E46: 53 | F46: 54
B47: 34 | C47: 56 | D47: 5 | E47: 69 | F47: 72
B48: 24 | C48: 53 | D48: 58 | E48: 38 | F48: 24
B49: 47 | C49: 33 | D49: 54 | E49: 53 | F49: 56
B50: 38 | C50: 82 | D50: 45 | E50: 15 | F50: 10
B51: 45 | C51: 56 | D51: 50 | E51: 81 | F51: 24
B52: 43 | C52: 41 | D52: 37 | E52: 48 | F52: 45
B53: 49 | C53: 24 | D53: 26 | E53: 31 | F53: 53
B54: 37 | C54: 16 | D54: 73 | E54: 55 | F54: 79
B55: 52 | C55: 33 | D55: 14 | E55: 32 | F55: 42
B56: 55 | C56: 27 | D56: 54 | E56: 43 | F56: 51
B57: 58 | C57: 55 | D57: 62 | E57: 57 | F57: 6
B58: 31 | C58: 80 | D58: 56 | E58: 38 | F58: 76
B59: 49 | C59: 41 | D59: 49 | E59: 65 | F59: 54
B60: 71 | C60: 80 | D60: 73 | E60: 66 | F60: 34
B61: 67 | C61: 50 | D61: 55 | E61: 31 | F61: 76
B62: 57 | C62: 43 | D62: 67 | E62: 43 | F62: 8
B63: 64 | C63: 71 | D63: 46 | E63: 49 | F63: 26
B64: 46 | C64: 41 | D64: 47 | E64: 51 | F64: 66
B65: 50 | C65: 61 | D65: 49 | E65: 65 | F65: 69
B66: 59 | C66: 46 | D66: 77 | E66: 52 | F66: 10
B67: 33 | C67: 42 | D67: 74 | E67: 52 | F67: 51
B68: 72 | C68: 43 | D68: 39 | E68: 78 | F68: 76
B69: 22 | C69: 67 | D69: 46 | E69: 44 | F69: 20
B70: 15 | C70: 40 | D70: 46 | E70: 31 | F70: 60
B71: 42 | C71: 50 | D71: 55 | E71: 28 | F71: 13
B72: 7 | C72: 14 | D72: 46 | E72: 49 | F72: 20
B73: 75 | C73: 55 | D73: 81 | E73: 52 | F73: 35
B74: 58 | C74: 85 | D74: 49 | E74: 50 | F74: 39
B75: 68 | C75: 65 | D75: 50 | E75: 30 | F75: 49
B76: 78 | C76: 52 | D76: 53 | E76: 44 | F76: 48
B77: 9 | C77: 54 | D77: 47 | E77: 52 | F77: 53
B78: 74 | C78: 76 | D78: 22 | E78: 52 | F78: 58
B79: 39 | C79: 58 | D79: 44 | E79: 66 | F79: 74
B80: =CHOOSE(RANDBETWEEN(1,5),RANDBETWEEN(RANDBETWEEN(0,50),RANDBETWEEN(51,100)),RANDBETWEEN(RANDBETWEEN(30,50),RANDBETWEEN(51,70)),RANDBETWEEN(RANDBETWEEN(40,50),RANDBETWEEN(51,60)),RANDBETWEEN(RANDBETWEEN(30,70),RANDBETWEEN(71,85)),RANDBETWEEN(RANDBETWEEN(0,25),RANDBETWEEN(26,85))) -> 63 | C80: 55 | D80: 17 | E80: 45 | F80: 79
B81: 76 | C81: 43 | D81: 50 | E81: 50 | F81: 17
B82: 71 | C82: 61 | D82: 9 | E82: 72 | F82: 74
B83: 48 | C83: 47 | D83: 51 | E83: 72 | F83: 43
B84: 16 | C84: 38 | D84: 49 | E84: 76 | F84: 67
B85: 26 | C85: 45 | D85: 22 | E85: 53 | F85: 56
B86: 49 | C86: 54 | D86: 37 | E86: 79 | F86: 31
B87: 39 | C87: 18 | D87: 51 | E87: 62 | F87: 48
B88: 25 | C88: 53 | D88: 57 | E88: 54 | F88: 61
B89: 76 | C89: 57 | D89: 44 | E89: 67 | F89: 54
B90: 47 | C90: 51 | D90: 58 | E90: 67 | F90: 50
B91: 59 | C91: 31 | D91: 37 | E91: 47 | F91: 42
B92: 45 | C92: 64 | D92: 64 | E92: 43 | F92: 51
B93: 68 | C93: 72 | D93: 24 | E93: 51 | F93: 9
B94: 67 | C94: 47 | D94: 74 | E94: 42 | F94: 79
B95: 63 | C95: 48 | D95: 47 | E95: 70 | F95: 66
B96: 33 | C96: 65 | D96: 29 | E96: 51 | F96: 78
B97: 29 | C97: 56 | D97: 49 | E97: 84 | F97: 53
B98: 47 | C98: 43 | D98: 71 | E98: 48 | F98: 19
B99: 57 | C99: 50 | D99: 76 | E99: 32 | F99: 65
B100: 39 | C100: 52 | D100: 54 | E100: 39 | F100: 79
B101: 51 | C101: 61 | D101: 50 | E101: 46 | F101: 65
B102: 44 | C102: 69 | D102: 69 | E102: 56 | F102: 44
B103: 60 | C103: 70 | D103: 29 | E103: 49 | F103: 50
B104: 77 | C104: 44 | D104: 54 | E104: 51 | F104: 67
B105: 44 | C105: 63 | D105: 39 | E105: 47 | F105: 40
B106: 45 | C106: 55 | D106: 73 | E106: 42 | F106: 46
B107: 42 | C107: 50 | D107: 35 | E107: 46 | F107: 52
B108: 51 | C108: 56 | D108: 57 | E108: 49 | F108: 47
B109: 53 | C109: 68 | D109: 44 | E109: 42 | F109: 40
B110: 61 | C110: 82 | D110: 49 | E110: 35 | F110: 71
B111: 58 | C111: 58 | D111: 17 | E111: 63 | F111: 61
B112: 73 | C112: 49 | D112: 31 | E112: 51 | F112: 25
B113: 39 | C113: 45 | D113: 71 | E113: 54 | F113: 47
B114: 34 | C114: 50 | D114: 41 | E114: 38 | F114: 89
B115: 49 | C115: 56 | D115: 13 | E115: 63 | F115: 33
B116: 80 | C116: 53 | D116: 77 | E116: 25 | F116: 39
B117: 50 | C117: 54 | D117: 52 | E117: 60 | F117: 39
B118: 69 | C118: 40 | D118: 51 | E118: 37 | F118: 68
B119: 51 | C119: 54 | D119: 42 | E119: 58 | F119: 56
B120: 60 | C120: 47 | D120: 42 | E120: 16 | F120: 76
B121: 59 | C121: 47 | D121: 12 | E121: 51 | F121: 50
B122: 75 | C122: 45 | D122: 65 | E122: 46 | F122: 54
B123: 54 | C123: 73 | D123: 53 | E123: 59 | F123: 6
B124: 45 | C124: 75 | D124: 53 | E124: 48 | F124: 55
B125: 46 | C125: 64 | D125: 72 | E125: 43 | F125: 43
B126: 61 | C126: 53 | D126: 56 | E126: 39 | F126: 58
B127: 17 | C127: 75 | D127: 29 | E127: 27 | F127: 73
B128: 82 | C128: 18 | D128: 37 | E128: 71 | F128: 63
B129: 52 | C129: 51 | D129: 60 | E129: 33 | F129: 64
B130: 44 | C130: 52 | D130: 53 | E130: 69 | F130: 69
B131: =CHOOSE(RANDBETWEEN(1,5),RANDBETWEEN(RANDBETWEEN(0,50),RANDBETWEEN(51,100)),RANDBETWEEN(RANDBETWEEN(30,50),RANDBETWEEN(51,70)),RANDBETWEEN(RANDBETWEEN(40,50),RANDBETWEEN(51,60)),RANDBETWEEN(RANDBETWEEN(30,70),RANDBETWEEN(71,85)),RANDBETWEEN(RANDBETWEEN(0,25),RANDBETWEEN(26,85))) -> 68 | C131: 44 | D131: 65 | E131: 33 | F131: 64
B132: 77 | C132: 58 | D132: 61 | E132: 10 | F132: 50
B133: 58 | C133: 13 | D133: 57 | E133: 55 | F133: 45
B134: 66 | C134: 62 | D134: 54 | E134: 48 | F134: 55
B135: 45 | C135: 69 | D135: 17 | E135: 50 | F135: 37
B136: 47 | C136: 58 | D136: 73 | E136: 80 | F136: 50
B137: 45 | C137: 64 | D137: 47 | E137: 37 | F137: 48
B138: 56 | C138: 57 | D138: 70 | E138: 53 | F138: 41
B139: 42 | C139: 54 | D139: 69 | E139: 72 | F139: 69
B140: 51 | C140: 33 | D140: 55 | E140: 49 | F140: 54
B141: 39 | C141: 48 | D141: 23 | E141: 53 | F141: 47
B142: 70 | C142: 46 | D142: 82 | E142: 52 | F142: 33
B143: 70 | C143: 77 | D143: 51 | E143: 72 | F143: 64
B144: 54 | C144: 39 | D144: 24 | E144: 50 | F144: 15
B145: 49 | C145: 76 | D145: 60 | E145: 27 | F145: 39
B146: 47 | C146: 39 | D146: 49 | E146: 67 | F146: 50
B147: 43 | C147: 48 | D147: 53 | E147: 30 | F147: 47
B148: 50 | C148: 38 | D148: 31 | E148: 50 | F148: 53
B149: 41 | C149: 47 | D149: 64 | E149: 45 | F149: 49
B150: 56 | C150: 51 | D150: 56 | E150: 33 | F150: 34
B151: 67 | C151: 52 | D151: 30 | E151: 55 | F151: 52
B152: 56 | C152: 72 | D152: 34 | E152: 41 | F152: 47
B153: 68 | C153: 54 | D153: 28 | E153: 47 | F153: 46
B154: 69 | C154: 69 | D154: 48 | E154: 52 | F154: 57
B155: 18 | C155: 53 | D155: 57 | E155: 70 | F155: 28
B156: 25 | C156: 69 | D156: 73 | E156: 40 | F156: 55
B157: 45 | C157: 46 | D157: 75 | E157: 20 | F157: 52
B158: 29 | C158: 33 | D158: 50 | E158: 60 | F158: 15
B159: 63 | C159: 47 | D159: 46 | E159: 55 | F159: 37
B160: 80 | C160: 53 | D160: 21 | E160: 8 | F160: 50
B161: 28 | C161: 77 | D161: 70 | E161: 51 | F161: 62
B162: 46 | C162: 71 | D162: 30 | E162: 65 | F162: 19
B163: 51 | C163: 69 | D163: 20 | E163: 48 | F163: 76
B164: 56 | C164: 45 | D164: 55 | E164: 48 | F164: 51
B165: 4 | C165: 47 | D165: 64 | E165: 27 | F165: 50
B166: 47 | C166: 31 | D166: 71 | E166: 18 | F166: 79
B167: 55 | C167: 10 | D167: 57 | E167: 53 | F167: 45
B168: 52 | C168: 11 | D168: 39 | E168: 52 | F168: 48
B169: 47 | C169: 65 | D169: 51 | E169: 33 | F169: 44
B170: 58 | C170: 69 | D170: 44 | E170: 43 | F170: 36
B171: 55 | C171: 52 | D171: 34 | E171: 48 | F171: 67
B172: 44 | C172: 56 | D172: 37 | E172: 59 | F172: 80
B173: 61 | C173: 56 | D173: 46 | E173: 48 | F173: 54
B174: 52 | C174: 29 | D174: 67 | E174: 30 | F174: 74
B175: 34 | C175: 48 | D175: 56 | E175: 65 | F175: 62
B176: 50 | C176: 79 | D176: 51 | E176: 33 | F176: 66
B177: 20 | C177: 44 | D177: 34 | E177: 6 | F177: 71
B178: 44 | C178: 65 | D178: 67 | E178: 49 | F178: 48
B179: 50 | C179: 49 | D179: 39 | E179: 42 | F179: 65
B180: 51 | C180: 64 | D180: 48 | E180: 83 | F180: 46
B181: 63 | C181: 78 | D181: 50 | E181: 40 | F181: 54
B182: =CHOOSE(RANDBETWEEN(1,5),RANDBETWEEN(RANDBETWEEN(0,50),RANDBETWEEN(51,100)),RANDBETWEEN(RANDBETWEEN(30,50),RANDBETWEEN(51,70)),RANDBETWEEN(RANDBETWEEN(40,50),RANDBETWEEN(51,60)),RANDBETWEEN(RANDBETWEEN(30,70),RANDBETWEEN(71,85)),RANDBETWEEN(RANDBETWEEN(0,25),RANDBETWEEN(26,85))) -> 57 | C182: 66 | D182: 78 | E182: 24 | F182: 31
B183: 33 | C183: 47 | D183: 47 | E183: 56 | F183: 47
B184: 34 | C184: 56 | D184: 55 | E184: 37 | F184: 41
B185: 36 | C185: 57 | D185: 47 | E185: 66 | F185: 56
B186: 71 | C186: 26 | D186: 54 | E186: 18 | F186: 20
B187: 64 | C187: 77 | D187: 8 | E187: 49 | F187: 49
B188: 24 | C188: 50 | D188: 64 | E188: 26 | F188: 46
B189: 48 | C189: 35 | D189: 54 | E189: 22 | F189: 42
B190: 32 | C190: 63 | D190: 42 | E190: 24 | F190: 61
B191: 43 | C191: 51 | D191: 33 | E191: 67 | F191: 30
B192: 52 | C192: 50 | D192: 50 | E192: 71 | F192: 65
B193: 10 | C193: 46 | D193: 54 | E193: 43 | F193: 69
B194: 51 | C194: 54 | D194: 46 | E194: 60 | F194: 51
B195: 78 | C195: 46 | D195: 31 | E195: 51 | F195: 38
B196: 86 | C196: 58 | D196: 76 | E196: 52 | F196: 78
B197: 53 | C197: 19 | D197: 33 | E197: 47 | F197: 53
B198: 64 | C198: 76 | D198: 87 | E198: 44 | F198: 48
B199: 3 | C199: 59 | D199: 41 | E199: 52 | F199: 43
B200: 52 | C200: 43 | D200: 47 | E200: 61 | F200: 65
B201: 71 | C201: 52 | D201: 60 | E201: 33 | F201: 52
B202: 49 | C202: 58 | D202: 70 | E202: 44 | F202: 46
... 196 more rows

Sheet BP(4)
B1: =B7 -> CPA Scores 1 | C1: CPA Scores 2 | D1: CPA Scores 3 | E1: CPA Scores 4 | F1: CPA Scores 5
A2: Open | G2: Quartile 1 | H2: 1
A3: High | G3: Max | H3: 4
A4: Low | G4: Min | H4: 0
A5: Close | G5: Quartile 3 | H5: 3
B7: CPA Scores 1 | C7: CPA Scores 2 | D7: CPA Scores 3 | E7: CPA Scores 4 | F7: CPA Scores 5
B8: =CHOOSE(RANDBETWEEN(1,5),RANDBETWEEN(RANDBETWEEN(0,50),RANDBETWEEN(51,100)),RANDBETWEEN(RANDBETWEEN(30,50),RANDBETWEEN(51,70)),RANDBETWEEN(RANDBETWEEN(40,50),RANDBETWEEN(51,60)),RANDBETWEEN(RANDBETWEEN(30,70),RANDBETWEEN(71,85)),RANDBETWEEN(RANDBETWEEN(0,25),RANDBETWEEN(26,85))) -> 50 | C8: =CHOOSE(RANDBETWEEN(1,5),RANDBETWEEN(RANDBETWEEN(0,50),RANDBETWEEN(51,100)),RANDBETWEEN(RANDBETWEEN(30,50),RANDBETWEEN(51,70)),RANDBETWEEN(RANDBETWEEN(40,50),RANDBETWEEN(51,60)),RANDBETWEEN(RANDBETWEEN(30,70),RANDBETWEEN(71,85)),RANDBETWEEN(RANDBETWEEN(0,25),RANDBETWEEN(26,85))) -> 39 | D8: 82 | E8: 83 | F8: 44
B9: =CHOOSE(RANDBETWEEN(1,5),RANDBETWEEN(RANDBETWEEN(0,50),RANDBETWEEN(51,100)),RANDBETWEEN(RANDBETWEEN(30,50),RANDBETWEEN(51,70)),RANDBETWEEN(RANDBETWEEN(40,50),RANDBETWEEN(51,60)),RANDBETWEEN(RANDBETWEEN(30,70),RANDBETWEEN(71,85)),RANDBETWEEN(RANDBETWEEN(0,25),RANDBETWEEN(26,85))) -> 46 | C9: 70 | D9: 48 | E9: 57 | F9: 37
B10: 44 | C10: 43 | D10: 52 | E10: 64 | F10: 56
B11: 52 | C11: 56 | D11: 7 | E11: 47 | F11: 48
B12: 45 | C12: 54 | D12: 58 | E12: 74 | F12: 41
B13: 26 | C13: 63 | D13: 50 | E13: 54 | F13: 75
B14: 25 | C14: 64 | D14: 41 | E14: 51 | F14: 8
B15: 77 | C15: 54 | D15: 59 | E15: 41 | F15: 45
B16: 52 | C16: 46 | D16: 45 | E16: 58 | F16: 46
B17: 54 | C17: 53 | D17: 17 | E17: 62 | F17: 30
B18: 56 | C18: 52 | D18: 61 | E18: 57 | F18: 55
B19: 54 | C19: 38 | D19: 43 | E19: 52 | F19: 43
B20: 64 | C20: 82 | D20: 47 | E20: 51 | F20: 69
B21: 63 | C21: 48 | D21: 33 | E21: 48 | F21: 48
B22: 51 | C22: 62 | D22: 17 | E22: 77 | F22: 53
B23: 50 | C23: 14 | D23: 67 | E23: 51 | F23: 54
B24: 28 | C24: 49 | D24: 51 | E24: 59 | F24: 56
B25: 82 | C25: 48 | D25: 43 | E25: 45 | F25: 53
B26: 61 | C26: 81 | D26: 43 | E26: 69 | F26: 53
B27: 50 | C27: 37 | D27: 65 | E27: 48 | F27: 53
B28: 49 | C28: 37 | D28: 50 | E28: 57 | F28: 64
B29: 41 | C29: 54 | D29: 55 | E29: 34 | F29: 50
B30: 55 | C30: 20 | D30: 24 | E30: 60 | F30: 54
B31: 77 | C31: 41 | D31: 45 | E31: 25 | F31: 60
B32: 27 | C32: 51 | D32: 55 | E32: 31 | F32: 77
B33: 46 | C33: 71 | D33: 23 | E33: 56 | F33: 23
B34: 78 | C34: 45 | D34: 52 | E34: 18 | F34: 48
B35: 75 | C35: 35 | D35: 47 | E35: 60 | F35: 51
B36: 43 | C36: 33 | D36: 67 | E36: 25 | F36: 33
B37: 41 | C37: 68 | D37: 51 | E37: 48 | F37: 56
B38: 51 | C38: 53 | D38: 89 | E38: 52 | F38: 27
B39: 60 | C39: 50 | D39: 48 | E39: 35 | F39: 28
B40: 36 | C40: 48 | D40: 41 | E40: 41 | F40: 26
B41: 48 | C41: 58 | D41: 49 | E41: 44 | F41: 54
B42: 47 | C42: 50 | D42: 49 | E42: 47 | F42: 25
B43: 44 | C43: 55 | D43: 54 | E43: 45 | F43: 66
B44: 60 | C44: 46 | D44: 44 | E44: 79 | F44: 41
B45: 10 | C45: 45 | D45: 39 | E45: 54 | F45: 49
B46: 18 | C46: 46 | D46: 11 | E46: 61 | F46: 53
B47: 45 | C47: 55 | D47: 69 | E47: 29 | F47: 49
B48: 70 | C48: 44 | D48: 39 | E48: 77 | F48: 50
B49: 53 | C49: 78 | D49: 48 | E49: 54 | F49: 79
B50: 49 | C50: 35 | D50: 52 | E50: 9 | F50: 39
B51: 60 | C51: 63 | D51: 66 | E51: 53 | F51: 45
B52: 40 | C52: 59 | D52: 56 | E52: 76 | F52: 45
B53: 51 | C53: 50 | D53: 50 | E53: 24 | F53: 41
B54: 46 | C54: 51 | D54: 50 | E54: 74 | F54: 39
B55: 63 | C55: 28 | D55: 70 | E55: 60 | F55: 48
B56: 13 | C56: 69 | D56: 49 | E56: 29 | F56: 41
B57: 37 | C57: 72 | D57: 47 | E57: 54 | F57: 23
B58: 64 | C58: 66 | D58: 49 | E58: 39 | F58: 36
B59: 43 | C59: 42 | D59: 43 | E59: 44 | F59: 47
B60: 66 | C60: 31 | D60: 48 | E60: 23 | F60: 47
B61: 56 | C61: 50 | D61: 48 | E61: 39 | F61: 29
B62: 73 | C62: 29 | D62: 54 | E62: 35 | F62: 25
B63: 66 | C63: 60 | D63: 50 | E63: 57 | F63: 77
B64: 78 | C64: 14 | D64: 51 | E64: 64 | F64: 65
B65: 91 | C65: 32 | D65: 72 | E65: 68 | F65: 14
B66: 54 | C66: 51 | D66: 51 | E66: 53 | F66: 64
B67: 58 | C67: 46 | D67: 37 | E67: 46 | F67: 45
B68: 72 | C68: 51 | D68: 50 | E68: 65 | F68: 45
B69: 64 | C69: 11 | D69: 50 | E69: 30 | F69: 26
B70: 68 | C70: 52 | D70: 67 | E70: 50 | F70: 58
B71: 56 | C71: 31 | D71: 73 | E71: 52 | F71: 50
B72: =CHOOSE(RANDBETWEEN(1,5),RANDBETWEEN(RANDBETWEEN(0,50),RANDBETWEEN(51,100)),RANDBETWEEN(RANDBETWEEN(30,50),RANDBETWEEN(51,70)),RANDBETWEEN(RANDBETWEEN(40,50),RANDBETWEEN(51,60)),RANDBETWEEN(RANDBETWEEN(30,70),RANDBETWEEN(71,85)),RANDBETWEEN(RANDBETWEEN(0,25),RANDBETWEEN(26,85))) -> 18 | C72: 46 | D72: 47 | E72: 68 | F72: 56
B73: 54 | C73: 49 | D73: 61 | E73: 55 | F73: 44
B74: 72 | C74: 31 | D74: 52 | E74: 68 | F74: 30
B75: 73 | C75: 58 | D75: 76 | E75: 69 | F75: 31
B76: 38 | C76: 82 | D76: 51 | E76: 56 | F76: 50
B77: 59 | C77: 56 | D77: 73 | E77: 61 | F77: 18
B78: 67 | C78: 72 | D78: 50 | E78: 50 | F78: 74
B79: 28 | C79: 51 | D79: 45 | E79: 44 | F79: 44
B80: 45 | C80: 53 | D80: 19 | E80: 62 | F80: 46
B81: 77 | C81: 52 | D81: 45 | E81: 28 | F81: 53
B82: 27 | C82: 65 | D82: 52 | E82: 62 | F82: 27
B83: 80 | C83: 56 | D83: 44 | E83: 69 | F83: 55
B84: 59 | C84: 46 | D84: 43 | E84: 49 | F84: 56
B85: 47 | C85: 31 | D85: 47 | E85: 42 | F85: 59
B86: 39 | C86: 48 | D86: 56 | E86: 46 | F86: 58
B87: 43 | C87: 39 | D87: 49 | E87: 52 | F87: 53
B88: 39 | C88: 66 | D88: 40 | E88: 72 | F88: 55
B89: 54 | C89: 67 | D89: 51 | E89: 54 | F89: 77
B90: 51 | C90: 18 | D90: 50 | E90: 45 | F90: 51
B91: 70 | C91: 58 | D91: 53 | E91: 78 | F91: 48
B92: 41 | C92: 59 | D92: 52 | E92: 55 | F92: 51
B93: 48 | C93: 41 | D93: 23 | E93: 69 | F93: 30
B94: 60 | C94: 49 | D94: 63 | E94: 52 | F94: 37
B95: 35 | C95: 58 | D95: 32 | E95: 56 | F95: 36
B96: 46 | C96: 72 | D96: 49 | E96: 64 | F96: 55
B97: 48 | C97: 55 | D97: 49 | E97: 46 | F97: 64
B98: 67 | C98: 57 | D98: 11 | E98: 24 | F98: 63
B99: 50 | C99: 58 | D99: 85 | E99: 50 | F99: 53
B100: 70 | C100: 80 | D100: 66 | E100: 46 | F100: 50
B101: 49 | C101: 86 | D101: 47 | E101: 50 | F101: 66
B102: 36 | C102: 47 | D102: 65 | E102: 38 | F102: 55
B103: 50 | C103: 46 | D103: 58 | E103: 47 | F103: 25
B104: 55 | C104: 60 | D104: 52 | E104: 35 | F104: 20
B105: 53 | C105: 64 | D105: 47 | E105: 72 | F105: 80
B106: 17 | C106: 72 | D106: 58 | E106: 49 | F106: 42
B107: 59 | C107: 61 | D107: 56 | E107: 51 | F107: 46
B108: 48 | C108: 53 | D108: 58 | E108: 64 | F108: 9
B109: 82 | C109: 47 | D109: 23 | E109: 24 | F109: 7
B110: 65 | C110: 49 | D110: 6 | E110: 52 | F110: 50
B111: 51 | C111: 73 | D111: 54 | E111: 39 | F111: 56
B112: 52 | C112: 17 | D112: 63 | E112: 33 | F112: 47
B113: 40 | C113: 52 | D113: 57 | E113: 44 | F113: 64
B114: 46 | C114: 49 | D114: 36 | E114: 65 | F114: 22
B115: 52 | C115: 37 | D115: 81 | E115: 84 | F115: 65
B116: 31 | C116: 35 | D116: 69 | E116: 61 | F116: 60
B117: 56 | C117: 49 | D117: 76 | E117: 47 | F117: 49
B118: 60 | C118: 44 | D118: 49 | E118: 64 | F118: 55
B119: 51 | C119: 47 | D119: 17 | E119: 17 | F119: 39
B120: 63 | C120: 28 | D120: 11 | E120: 51 | F120: 62
B121: 53 | C121: 41 | D121: 46 | E121: 37 | F121: 58
B122: 34 | C122: 11 | D122: 13 | E122: 36 | F122: 47
B123: =CHOOSE(RANDBETWEEN(1,5),RANDBETWEEN(RANDBETWEEN(0,50),RANDBETWEEN(51,100)),RANDBETWEEN(RANDBETWEEN(30,50),RANDBETWEEN(51,70)),RANDBETWEEN(RANDBETWEEN(40,50),RANDBETWEEN(51,60)),RANDBETWEEN(RANDBETWEEN(30,70),RANDBETWEEN(71,85)),RANDBETWEEN(RANDBETWEEN(0,25),RANDBETWEEN(26,85))) -> 47 | C123: 55 | D123: 56 | E123: 51 | F123: 71
B124: 42 | C124: 72 | D124: 49 | E124: 51 | F124: 55
B125: 50 | C125: 51 | D125: 68 | E125: 47 | F125: 58
B126: 49 | C126: 35 | D126: 77 | E126: 84 | F126: 55
B127: 48 | C127: 44 | D127: 32 | E127: 54 | F127: 41
B128: 52 | C128: 33 | D128: 68 | E128: 78 | F128: 51
B129: 41 | C129: 58 | D129: 53 | E129: 50 | F129: 48
B130: 53 | C130: 50 | D130: 17 | E130: 16 | F130: 43
B131: 44 | C131: 39 | D131: 59 | E131: 43 | F131: 9
B132: 30 | C132: 53 | D132: 62 | E132: 43 | F132: 25
B133: 21 | C133: 42 | D133: 57 | E133: 46 | F133: 45
B134: 24 | C134: 18 | D134: 15 | E134: 50 | F134: 53
B135: 26 | C135: 52 | D135: 49 | E135: 13 | F135: 58
B136: 60 | C136: 56 | D136: 27 | E136: 43 | F136: 37
B137: 49 | C137: 63 | D137: 58 | E137: 48 | F137: 47
B138: 48 | C138: 1 | D138: 39 | E138: 47 | F138: 53
B139: 54 | C139: 62 | D139: 48 | E139: 12 | F139: 41
B140: 56 | C140: 56 | D140: 15 | E140: 58 | F140: 59
B141: 54 | C141: 50 | D141: 48 | E141: 50 | F141: 36
B142: 56 | C142: 70 | D142: 27 | E142: 48 | F142: 30
B143: 49 | C143: 67 | D143: 62 | E143: 46 | F143: 35
B144: 61 | C144: 54 | D144: 39 | E144: 38 | F144: 30
B145: 9 | C145: 56 | D145: 52 | E145: 41 | F145: 38
B146: 24 | C146: 55 | D146: 31 | E146: 61 | F146: 55
B147: 51 | C147: 59 | D147: 34 | E147: 75 | F147: 41
B148: 53 | C148: 76 | D148: 80 | E148: 56 | F148: 44
B149: 46 | C149: 49 | D149: 60 | E149: 74 | F149: 52
B150: 49 | C150: 40 | D150: 33 | E150: 69 | F150: 77
B151: 39 | C151: 38 | D151: 51 | E151: 30 | F151: 52
B152: 25 | C152: 33 | D152: 61 | E152: 50 | F152: 71
B153: 55 | C153: 41 | D153: 43 | E153: 51 | F153: 80
B154: 27 | C154: 55 | D154: 47 | E154: 49 | F154: 46
B155: 60 | C155: 47 | D155: 78 | E155: 30 | F155: 29
B156: 58 | C156: 53 | D156: 51 | E156: 26 | F156: 49
B157: 71 | C157: 56 | D157: 52 | E157: 70 | F157: 58
B158: 51 | C158: 52 | D158: 56 | E158: 54 | F158: 47
B159: 55 | C159: 95 | D159: 68 | E159: 48 | F159: 37
B160: 46 | C160: 47 | D160: 47 | E160: 32 | F160: 72
B161: 52 | C161: 57 | D161: 50 | E161: 17 | F161: 30
B162: 75 | C162: 27 | D162: 70 | E162: 59 | F162: 50
B163: 23 | C163: 49 | D163: 80 | E163: 69 | F163: 54
B164: 69 | C164: 54 | D164: 51 | E164: 69 | F164: 41
B165: 50 | C165: 27 | D165: 71 | E165: 62 | F165: 53
B166: 27 | C166: 52 | D166: 50 | E166: 52 | F166: 53
B167: 38 | C167: 32 | D167: 45 | E167: 62 | F167: 73
B168: 43 | C168: 11 | D168: 51 | E168: 30 | F168: 78
B169: 20 | C169: 26 | D169: 94 | E169: 53 | F169: 26
B170: 19 | C170: 52 | D170: 61 | E170: 54 | F170: 46
B171: 47 | C171: 56 | D171: 49 | E171: 38 | F171: 48
B172: 71 | C172: 47 | D172: 81 | E172: 50 | F172: 38
B173: 10 | C173: 45 | D173: 46 | E173: 76 | F173: 48
B174: =CHOOSE(RANDBETWEEN(1,5),RANDBETWEEN(RANDBETWEEN(0,50),RANDBETWEEN(51,100)),RANDBETWEEN(RANDBETWEEN(30,50),RANDBETWEEN(51,70)),RANDBETWEEN(RANDBETWEEN(40,50),RANDBETWEEN(51,60)),RANDBETWEEN(RANDBETWEEN(30,70),RANDBETWEEN(71,85)),RANDBETWEEN(RANDBETWEEN(0,25),RANDBETWEEN(26,85))) -> 75 | C174: 52 | D174: 21 | E174: 47 | F174: 66
B175: 43 | C175: 68 | D175: 67 | E175: 72 | F175: 75
B176: 40 | C176: 5 | D176: 57 | E176: 72 | F176: 47
B177: 54 | C177: 55 | D177: 62 | E177: 68 | F177: 19
B178: 71 | C178: 37 | D178: 55 | E178: 26 | F178: 53
B179: 46 | C179: 63 | D179: 42 | E179: 27 | F179: 13
B180: 47 | C180: 41 | D180: 62 | E180: 72 | F180: 39
B181: 51 | C181: 10 | D181: 43 | E181: 33 | F181: 61
B182: 42 | C182: 31 | D182: 42 | E182: 57 | F182: 13
B183: 46 | C183: 50 | D183: 39 | E183: 52 | F183: 38
B184: 62 | C184: 66 | D184: 46 | E184: 71 | F184: 46
B185: 36 | C185: 52 | D185: 20 | E185: 46 | F185: 62
B186: 65 | C186: 60 | D186: 54 | E186: 47 | F186: 56
B187: 42 | C187: 42 | D187: 52 | E187: 37 | F187: 71
B188: 19 | C188: 71 | D188: 38 | E188: 11 | F188: 55
B189: 60 | C189: 11 | D189: 34 | E189: 68 | F189: 43
B190: 48 | C190: 51 | D190: 57 | E190: 52 | F190: 53
B191: 59 | C191: 22 | D191: 50 | E191: 62 | F191: 50
B192: 26 | C192: 73 | D192: 51 | E192: 45 | F192: 83
B193: 52 | C193: 40 | D193: 53 | E193: 16 | F193: 25
B194: 31 | C194: 64 | D194: 54 | E194: 54 | F194: 20
B195: 24 | C195: 41 | D195: 33 | E195: 53 | F195: 57
B196: 53 | C196: 12 | D196: 53 | E196: 51 | F196: 58
B197: 42 | C197: 51 | D197: 55 | E197: 45 | F197: 46
B198: 4 | C198: 47 | D198: 29 | E198: 57 | F198: 45
B199: 53 | C199: 54 | D199: 49 | E199: 41 | F199: 37
B200: 50 | C200: 47 | D200: 16 | E200: 32 | F200: 53
B201: 62 | C201: 45 | D201: 24 | E201: 55 | F201: 29
... 189 more rows

Sheet BP(4an)
B1: =B7 -> CPA Scores 1 | C1: CPA Scores 2 | D1: CPA Scores 3 | E1: CPA Scores 4 | F1: CPA Scores 5
A2: Open | B2: =_xlfn.QUARTILE.INC(B$8:B$390,$H2) -> 40 | C2: 40.5 | D2: 43 | E2: 42 | F2: 44 | G2: Quartile 1 | H2: 1
A3: High | B3: 97 | C3: 89 | D3: 93 | E3: 96 | F3: 97 | G3: Max | H3: 4
A4: Low | B4: 4 | C4: 3 | D4: 2 | E4: 3 | F4: 5 | G4: Min | H4: 0
A5: Close | B5: 60 | C5: 61 | D5: 59 | E5: 58 | F5: 60 | G5: Quartile 3 | H5: 3
B7: CPA Scores 1 | C7: CPA Scores 2 | D7: CPA Scores 3 | E7: CPA Scores 4 | F7: CPA Scores 5
B8: =CHOOSE(RANDBETWEEN(1,5),RANDBETWEEN(RANDBETWEEN(0,50),RANDBETWEEN(51,100)),RANDBETWEEN(RANDBETWEEN(30,50),RANDBETWEEN(51,70)),RANDBETWEEN(RANDBETWEEN(40,50),RANDBETWEEN(51,60)),RANDBETWEEN(RANDBETWEEN(30,70),RANDBETWEEN(71,85)),RANDBETWEEN(RANDBETWEEN(0,25),RANDBETWEEN(26,85))) -> 5 | C8: =CHOOSE(RANDBETWEEN(1,5),RANDBETWEEN(RANDBETWEEN(0,50),RANDBETWEEN(51,100)),RANDBETWEEN(RANDBETWEEN(30,50),RANDBETWEEN(51,70)),RANDBETWEEN(RANDBETWEEN(40,50),RANDBETWEEN(51,60)),RANDBETWEEN(RANDBETWEEN(30,70),RANDBETWEEN(71,85)),RANDBETWEEN(RANDBETWEEN(0,25),RANDBETWEEN(26,85))) -> 46 | D8: 49 | E8: 51 | F8: 49
B9: =CHOOSE(RANDBETWEEN(1,5),RANDBETWEEN(RANDBETWEEN(0,50),RANDBETWEEN(51,100)),RANDBETWEEN(RANDBETWEEN(30,50),RANDBETWEEN(51,70)),RANDBETWEEN(RANDBETWEEN(40,50),RANDBETWEEN(51,60)),RANDBETWEEN(RANDBETWEEN(30,70),RANDBETWEEN(71,85)),RANDBETWEEN(RANDBETWEEN(0,25),RANDBETWEEN(26,85))) -> 48 | C9: 28 | D9: 50 | E9: 67 | F9: 44
B10: 56 | C10: 66 | D10: 42 | E10: 58 | F10: 68
B11: 28 | C11: 63 | D11: 56 | E11: 62 | F11: 51
B12: 69 | C12: 33 | D12: 40 | E12: 25 | F12: 72
B13: 67 | C13: 83 | D13: 82 | E13: 46 | F13: 43
B14: 22 | C14: 74 | D14: 56 | E14: 71 | F14: 51
B15: 65 | C15: 50 | D15: 33 | E15: 41 | F15: 97
B16: 23 | C16: 34 | D16: 29 | E16: 48 | F16: 64
B17: 51 | C17: 49 | D17: 45 | E17: 20 | F17: 55
B18: 16 | C18: 50 | D18: 73 | E18: 48 | F18: 52
B19: 74 | C19: 17 | D19: 49 | E19: 47 | F19: 40
B20: 36 | C20: 38 | D20: 58 | E20: 22 | F20: 54
B21: 40 | C21: 63 | D21: 57 | E21: 52 | F21: 29
B22: 49 | C22: 40 | D22: 47 | E22: 49 | F22: 52
B23: 48 | C23: 68 | D23: 53 | E23: 81 | F23: 52
B24: 55 | C24: 54 | D24: 57 | E24: 55 | F24: 62
B25: 47 | C25: 55 | D25: 41 | E25: 84 | F25: 77
B26: 37 | C26: 43 | D26: 41 | E26: 41 | F26: 19
B27: 46 | C27: 19 | D27: 43 | E27: 42 | F27: 76
B28: 77 | C28: 65 | D28: 47 | E28: 24 | F28: 56
B29: 74 | C29: 41 | D29: 39 | E29: 53 | F29: 49
B30: 57 | C30: 30 | D30: 45 | E30: 48 | F30: 52
B31: 73 | C31: 49 | D31: 68 | E31: 43 | F31: 47
B32: 51 | C32: 51 | D32: 46 | E32: 50 | F32: 39
B33: 56 | C33: 49 | D33: 40 | E33: 72 | F33: 6
B34: 33 | C34: 56 | D34: 58 | E34: 40 | F34: 79
B35: 44 | C35: 37 | D35: 58 | E35: 15 | F35: 20
B36: 62 | C36: 38 | D36: 19 | E36: 70 | F36: 51
B37: 53 | C37: 47 | D37: 49 | E37: 69 | F37: 31
B38: 70 | C38: 68 | D38: 42 | E38: 59 | F38: 75
B39: 76 | C39: 53 | D39: 22 | E39: 73 | F39: 72
B40: 45 | C40: 65 | D40: 46 | E40: 47 | F40: 34
B41: 59 | C41: 54 | D41: 51 | E41: 53 | F41: 51
B42: 26 | C42: 24 | D42: 66 | E42: 54 | F42: 81
B43: 50 | C43: 73 | D43: 53 | E43: 52 | F43: 65
B44: 42 | C44: 42 | D44: 71 | E44: 56 | F44: 50
B45: 62 | C45: 13 | D45: 55 | E45: 64 | F45: 59
B46: 64 | C46: 70 | D46: 34 | E46: 34 | F46: 45
B47: 48 | C47: 43 | D47: 56 | E47: 34 | F47: 67
B48: 22 | C48: 31 | D48: 43 | E48: 12 | F48: 25
B49: 41 | C49: 10 | D49: 21 | E49: 39 | F49: 50
B50: 49 | C50: 50 | D50: 75 | E50: 41 | F50: 46
B51: 52 | C51: 88 | D51: 74 | E51: 92 | F51: 47
B52: 49 | C52: 38 | D52: 67 | E52: 21 | F52: 60
B53: 46 | C53: 31 | D53: 51 | E53: 52 | F53: 62
B54: 59 | C54: 51 | D54: 51 | E54: 41 | F54: 35
B55: 8 | C55: 74 | D55: 52 | E55: 53 | F55: 46
B56: 55 | C56: 65 | D56: 45 | E56: 46 | F56: 74
B57: 44 | C57: 54 | D57: 33 | E57: 56 | F57: 59
B58: 55 | C58: 56 | D58: 47 | E58: 52 | F58: 33
B59: 11 | C59: 50 | D59: 70 | E59: 61 | F59: 57
B60: 49 | C60: 57 | D60: 46 | E60: 68 | F60: 59
B61: 11 | C61: 40 | D61: 50 | E61: 52 | F61: 62
B62: 68 | C62: 59 | D62: 28 | E62: 25 | F62: 49
B63: 55 | C63: 68 | D63: 53 | E63: 51 | F63: 63
B64: 44 | C64: 28 | D64: 70 | E64: 25 | F64: 38
B65: 23 | C65: 72 | D65: 70 | E65: 48 | F65: 70
B66: 44 | C66: 74 | D66: 23 | E66: 85 | F66: 66
B67: 46 | C67: 54 | D67: 68 | E67: 51 | F67: 51
B68: 46 | C68: 58 | D68: 40 | E68: 61 | F68: 25
B69: 50 | C69: 67 | D69: 65 | E69: 53 | F69: 69
B70: 48 | C70: 47 | D70: 13 | E70: 68 | F70: 50
B71: 14 | C71: 52 | D71: 70 | E71: 59 | F71: 65
B72: =CHOOSE(RANDBETWEEN(1,5),RANDBETWEEN(RANDBETWEEN(0,50),RANDBETWEEN(51,100)),RANDBETWEEN(RANDBETWEEN(30,50),RANDBETWEEN(51,70)),RANDBETWEEN(RANDBETWEEN(40,50),RANDBETWEEN(51,60)),RANDBETWEEN(RANDBETWEEN(30,70),RANDBETWEEN(71,85)),RANDBETWEEN(RANDBETWEEN(0,25),RANDBETWEEN(26,85))) -> 48 | C72: 71 | D72: 24 | E72: 46 | F72: 40
B73: 55 | C73: 41 | D73: 40 | E73: 50 | F73: 48
B74: 46 | C74: 41 | D74: 68 | E74: 47 | F74: 51
B75: 48 | C75: 50 | D75: 42 | E75: 41 | F75: 55
B76: 28 | C76: 52 | D76: 51 | E76: 34 | F76: 50
B77: 63 | C77: 66 | D77: 47 | E77: 45 | F77: 52
B78: 29 | C78: 47 | D78: 63 | E78: 38 | F78: 52
B79: 32 | C79: 45 | D79: 46 | E79: 44 | F79: 46
B80: 26 | C80: 48 | D80: 2 | E80: 52 | F80: 45
B81: 66 | C81: 61 | D81: 69 | E81: 22 | F81: 47
B82: 65 | C82: 52 | D82: 58 | E82: 73 | F82: 60
B83: 72 | C83: 73 | D83: 42 | E83: 56 | F83: 39
B84: 38 | C84: 29 | D84: 21 | E84: 62 | F84: 38
B85: 44 | C85: 29 | D85: 26 | E85: 24 | F85: 12
B86: 39 | C86: 77 | D86: 59 | E86: 55 | F86: 50
B87: 63 | C87: 78 | D87: 59 | E87: 58 | F87: 25
B88: 45 | C88: 79 | D88: 49 | E88: 47 | F88: 51
B89: 47 | C89: 35 | D89: 75 | E89: 64 | F89: 55
B90: 42 | C90: 54 | D90: 53 | E90: 58 | F90: 56
B91: 81 | C91: 40 | D91: 54 | E91: 17 | F91: 48
B92: 36 | C92: 43 | D92: 44 | E92: 52 | F92: 53
B93: 59 | C93: 50 | D93: 60 | E93: 64 | F93: 45
B94: 59 | C94: 44 | D94: 50 | E94: 73 | F94: 45
B95: 45 | C95: 71 | D95: 55 | E95: 43 | F95: 43
B96: 63 | C96: 48 | D96: 75 | E96: 55 | F96: 70
B97: 54 | C97: 77 | D97: 63 | E97: 25 | F97: 53
B98: 48 | C98: 26 | D98: 52 | E98: 56 | F98: 44
B99: 60 | C99: 72 | D99: 50 | E99: 24 | F99: 55
B100: 33 | C100: 38 | D100: 53 | E100: 63 | F100: 58
B101: 61 | C101: 55 | D101: 49 | E101: 71 | F101: 72
B102: 57 | C102: 49 | D102: 41 | E102: 62 | F102: 50
B103: 73 | C103: 54 | D103: 53 | E103: 56 | F103: 60
B104: 72 | C104: 69 | D104: 54 | E104: 72 | F104: 41
B105: 52 | C105: 67 | D105: 37 | E105: 54 | F105: 75
B106: 38 | C106: 39 | D106: 48 | E106: 54 | F106: 67
B107: 33 | C107: 59 | D107: 52 | E107: 20 | F107: 68
B108: 58 | C108: 68 | D108: 29 | E108: 46 | F108: 45
B109: 44 | C109: 69 | D109: 59 | E109: 47 | F109: 31
B110: 53 | C110: 22 | D110: 66 | E110: 53 | F110: 46
B111: 42 | C111: 50 | D111: 39 | E111: 60 | F111: 49
B112: 52 | C112: 64 | D112: 54 | E112: 15 | F112: 53
B113: 49 | C113: 30 | D113: 73 | E113: 79 | F113: 48
B114: 57 | C114: 82 | D114: 39 | E114: 33 | F114: 73
B115: 53 | C115: 43 | D115: 80 | E115: 50 | F115: 60
B116: 70 | C116: 50 | D116: 48 | E116: 36 | F116: 49
B117: 31 | C117: 53 | D117: 55 | E117: 49 | F117: 69
B118: 76 | C118: 40 | D118: 49 | E118: 50 | F118: 68
B119: 58 | C119: 65 | D119: 42 | E119: 74 | F119: 38
B120: 47 | C120: 59 | D120: 17 | E120: 61 | F120: 7
B121: 55 | C121: 47 | D121: 50 | E121: 71 | F121: 48
B122: 49 | C122: 54 | D122: 45 | E122: 50 | F122: 59
B123: =CHOOSE(RANDBETWEEN(1,5),RANDBETWEEN(RANDBETWEEN(0,50),RANDBETWEEN(51,100)),RANDBETWEEN(RANDBETWEEN(30,50),RANDBETWEEN(51,70)),RANDBETWEEN(RANDBETWEEN(40,50),RANDBETWEEN(51,60)),RANDBETWEEN(RANDBETWEEN(30,70),RANDBETWEEN(71,85)),RANDBETWEEN(RANDBETWEEN(0,25),RANDBETWEEN(26,85))) -> 63 | C123: 42 | D123: 45 | E123: 59 | F123: 57
B124: 57 | C124: 49 | D124: 47 | E124: 4 | F124: 60
B125: 59 | C125: 65 | D125: 33 | E125: 42 | F125: 49
B126: 55 | C126: 67 | D126: 46 | E126: 47 | F126: 66
B127: 50 | C127: 47 | D127: 52 | E127: 41 | F127: 21
B128: 77 | C128: 68 | D128: 66 | E128: 47 | F128: 69
B129: 31 | C129: 45 | D129: 79 | E129: 65 | F129: 44
B130: 53 | C130: 66 | D130: 54 | E130: 21 | F130: 46
B131: 36 | C131: 78 | D131: 21 | E131: 56 | F131: 41
B132: 41 | C132: 57 | D132: 51 | E132: 45 | F132: 78
B133: 54 | C133: 48 | D133: 49 | E133: 37 | F133: 18
B134: 43 | C134: 57 | D134: 75 | E134: 50 | F134: 51
B135: 49 | C135: 55 | D135: 23 | E135: 68 | F135: 64
B136: 49 | C136: 51 | D136: 50 | E136: 62 | F136: 49
B137: 61 | C137: 24 | D137: 30 | E137: 71 | F137: 73
B138: 68 | C138: 76 | D138: 38 | E138: 52 | F138: 53
B139: 44 | C139: 41 | D139: 66 | E139: 52 | F139: 51
B140: 58 | C140: 79 | D140: 51 | E140: 42 | F140: 65
B141: 66 | C141: 46 | D141: 15 | E141: 37 | F141: 49
B142: 32 | C142: 73 | D142: 75 | E142: 67 | F142: 52
B143: 78 | C143: 61 | D143: 53 | E143: 63 | F143: 75
B144: 46 | C144: 56 | D144: 57 | E144: 62 | F144: 49
B145: 57 | C145: 32 | D145: 49 | E145: 34 | F145: 42
B146: 57 | C146: 30 | D146: 24 | E146: 38 | F146: 51
B147: 70 | C147: 52 | D147: 48 | E147: 4 | F147: 64
B148: 74 | C148: 53 | D148: 70 | E148: 54 | F148: 44
B149: 34 | C149: 23 | D149: 44 | E149: 46 | F149: 51
B150: 15 | C150: 53 | D150: 61 | E150: 16 | F150: 39
B151: 76 | C151: 7 | D151: 57 | E151: 34 | F151: 66
B152: 48 | C152: 48 | D152: 49 | E152: 74 | F152: 50
B153: 42 | C153: 42 | D153: 25 | E153: 73 | F153: 53
B154: 50 | C154: 41 | D154: 35 | E154: 50 | F154: 54
B155: 34 | C155: 49 | D155: 45 | E155: 21 | F155: 73
B156: 47 | C156: 54 | D156: 34 | E156: 40 | F156: 46
B157: 50 | C157: 18 | D157: 27 | E157: 17 | F157: 51
B158: 72 | C158: 48 | D158: 78 | E158: 51 | F158: 51
B159: 45 | C159: 61 | D159: 68 | E159: 43 | F159: 57
B160: 45 | C160: 61 | D160: 61 | E160: 3 | F160: 56
B161: 53 | C161: 50 | D161: 6 | E161: 53 | F161: 44
B162: 64 | C162: 59 | D162: 16 | E162: 21 | F162: 62
B163: 48 | C163: 57 | D163: 66 | E163: 56 | F163: 57
B164: 45 | C164: 47 | D164: 53 | E164: 52 | F164: 37
B165: 53 | C165: 89 | D165: 17 | E165: 40 | F165: 50
B166: 69 | C166: 75 | D166: 65 | E166: 61 | F166: 44
B167: 49 | C167: 58 | D167: 81 | E167: 10 | F167: 46
B168: 60 | C168: 10 | D168: 49 | E168: 19 | F168: 67
B169: 42 | C169: 39 | D169: 46 | E169: 32 | F169: 80
B170: 42 | C170: 52 | D170: 74 | E170: 69 | F170: 47
B171: 74 | C171: 50 | D171: 82 | E171: 38 | F171: 46
B172: 69 | C172: 23 | D172: 51 | E172: 49 | F172: 54
B173: 62 | C173: 73 | D173: 52 | E173: 55 | F173: 46
B174: =CHOOSE(RANDBETWEEN(1,5),RANDBETWEEN(RANDBETWEEN(0,50),RANDBETWEEN(51,100)),RANDBETWEEN(RANDBETWEEN(30,50),RANDBETWEEN(51,70)),RANDBETWEEN(RANDBETWEEN(40,50),RANDBETWEEN(51,60)),RANDBETWEEN(RANDBETWEEN(30,70),RANDBETWEEN(71,85)),RANDBETWEEN(RANDBETWEEN(0,25),RANDBETWEEN(26,85))) -> 20 | C174: 55 | D174: 25 | E174: 70 | F174: 55
B175: 65 | C175: 34 | D175: 65 | E175: 49 | F175: 68
B176: 48 | C176: 49 | D176: 47 | E176: 51 | F176: 48
B177: 14 | C177: 49 | D177: 45 | E177: 57 | F177: 38
B178: 51 | C178: 65 | D178: 24 | E178: 46 | F178: 46
B179: 74 | C179: 18 | D179: 52 | E179: 54 | F179: 37
B180: 18 | C180: 14 | D180: 48 | E180: 41 | F180: 49
B181: 58 | C181: 64 | D181: 45 | E181: 75 | F181: 59
B182: 62 | C182: 77 | D182: 52 | E182: 52 | F182: 52
B183: 48 | C183: 51 | D183: 54 | E183: 48 | F183: 40
B184: 24 | C184: 44 | D184: 45 | E184: 40 | F184: 64
B185: 21 | C185: 40 | D185: 45 | E185: 49 | F185: 55
B186: 53 | C186: 75 | D186: 54 | E186: 59 | F186: 59
B187: 76 | C187: 55 | D187: 35 | E187: 48 | F187: 19
B188: 57 | C188: 50 | D188: 50 | E188: 52 | F188: 54
B189: 58 | C189: 62 | D189: 53 | E189: 28 | F189: 28
B190: 61 | C190: 36 | D190: 46 | E190: 50 | F190: 72
B191: 62 | C191: 6 | D191: 36 | E191: 50 | F191: 47
B192: 9 | C192: 47 | D192: 47 | E192: 55 | F192: 66
B193: 74 | C193: 45 | D193: 48 | E193: 57 | F193: 37
B194: 64 | C194: 24 | D194: 60 | E194: 13 | F194: 64
B195: 66 | C195: 32 | D195: 38 | E195: 54 | F195: 70
B196: 51 | C196: 48 | D196: 55 | E196: 51 | F196: 54
B197: 38 | C197: 73 | D197: 47 | E197: 46 | F197: 52
B198: 51 | C198: 47 | D198: 50 | E198: 49 | F198: 55
B199: 64 | C199: 67 | D199: 52 | E199: 66 | F199: 51
B200: 39 | C200: 31 | D200: 67 | E200: 52 | F200: 23
B201: 68 | C201: 39 | D201: 46 | E201: 28 | F201: 49
... 189 more rows

Sheet Weighted Mean
A1: Test Scores | C1: =A1 -> Test Scores | D1: Weight | E1: =D1&"*"&C1 -> Weight*Test Scores | G1: SUMPRODUCT: 1) Multiplies 2 columns, then 2) adds
A2: 27 | C2: 15 | D2: =COUNTIF($A$2:$A$20,C2) -> 1 | G2: Step 1:
A3: 27 | C3: 18 | D3: 1 | G3: =C2&" * "&D2&" = " -> 15 * 1 = | H3: =D2*C2 -> 15
A4: 15 | C4: 19 | D4: 1 | G4: 18 * 1 = | H4: =D3*C3 -> 18
A5: 18 | C5: 25 | D5: 2 | G5: 19 * 1 = | H5: 19
A6: 27 | C6: 26 | D6: 4 | G6: 25 * 2 = | H6: 50
A7: 28 | C7: 27 | D7: 4 | G7: 26 * 4 = | H7: 104
A8: 27 | C8: 28 | D8: 4 | G8: 27 * 4 = | H8: 108
A9: 25 | C9: 30 | D9: 1 | G9: 28 * 4 = | H9: 112
A10: 19 | C10: 31 | D10: 1 | G10: 30 * 1 = | H10: 30
A11: 25 | G11: 31 * 1 = | H11: 31
A12: 28
A13: 26 | C13: Weighted Mean | G13: Step 2: | H13: =SUM(H3:H11) -> 487
A14: 28 | C14: Weighted Mean | E14: ** SUMPRODUCT is specifically designed to multiply and then add two columns that are the same size.
A15: 26
A16: 28 | C16: Mean From Original Data
A17: 31
A18: 30
A19: 26
A20: 26

Sheet Weighted Mean (an)
A1: Test Scores | C1: =A1 -> Test Scores | D1: Weight | E1: =D1&"*"&C1 -> Weight*Test Scores | G1: SUMPRODUCT: 1) Multiplies 2 columns, then 2) adds
A2: 27 | C2: 15 | D2: =COUNTIF($A$2:$A$20,C2) -> 1 | E2: =C2*D2 -> 15 | G2: Step 1:
A3: 27 | C3: 18 | D3: 1 | E3: 18 | G3: =C2&" * "&D2&" = " -> 15 * 1 = | H3: =D2*C2 -> 15
A4: 15 | C4: 19 | D4: 1 | E4: 19 | G4: 18 * 1 = | H4: =D3*C3 -> 18
A5: 18 | C5: 25 | D5: 2 | E5: 50 | G5: 19 * 1 = | H5: 19
A6: 27 | C6: 26 | D6: 4 | E6: 104 | G6: 25 * 2 = | H6: 50
A7: 28 | C7: 27 | D7: 4 | E7: 108 | G7: 26 * 4 = | H7: 104
A8: 27 | C8: 28 | D8: 4 | E8: =C8*D8 -> 112 | G8: 27 * 4 = | H8: 108
A9: 25 | C9: 30 | D9: 1 | E9: 30 | G9: 28 * 4 = | H9: 112
A10: 19 | C10: 31 | D10: 1 | E10: 31 | G10: 30 * 1 = | H10: 30
A11: 25 | D11: =SUM(D2:D10) -> 19 | E11: =SUM(E2:E10) -> 487 | G11: 31 * 1 = | H11: 31
A12: 28
A13: 26 | C13: Weighted Mean | D13: =E11/D11 -> 25.63157895 | G13: Step 2: | H13: =SUM(H3:H11) -> 487
A14: 28 | C14: Weighted Mean | D14: =SUMPRODUCT(C2:C10,D2:D10)/SUM(D2:D10) -> 25.63157895 | E14: ** SUMPRODUCT is specifically designed to multiply and then add two columns that are the same size.
A15: 26
A16: 28 | C16: Mean From Original Data | D16: =AVERAGE(A2:A20) -> 25.63157895
A17: 31
A18: 30
A19: 26
A20: 26

Sheet EstMeanGroupedData
A1: Age | E1: Quantitative: Integer, COUNTIFS | P1: 19
A2: 21 | C2: Lower | D2: Upper | E2: Age | F2: Frequency | H2: Midpoint | N2: Min
A3: 57 | C3: 0 | D3: =C3+$P$1 -> 19 | E3: =C3&" - "&D3 -> 0 - 19 | F3: =COUNTIFS($A$2:$A$201,">="&C3,$A$2:$A$201,"<="&D3) -> 13 | N3: =MIN($A$2:$A$201) -> 18
A4: 25 | C4: =D3+1 -> 20 | D4: =C4+$P$1 -> 39 | E4: =C4&" - "&D4 -> 20 - 39 | F4: =COUNTIFS($A$2:$A$201,">="&C4,$A$2:$A$201,"<="&D4) -> 110 | N4: Max
A5: 38 | C5: =D4+1 -> 40 | D5: =C5+$P$1 -> 59 | E5: =C5&" - "&D5 -> 40 - 59 | F5: =COUNTIFS($A$2:$A$201,">="&C5,$A$2:$A$201,"<="&D5) -> 56 | N5: =MAX($A$2:$A$201) -> 65
A6: 22 | C6: =D5+1 -> 60 | D6: =C6+$P$1 -> 79 | E6: =C6&" - "&D6 -> 60 - 79 | F6: =COUNTIFS($A$2:$A$201,">="&C6,$A$2:$A$201,"<="&D6) -> 21
A7: 29 | E7: Total | F7: =SUM(F3:F6) -> 200
A8: 18
A9: 64 | E9: Average Age | F9: =AVERAGE(A2:A201) -> 37.08
A10: 27
A11: 22 | E11: Average Age from Grouped Data
A12: 39 | E12: ** will not be the same as actual mean because we are
A13: 61 | E13: estimating the data points when we use midpoint for the
A14: 18 | E14: unknown data points
A15: 22
A16: 52
A17: 22
A18: 18
A19: 55
A20: 20
A21: 42
A22: 30
A23: 64
A24: 63
A25: 41
A26: 21
A27: 63
A28: 54
A29: 18
A30: 26
A31: 59
A32: 30
A33: 64
A34: 30
A35: 41
A36: 23
A37: 52
A38: 18
A39: 32
A40: 22
A41: 29
A42: 25
A43: 63
A44: 26
A45: 31
A46: 23
A47: 42
A48: 28
A49: 23
A50: 19
A51: 37
A52: 38
A53: 50
A54: 26
A55: 33
A56: 59
A57: 32
A58: 27
A59: 54
A60: 63
A61: 48
A62: 29
A63: 38
A64: 24
A65: 51
A66: 25
A67: 65
A68: 35
A69: 35
A70: 21
A71: 47
A72: 62
A73: 63
A74: 23
A75: 59
A76: 48
A77: 57
A78: 19
A79: 48
A80: 21
A81: 40
A82: 25
A83: 59
A84: 57
A85: 56
A86: 19
A87: 54
A88: 65
A89: 25
A90: 30
A91: 57
A92: 43
A93: 44
A94: 21
A95: 20
A96: 49
A97: 37
A98: 26
A99: 62
A100: 38
A101: 55
A102: 24
A103: 30
A104: 39
A105: 59
A106: 26
A107: 33
A108: 20
A109: 18
A110: 19
A111: 61
A112: 39
A113: 52
A114: 20
A115: 50
A116: 29
A117: 55
A118: 18
A119: 39
A120: 35
A121: 38
A122: 20
A123: 60
A124: 61
A125: 62
A126: 21
A127: 40
A128: 25
A129: 50
A130: 24
A131: 28
A132: 22
A133: 22
A134: 27
A135: 54
A136: 25
A137: 25
A138: 30
A139: 59
A140: 51
A141: 38
A142: 28
A143: 30
A144: 43
A145: 42
A146: 24
A147: 47
A148: 23
A149: 59
A150: 22
A151: 27
A152: 65
A153: 27
A154: 27
A155: 28
A156: 22
A157: 42
A158: 25
A159: 41
A160: 46
A161: 41
A162: 29
A163: 50
A164: 50
A165: 34
A166: 24
A167: 29
A168: 35
A169: 24
A170: 23
A171: 31
A172: 24
A173: 30
A174: 22
A175: 43
A176: 55
A177: 38
A178: 28
A179: 30
A180: 35
A181: 41
A182: 28
A183: 65
A184: 20
A185: 39
A186: 19
A187: 64
A188: 42
A189: 24
A190: 24
A191: 18
A192: 36
A193: 61
A194: 22
A195: 55
A196: 27
A197: 49
A198: 29
A199: 33
A200: 52
... 1 more rows

Sheet EstMeanGroupedData (an)
A1: Age | E1: Quantitative: Integer, COUNTIFS | P1: 19
A2: 21 | C2: Lower | D2: Upper | E2: Age | F2: Frequency | H2: Midpoint | N2: Min
A3: 57 | C3: 0 | D3: =C3+$P$1 -> 19 | E3: =C3&" - "&D3 -> 0 - 19 | F3: =COUNTIFS($A$2:$A$201,">="&C3,$A$2:$A$201,"<="&D3) -> 13 | H3: =AVERAGE(C3:D3) -> 9.5 | N3: =MIN($A$2:$A$201) -> 18
A4: 25 | C4: =D3+1 -> 20 | D4: =C4+$P$1 -> 39 | E4: =C4&" - "&D4 -> 20 - 39 | F4: =COUNTIFS($A$2:$A$201,">="&C4,$A$2:$A$201,"<="&D4) -> 110 | H4: =AVERAGE(C4:D4) -> 29.5 | N4: Max
A5: 38 | C5: =D4+1 -> 40 | D5: =C5+$P$1 -> 59 | E5: =C5&" - "&D5 -> 40 - 59 | F5: =COUNTIFS($A$2:$A$201,">="&C5,$A$2:$A$201,"<="&D5) -> 56 | H5: =AVERAGE(C5:D5) -> 49.5 | N5: =MAX($A$2:$A$201) -> 65
A6: 22 | C6: =D5+1 -> 60 | D6: =C6+$P$1 -> 79 | E6: =C6&" - "&D6 -> 60 - 79 | F6: =COUNTIFS($A$2:$A$201,">="&C6,$A$2:$A$201,"<="&D6) -> 21 | H6: =AVERAGE(C6:D6) -> 69.5
A7: 29 | E7: Total | F7: =SUM(F3:F6) -> 200
A8: 18
A9: 64 | E9: Average Age | F9: =AVERAGE(A2:A201) -> 37.08
A10: 27
A11: 22 | E11: Average Age from Grouped Data | F11: =SUMPRODUCT(F3:F6,H3:H6)/F7 -> 38
A12: 39 | E12: ** will not be the same as actual mean because we are
A13: 61 | E13: estimating the data points when we use midpoint for the
A14: 18 | E14: unknown data points
A15: 22
A16: 52
A17: 22
A18: 18
A19: 55
A20: 20
A21: 42
A22: 30
A23: 64
A24: 63
A25: 41
A26: 21
A27: 63
A28: 54
A29: 18
A30: 26
A31: 59
A32: 30
A33: 64
A34: 30
A35: 41
A36: 23
A37: 52
A38: 18
A39: 32
A40: 22
A41: 29
A42: 25
A43: 63
A44: 26
A45: 31
A46: 23
A47: 42
A48: 28
A49: 23
A50: 19
A51: 37
A52: 38
A53: 50
A54: 26
A55: 33
A56: 59
A57: 32
A58: 27
A59: 54
A60: 63
A61: 48
A62: 29
A63: 38
A64: 24
A65: 51
A66: 25
A67: 65
A68: 35
A69: 35
A70: 21
A71: 47
A72: 62
A73: 63
A74: 23
A75: 59
A76: 48
A77: 57
A78: 19
A79: 48
A80: 21
A81: 40
A82: 25
A83: 59
A84: 57
A85: 56
A86: 19
A87: 54
A88: 65
A89: 25
A90: 30
A91: 57
A92: 43
A93: 44
A94: 21
A95: 20
A96: 49
A97: 37
A98: 26
A99: 62
A100: 38
A101: 55
A102: 24
A103: 30
A104: 39
A105: 59
A106: 26
A107: 33
A108: 20
A109: 18
A110: 19
A111: 61
A112: 39
A113: 52
A114: 20
A115: 50
A116: 29
A117: 55
A118: 18
A119: 39
A120: 35
A121: 38
A122: 20
A123: 60
A124: 61
A125: 62
A126: 21
A127: 40
A128: 25
A129: 50
A130: 24
A131: 28
A132: 22
A133: 22
A134: 27
A135: 54
A136: 25
A137: 25
A138: 30
A139: 59
A140: 51
A141: 38
A142: 28
A143: 30
A144: 43
A145: 42
A146: 24
A147: 47
A148: 23
A149: 59
A150: 22
A151: 27
A152: 65
A153: 27
A154: 27
A155: 28
A156: 22
A157: 42
A158: 25
A159: 41
A160: 46
A161: 41
A162: 29
A163: 50
A164: 50
A165: 34
A166: 24
A167: 29
A168: 35
A169: 24
A170: 23
A171: 31
A172: 24
A173: 30
A174: 22
A175: 43
A176: 55
A177: 38
A178: 28
A179: 30
A180: 35
A181: 41
A182: 28
A183: 65
A184: 20
A185: 39
A186: 19
A187: 64
A188: 42
A189: 24
A190: 24
A191: 18
A192: 36
A193: 61
A194: 22
A195: 55
A196: 27
A197: 49
A198: 29
A199: 33
A200: 52
... 1 more rows

Sheet Geomean
A1: Percentage increase for stock value each year | D1: Geometric mean 1: Use if you are averaging percentage change over time for the % change + 1 =
A2: % change | B2: =A2&" + 1" -> % change + 1 | D2: Count
A3: 0.15 | D3: Formula | F3: (GM1 = X1*X2*…Xn)^(1/n)-1
A4: 0.12 | D4: GEOMEAN | F4: GEOMEAN function
A5: 0.13 | D5: Mean > GM
A6: 0.16
A7: 0.21 | D7: Geometric mean 2: Use if you have begin number and end number and you know the number of periods
A8: 0.185 | E8: Year | F8: Stock Price (Split Adj)
A9: 0.19 | D9: ="Whole Foods Stock Price "&E9 -> Whole Foods Stock Price 1992 | E9: 1992 | F9: 6.75
A10: 0.02 | D10: ="Whole Foods Stock Price "&E10 -> Whole Foods Stock Price 2005 | E10: 2005 | F10: 153.94
A11: 0.05
E12: Periods = n
E13: GEOMEAN | G13: (End/Beg)^(1/n)-1
E14: check:

Sheet GeomeanAN
A1: Percentage increase for stock value each year | D1: Geometric mean 1: Use if you are averaging percentage change over time for the % change + 1 =
A2: % change | B2: =A2&" + 1" -> % change + 1 | D2: Count | E2: =COUNT(B3:B11) -> 9
A3: 0.15 | B3: =1+A3 -> 1.15 | D3: Formula | E3: =PRODUCT(B3:B11)^(1/E2)-1 -> 0.1333546417 | F3: (GM1 = X1*X2*…Xn)^(1/n)-1
A4: 0.12 | B4: =1+A4 -> 1.12 | D4: GEOMEAN | E4: =GEOMEAN(B3:B11)-1 -> 0.1333546417 | F4: GEOMEAN function
A5: 0.13 | B5: 1.13 | D5: Mean > GM | E5: =AVERAGE(A3:A11) -> 0.135
A6: 0.16 | B6: 1.16
A7: 0.21 | B7: 1.21 | D7: Geometric mean 2: Use if you have begin number and end number and you know the number of periods
A8: 0.185 | B8: 1.185 | E8: Year | F8: Stock Price (Split Adj)
A9: 0.19 | B9: 1.19 | D9: ="Whole Foods Stock Price "&E9 -> Whole Foods Stock Price 1992 | E9: 1992 | F9: 6.75
A10: 0.02 | B10: 1.02 | D10: ="Whole Foods Stock Price "&E10 -> Whole Foods Stock Price 2005 | E10: 2005 | F10: 153.94
A11: 0.05 | B11: 1.05
E12: Periods = n | F12: =E10-E9 -> 13
E13: GEOMEAN | F13: =(F10/F9)^(1/F12)-1 -> 0.2719358505 | G13: (End/Beg)^(1/n)-1
E14: check: | F14: =F9*(1+F13)^F12 -> 153.94

Sheet Trimmed Mean
A1: Remove 5% of smallest and largest values from data set. Then calculate the Mean
D2: trim | E2: 0.05
A3: No | B3: Salaries | D3: n =
A4: 1 | B4: 1020 | D4: # values to drop
A5: 2 | B5: 1030 | D5: Round up to integer
A6: 3 | B6: 2150 | D6: Method 1
A7: 4 | B7: 2861 | D7: Trimmed Mean
A8: 5 | B8: 2864
A9: 6 | B9: 2964
A10: 7 | B10: 2983
A11: 8 | B11: 3087 | D11: Method 2 (Dynamic)
A12: 9 | B12: 3167 | D12: Trimmed Mean | E12: =IF(E5="","",AVERAGE(OFFSET(B4,E5,,E3-E5*2))) -> 
A13: 10 | B13: 3222
A14: 11 | B14: 3234
A15: 12 | B15: 3267
A16: 13 | B16: 3275
A17: 14 | B17: 3283
A18: 15 | B18: 3334
A19: 16 | B19: 3336
A20: 17 | B20: 3337
A21: 18 | B21: 3440
A22: 19 | B22: 3442
A23: 20 | B23: 3480
A24: 21 | B24: 3485
A25: 22 | B25: 3509
A26: 23 | B26: 3546
A27: 24 | B27: 3609
A28: 25 | B28: 3626
A29: 26 | B29: 3628
A30: 27 | B30: 3633
A31: 28 | B31: 3658
A32: 29 | B32: 3796
A33: 30 | B33: 3814
A34: 31 | B34: 3875
A35: 32 | B35: 3901
A36: 33 | B36: 3946
A37: 34 | B37: 5900
A38: 35 | B38: 6200
A39: 36 | B39: 7200
A40: 37 | B40: 8440

Sheet Trimmed MeanAN
A1: Remove 5% of smallest and largest values from data set. Then calculate the Mean
D2: trim | E2: 0.05
A3: No | B3: Salaries | D3: n = | E3: =COUNT(B4:B40) -> 37
A4: 1 | B4: 1020 | D4: # values to drop | E4: =E3*E2 -> 1.85
A5: 2 | B5: 1030 | D5: Round up to integer | E5: =ROUNDUP(E4,0) -> 2
A6: 3 | B6: 2150 | D6: Method 1
A7: 4 | B7: 2861 | D7: Trimmed Mean | E7: =AVERAGE(B6:B38) -> 3540.969697
A8: 5 | B8: 2864
A9: 6 | B9: 2964
A10: 7 | B10: 2983
A11: 8 | B11: 3087 | D11: Method 2 (Dynamic)
A12: 9 | B12: 3167 | D12: Trimmed Mean | E12: =AVERAGE(OFFSET(B4,E5,,E3-E5*2)) -> 3540.969697
A13: 10 | B13: 3222
A14: 11 | B14: 3234
A15: 12 | B15: 3267
A16: 13 | B16: 3275
A17: 14 | B17: 3283
A18: 15 | B18: 3334
A19: 16 | B19: 3336
A20: 17 | B20: 3337
A21: 18 | B21: 3440
A22: 19 | B22: 3442
A23: 20 | B23: 3480
A24: 21 | B24: 3485
A25: 22 | B25: 3509
A26: 23 | B26: 3546
A27: 24 | B27: 3609
A28: 25 | B28: 3626
A29: 26 | B29: 3628
A30: 27 | B30: 3633
A31: 28 | B31: 3658
A32: 29 | B32: 3796
A33: 30 | B33: 3814
A34: 31 | B34: 3875
A35: 32 | B35: 3901
A36: 33 | B36: 3946
A37: 34 | B37: 5900
A38: 35 | B38: 6200
A39: 36 | B39: 7200
A40: 37 | B40: 8440

Sheet V(1)
A1: Based on Average Returns, which stock do you prefer?
A3: Year | B3: Stock Return A | C3: Stock Return B
A4: 1995 | B4: 0.05 | C4: 0.02
A5: 1996 | B5: 0.1 | C5: 0.04
A6: 1997 | B6: 0.12 | C6: 0.035
A7: 1998 | B7: 0.17 | C7: 0.055
A8: 1999 | B8: 0.19 | C8: 0.04
A9: 2000 | B9: 0.01 | C9: 0.042
A10: 2001 | B10: -0.15 | C10: 0.043
A11: 2002 | B11: -0.03 | C11: 0.047
A12: 2003 | B12: 0.03 | C12: 0.05
A13: 2004 | B13: 0.055 | C13: 0.051
A14: 2005 | B14: 0.1 | C14: 0.03
A15: 2006 | B15: 0.065 | C15: 0.029
A16: 2007 | B16: -0.02 | C16: 0.046
A17: 2008 | B17: -0.22 | C17: 0.049
A18: 2009 | B18: 0.15 | C18: 0.041
A19: Mean

Sheet V(1an)
A1: Based on Average Returns, which stock do you prefer?
A3: Year | B3: Stock Return A | C3: Stock Return B
A4: 1995 | B4: 0.05 | C4: 0.02
A5: 1996 | B5: 0.1 | C5: 0.04
A6: 1997 | B6: 0.12 | C6: 0.035
A7: 1998 | B7: 0.17 | C7: 0.055
A8: 1999 | B8: 0.19 | C8: 0.04
A9: 2000 | B9: 0.01 | C9: 0.042
A10: 2001 | B10: -0.15 | C10: 0.043
A11: 2002 | B11: -0.03 | C11: 0.047
A12: 2003 | B12: 0.03 | C12: 0.05
A13: 2004 | B13: 0.055 | C13: 0.051
A14: 2005 | B14: 0.1 | C14: 0.03
A15: 2006 | B15: 0.065 | C15: 0.029
A16: 2007 | B16: -0.02 | C16: 0.046
A17: 2008 | B17: -0.22 | C17: 0.049
A18: 2009 | B18: 0.15 | C18: 0.041
A19: Mean | B19: =AVERAGE(B4:B18) -> 0.04133333333 | C19: =AVERAGE(C4:C18) -> 0.0412

Sheet V(2)
A1: Based on Average Returns, which stock do you prefer? It is hard to know, without looking at the volatility of past stock returns.
A2: Variability
A3: Dispersion
A4: Spread In Data
A5: How Spread Out Is Data?
A6: Are the Data Points Clustered Around the Mean?
A7: Does the Mean Fairly Represent the Data Points?
A9: Mean | B9: =AVERAGE(B11:B25) -> 0.04133333333 | C9: =AVERAGE(C11:C25) -> 0.0412
A10: Year | B10: Stock Return A | C10: Stock Return B
A11: 1995 | B11: 0.05 | C11: 0.02
A12: 1996 | B12: 0.1 | C12: 0.04
A13: 1997 | B13: 0.12 | C13: 0.035
A14: 1998 | B14: 0.17 | C14: 0.055
A15: 1999 | B15: 0.19 | C15: 0.04
A16: 2000 | B16: 0.01 | C16: 0.042
A17: 2001 | B17: -0.15 | C17: 0.043
A18: 2002 | B18: -0.03 | C18: 0.047
A19: 2003 | B19: 0.03 | C19: 0.05
A20: 2004 | B20: 0.055 | C20: 0.051
A21: 2005 | B21: 0.1 | C21: 0.03
A22: 2006 | B22: 0.065 | C22: 0.029
A23: 2007 | B23: -0.02 | C23: 0.046
A24: 2008 | B24: -0.22 | C24: 0.049
A25: 2009 | B25: 0.15 | C25: 0.041

Sheet V(3)
A1: Variability
A2: Dispersion
A3: Spread In Data
A4: How Spread Out Is Data?
A5: Are the Data Points Clustered Around the Mean?
A6: Does the Mean Fairly Represent the Data Points?
A7: Visually Portray Variability
A8: Create X-Y Scatter Diagram
A9: Go to Design Ribbon, Data Group, Select Data to Add Data Series
C11: X | D11: Mean Stock A | F11: X | G11: Mean Stock B
A12: Mean | C12: =AVERAGE(C15:C29) -> 0.04133333333 | F12: =AVERAGE(F15:F29) -> 0.0412
A14: Year | C14: Stock Return A, X | D14: Stock Returns A | F14: Stock Return B, X | G14: Stock Returns B
A15: 1995 | C15: 0.05 | F15: 0.02
A16: 1996 | C16: 0.1 | F16: 0.04
A17: 1997 | C17: 0.12 | F17: 0.035
A18: 1998 | C18: 0.17 | F18: 0.055
A19: 1999 | C19: 0.19 | F19: 0.04
A20: 2000 | C20: 0.01 | F20: 0.042
A21: 2001 | C21: -0.15 | F21: 0.043
A22: 2002 | C22: -0.03 | F22: 0.047
A23: 2003 | C23: 0.03 | F23: 0.05
A24: 2004 | C24: 0.055 | F24: 0.051
A25: 2005 | C25: 0.1 | F25: 0.03
A26: 2006 | C26: 0.065 | F26: 0.029
A27: 2007 | C27: -0.02 | F27: 0.046
A28: 2008 | C28: -0.22 | F28: 0.049
A29: 2009 | C29: 0.15 | F29: 0.041

Sheet V(3an)
A1: Variability
A2: Dispersion
A3: Spread In Data
A4: How Spread Out Is Data?
A5: Are the Data Points Clustered Around the Mean?
A6: Does the Mean Fairly Represent the Data Points?
A7: Visually Portray Variability
A8: Create X-Y Scatter Diagram
A9: Go to Design Ribbon, Data Group, Select Data to Add Data Series
C11: X | D11: Stock A Mean | F11: X | G11: Stock B Mean
A12: Mean | C12: =AVERAGE(C15:C29) -> 0.04133333333 | D12: 1 | F12: =AVERAGE(F15:F29) -> 0.0412 | G12: 3
A14: Year | C14: Stock Return A, X | D14: Stock Return A | F14: Stock Return B, X | G14: Stock Return B
A15: 1995 | C15: 0.05 | D15: 2 | F15: 0.02 | G15: 4
A16: 1996 | C16: 0.1 | D16: 2 | F16: 0.04 | G16: 4
A17: 1997 | C17: 0.12 | D17: 2 | F17: 0.035 | G17: 4
A18: 1998 | C18: 0.17 | D18: 2 | F18: 0.055 | G18: 4
A19: 1999 | C19: 0.19 | D19: 2 | F19: 0.04 | G19: 4
A20: 2000 | C20: 0.01 | D20: 2 | F20: 0.042 | G20: 4
A21: 2001 | C21: -0.15 | D21: 2 | F21: 0.043 | G21: 4
A22: 2002 | C22: -0.03 | D22: 2 | F22: 0.047 | G22: 4
A23: 2003 | C23: 0.03 | D23: 2 | F23: 0.05 | G23: 4
A24: 2004 | C24: 0.055 | D24: 2 | F24: 0.051 | G24: 4
A25: 2005 | C25: 0.1 | D25: 2 | F25: 0.03 | G25: 4
A26: 2006 | C26: 0.065 | D26: 2 | F26: 0.029 | G26: 4
A27: 2007 | C27: -0.02 | D27: 2 | F27: 0.046 | G27: 4
A28: 2008 | C28: -0.22 | D28: 2 | F28: 0.049 | G28: 4
A29: 2009 | C29: 0.15 | D29: 2 | F29: 0.041 | G29: 4

Sheet V(4)
A1: Variability
A2: Dispersion
A3: Spread In Data
A4: How Spread Out Is Data?
A5: Are the Data Points Clustered Around the Mean?
A6: Does the Mean Fairly Represent the Data Points?
A8: Mean | B8: =AVERAGE(B10:B24) -> 0.04133333333 | C8: =AVERAGE(C10:C24) -> 0.0412 | E8: Range
A9: Year | B9: Stock Return A | C9: Stock Return B | E9: Max - Min
A10: 1995 | B10: 0.05 | C10: 0.02 | E10: Simple to calculate. It is very sensitive to the smallest and largest data values (extreme values).
A11: 1996 | B11: 0.1 | C11: 0.04
A12: 1997 | B12: 0.12 | C12: 0.035 | F12: Stock Return A | G12: Stock Return B
A13: 1998 | B13: 0.17 | C13: 0.055 | E13: Max
A14: 1999 | B14: 0.19 | C14: 0.04 | E14: Min
A15: 2000 | B15: 0.01 | C15: 0.042 | E15: Range
A16: 2001 | B16: -0.15 | C16: 0.043
A17: 2002 | B17: -0.03 | C17: 0.047 | E17: Interquartile Range
A18: 2003 | B18: 0.03 | C18: 0.05 | E18: Quartile 3 - Quartile 1
A19: 2004 | B19: 0.055 | C19: 0.051 | E19: The range for the middle 50% of the data. It overcomes the sensitivity to extreme data values.
A20: 2005 | B20: 0.1 | C20: 0.03
A21: 2006 | B21: 0.065 | C21: 0.029 | E21: ="Quartile "&H21 -> Quartile 1 | H21: 1
A22: 2007 | B22: -0.02 | C22: 0.046 | E22: ="Quartile "&H22 -> Quartile 3 | H22: 3
A23: 2008 | B23: -0.22 | C23: 0.049 | E23: Interquartile Range
A24: 2009 | B24: 0.15 | C24: 0.041

Sheet V(4an)
A1: Variability
A2: Dispersion
A3: Spread In Data
A4: How Spread Out Is Data?
A5: Are the Data Points Clustered Around the Mean?
A6: Does the Mean Fairly Represent the Data Points?
A8: Mean | B8: =AVERAGE(B10:B24) -> 0.04133333333 | C8: =AVERAGE(C10:C24) -> 0.0412 | E8: Range
A9: Year | B9: Stock Return A | C9: Stock Return B | E9: Max - Min
A10: 1995 | B10: 0.05 | C10: 0.02 | E10: Simple to calculate. It is very sensitive to the smallest and largest data values (extreme values).
A11: 1996 | B11: 0.1 | C11: 0.04
A12: 1997 | B12: 0.12 | C12: 0.035 | F12: Stock Return A | G12: Stock Return B
A13: 1998 | B13: 0.17 | C13: 0.055 | E13: Max | F13: =MAX(B10:B24) -> 0.19 | G13: =MAX(C10:C24) -> 0.055
A14: 1999 | B14: 0.19 | C14: 0.04 | E14: Min | F14: =MIN(B10:B24) -> -0.22 | G14: =MIN(C10:C24) -> 0.02
A15: 2000 | B15: 0.01 | C15: 0.042 | E15: Range | F15: =F13-F14 -> 0.41 | G15: =G13-G14 -> 0.035
A16: 2001 | B16: -0.15 | C16: 0.043
A17: 2002 | B17: -0.03 | C17: 0.047 | E17: Interquartile Range
A18: 2003 | B18: 0.03 | C18: 0.05 | E18: Quartile 3 - Quartile 1
A19: 2004 | B19: 0.055 | C19: 0.051 | E19: The range for the middle 50% of the data. It overcomes the sensitivity to extreme data values.
A20: 2005 | B20: 0.1 | C20: 0.03
A21: 2006 | B21: 0.065 | C21: 0.029 | E21: ="Quartile "&H21 -> Quartile 1 | F21: =_xlfn.QUARTILE.INC(B$10:B$24,$H21) -> -0.005 | G21: =_xlfn.QUARTILE.INC(C$10:C$24,$H21) -> 0.0375 | H21: 1
A22: 2007 | B22: -0.02 | C22: 0.046 | E22: ="Quartile "&H22 -> Quartile 3 | F22: =_xlfn.QUARTILE.INC(B$10:B$24,$H22) -> 0.11 | G22: =_xlfn.QUARTILE.INC(C$10:C$24,$H22) -> 0.048 | H22: 3
A23: 2008 | B23: -0.22 | C23: 0.049 | E23: Interquartile Range | F23: =F22-F21 -> 0.115 | G23: =G22-G21 -> 0.0105
A24: 2009 | B24: 0.15 | C24: 0.041

Sheet V(5)
A1: Deviation
A2: How far one datum is from the mean
A3: Sample Standard Deviation
A4: A Numerical Measure that says how much variability there is in the data points.
A5: Standard Deviation Is Like An Average Of The Deviations
A6: Standard Deviation tells us how fairly the mean represents its data points
A7: Standard Deviation tells us how clustered the data points are around the mean.
A9: Based on Average Returns, which stock do you prefer? It is hard to know, without looking at the volitility of past stock returns.
A10: Count
A11: Count -1 | F11: Sample data divided by just the count underestimates
A12: Mean = Xbar | F12: What minus one does: 10/5 = 2, but 10/(5-1) = 2.5
A13: Year | B13: Stock Return A | C13: Deviation | D13: Deviation ^2 | E13: Stock Return B | F13: Deviation | G13: Deviation ^2
A14: 1995 | B14: 0.05 | E14: 0.02
A15: 1996 | B15: 0.1 | E15: 0.04
A16: 1997 | B16: 0.12 | E16: 0.035
A17: 1998 | B17: 0.17 | E17: 0.055
A18: 1999 | B18: 0.19 | E18: 0.04
A19: 2000 | B19: 0.01 | E19: 0.042
A20: 2001 | B20: -0.15 | E20: 0.043
A21: 2002 | B21: -0.03 | E21: 0.047
A22: 2003 | B22: 0.03 | E22: 0.05
A23: 2004 | B23: 0.055 | E23: 0.051
A24: 2005 | B24: 0.1 | E24: 0.03
A25: 2006 | B25: 0.065 | E25: 0.029
A26: 2007 | B26: -0.02 | E26: 0.046
A27: 2008 | B27: -0.22 | E27: 0.049
A28: 2009 | B28: 0.15 | E28: 0.041
B29: Total
B31: Sample Variance = s2 | H31: Units are squared
B32: Sample Standard Deviation = s | H32: Square root to get back to same unit
H33: STDEV.S (Standard Deviation for Sample)
H34: The sample SD, s, is a point estimator of the population SD, sigma σ
H35: s = Numerical Measure of Risk of Stock (Volitility)
H36: Which mean more fairly represnets its data points?

Sheet VariabilityNotesxx (hidden)
A1: Measures of Variability (Dispersion)
A2: How Spread Out Is The Data?
A3: Does the mean fairly represent the data? Are the data clustered around the mean, or not?
A5: Range | B5: Max - Min
B6: Simple to calculate. It is very sensitive to the smallest and largest data values (extreme values).
A7: Interquartile Range | B7: Quartile 3 - Quartile 1
B8: The range for the middle 50% of the data. It overcomes the sensitivity to extreme data values.
A9: Deviation | B9: How far one datum is from the mean
A10: Population Variance | B10: Sum of square of each deviation divided by number of values
A11: Sample Variance | B11: Sum of square of each deviation divided by number of values minus 1
B12: The variance is a measure of variability that utilizes all the data.
B13: But the units are squared
A14: Population Standard Deviation | B14: Square root of population variance
A15: Sample Standard Deviation | B15: Square root of sample variance
B16: The standard deviation is a measure of variability that utilizes all the data.
B17: But the units are not squared
A19: Sample | B19: Sample
A20: Colorado Boomerangs - Boomerangs Made per day | B20: Gel Boomerangs - Boomerangs Made per day | E20: Colorado | F20: Gel
A21: X | B21: X | D21: Mean | E21: =AVERAGE(A22:A31) -> 60 | F21: =AVERAGE(B22:B31) -> 60 | G21: The sample mean, Xbar, is a point estimator of the population mean μ
A22: 60 | B22: 60 | D22: Max | E22: =MAX(A22:A31) -> 64 | F22: =MAX(B22:B31) -> 80
A23: 60 | B23: 60 | D23: Min | E23: =MIN(A22:A31) -> 56 | F23: =MIN(B22:B31) -> 40
A24: 60 | B24: 60 | D24: Range | E24: =E22-E23 -> 8 | F24: =F22-F23 -> 40
A25: 60 | B25: 60
A26: 58 | B26: 72 | D26: Colo X | E26: Deviations (X - Xbar) | F26: (X-Xbar)^2 | H26: Gel X | I26: Deviations (X - Xbar) | J26: (X-Xbar)^2
A27: 58 | B27: 72 | D27: =A22 -> 60 | E27: =D27-$E$21 -> 0 | F27: =E27^2 -> 0 | H27: =B22 -> 60 | I27: =H27-$F$21 -> 0 | J27: =I27^2 -> 0
A28: 56 | B28: 80 | D28: =A23 -> 60 | E28: 0 | F28: 0 | H28: 60 | I28: 0 | J28: 0
A29: 62 | B29: 48 | D29: 60 | E29: 0 | F29: 0 | H29: 60 | I29: 0 | J29: 0
A30: 62 | B30: 48 | D30: 60 | E30: 0 | F30: 0 | H30: 60 | I30: 0 | J30: 0
A31: 64 | B31: 40 | D31: 58 | E31: -2 | F31: 4 | H31: 72 | I31: 12 | J31: 144
D32: 58 | E32: -2 | F32: 4 | H32: 72 | I32: 12 | J32: 144
D33: 56 | E33: -4 | F33: 16 | H33: 80 | I33: 20 | J33: 400
D34: 62 | E34: 2 | F34: 4 | H34: 48 | I34: -12 | J34: 144
D35: 62 | E35: 2 | F35: 4 | H35: 48 | I35: -12 | J35: 144
D36: 64 | E36: 4 | F36: 16 | H36: 40 | I36: -20 | J36: 400
D37: Add All Deviations | E37: =SUM(E27:E36) -> 0 | F37: =SUM(F27:F36) -> 48 | H37: Add All Deviations | I37: =SUM(I27:I36) -> 0 | J37: =SUM(J27:J36) -> 1376
E38: Count - 1 | F38: =COUNT(D27:D36)-1 -> 9 | I38: Count - 1 | J38: =COUNT(H27:H36)-1 -> 9
D39: s^2 | E39: Variance | F39: =F37/F38 -> 5.333333333 | G39: but units are squared | I39: Variance | J39: =J37/J38 -> 152.8888889 | K39: but units are squared
D40: s^2 | E40: VAR function for Sample Variance | F40: =VAR(D27:D36) -> 5.333333333 | I40: VAR function for Sample Variance | J40: =VAR(H27:H36) -> 152.8888889
D41: s | E41: Standard Deviation | F41: =F40^(1/2) -> 2.309401077 | G41: raised to 1/2 | I41: Standard Deviation | J41: =J40^(1/2) -> 12.36482466 | K41: raised to 1/2
D42: s | E42: Standard Deviation | F42: =SQRT(F40) -> 2.309401077 | G42: SQRT function | I42: Standard Deviation | J42: =SQRT(J40) -> 12.36482466 | K42: SQRT function
D43: s | E43: STDEV function for Sample Standard Deviation | F43: =STDEV(D27:D36) -> 2.309401077 | I43: STDEV function for Sample Standard Deviation | J43: =STDEV(H27:H36) -> 12.36482466
F44: The sample SD, s, is a point estimator of the population SD, sigma σ

Sheet V(3xxxx) (hidden)
A1: Variability
A2: Spread In Data
A3: How Spread Out Is Data?
A4: Are the Data Points Clustered Around the Mean?
A5: Does the Mean Fairly Represent the Data Points?
A6: Wage Data | C6: Wage Data
A7: X - 1 | B7: Y - 1 | C7: X - 2 | D7: Y - 2 | F7: Mean 1 | G7: =AVERAGE(A8:A12) -> 14 | H7: 1
A8: 12 | B8: 2 | C8: 8 | D8: 4 | F8: Mean 2 | G8: =AVERAGE(C8:C12) -> 14 | H8: 3
A9: 15 | B9: 2 | C9: 15 | D9: 4
A10: 19 | B10: 2 | C10: 22 | D10: 4
A11: 13 | B11: 2 | C11: 7 | D11: 4
A12: 11 | B12: 2 | C12: 18 | D12: 4
A17: Visually Portray Variability
A18: Create X-Y Scatter Diagram
A19: Go to Design Ribbon, Data Group, Select Data to Add Data Series

Sheet V(4xxxx) (hidden)
A1: Range
A2: Max - Min
A3: Simple to calculate. It is very sensitive to the smallest and largest data values (extreme values).
A4: Wage Data
A6: Sample1 | B6: Sample2 | E6: =A6 -> Sample1 | F6: =B6 -> Sample2
A7: 12 | B7: 8 | D7: MIN | E7: =MIN(A7:A11) -> 11 | F7: =MIN(B7:B11) -> 7
A8: 15 | B8: 15 | D8: MAX | E8: =MAX(A7:A11) -> 19 | F8: =MAX(B7:B11) -> 22
A9: 19 | B9: 22 | D9: Range | E9: =E8-E7 -> 8 | F9: =F8-F7 -> 15
A10: 13 | B10: 7
A11: 11 | B11: 18

Sheet V(5xxxx) (hidden)
A1: Interquartile Range
A2: Quartile 3 - Quartile 1
A3: The range for the middle 50% of the data. It overcomes the sensitivity to extreme data values.
A4: Wage Data
A6: Sample1 | B6: Sample2 | E6: =A6 -> Sample1 | F6: =B6 -> Sample2
A7: 12 | B7: 8 | D7: Quartile 1 | E7: =QUARTILE(A$7:A$130,$G7) -> 12 | F7: =QUARTILE(B$7:B$130,$G7) -> 10 | G7: 1
A8: 15 | B8: 15 | D8: Quartile 3 | E8: =QUARTILE(A$7:A$130,$G8) -> 17.25 | F8: =QUARTILE(B$7:B$130,$G8) -> 18 | G8: 3
A9: 19 | B9: 22 | D9: Interquartile Range | E9: =E8-E7 -> 5.25 | F9: =F8-F7 -> 8
A10: 13 | B10: 7
A11: 11 | B11: 18 | E11: =E6 -> Sample1 | F11: =F6 -> Sample2
A12: 11 | B12: 10 | D12: MIN | E12: =MIN(A7:A130) -> 10 | F12: =MIN(B7:B130) -> 6
A13: 12 | B13: 9 | D13: MAX | E13: =MAX(A7:A130) -> 19 | F13: =MAX(B7:B130) -> 22
A14: 16 | B14: 16 | D14: Range | E14: =E13-E12 -> 9 | F14: =F13-F12 -> 16
A15: 14 | B15: 18
A16: 15 | B16: 17
A17: 11 | B17: 18
A18: 13 | B18: 13
A19: 18 | B19: 20
A20: 17 | B20: 11
A21: 18 | B21: 11
A22: 16 | B22: 20
A23: 11 | B23: 13
A24: 13 | B24: 15
A25: 19 | B25: 17
A26: 18 | B26: 18
A27: 19 | B27: 9
A28: 18 | B28: 11
A29: 15 | B29: 8
A30: 19 | B30: 18
A31: 14 | B31: 11
A32: 10 | B32: 16
A33: 16 | B33: 20
A34: 14 | B34: 17
A35: 19 | B35: 18
A36: 12 | B36: 9
A37: 18 | B37: 16
A38: 17 | B38: 20
A39: 16 | B39: 16
A40: 16 | B40: 16
A41: 14 | B41: 19
A42: 12 | B42: 20
A43: 16 | B43: 18
A44: 14 | B44: 17
A45: 18 | B45: 10
A46: 10 | B46: 12
A47: 18 | B47: 16
A48: 17 | B48: 7
A49: 13 | B49: 20
A50: 13 | B50: 20
A51: 12 | B51: 16
A52: 12 | B52: 20
A53: 11 | B53: 18
A54: 12 | B54: 6
A55: 18 | B55: 9
A56: 19 | B56: 13
A57: 12 | B57: 12
A58: 18 | B58: 9
A59: 17 | B59: 19
A60: 13 | B60: 6
A61: 13 | B61: 6
A62: 13 | B62: 19
A63: 11 | B63: 10
A64: 14 | B64: 19
A65: 10 | B65: 11
A66: 14 | B66: 20
A67: 16 | B67: 14
A68: 14 | B68: 8
A69: 12 | B69: 16
A70: 10 | B70: 11
A71: 13 | B71: 16
A72: 13 | B72: 13
A73: 18 | B73: 14
A74: 12 | B74: 18
A75: 18 | B75: 12
A76: 11 | B76: 12
A77: 18 | B77: 14
A78: 10 | B78: 20
A79: 18 | B79: 18
A80: 14 | B80: 6
A81: 13 | B81: 12
A82: 19 | B82: 8
A83: 18 | B83: 14
A84: 14 | B84: 8
A85: 13 | B85: 15
A86: 17 | B86: 11
A87: 14 | B87: 14
A88: 12 | B88: 10
A89: 16 | B89: 7
A90: 16 | B90: 16
A91: 10 | B91: 20
A92: 17 | B92: 10
A93: 18 | B93: 12
A94: 11 | B94: 6
A95: 17 | B95: 11
A96: 16 | B96: 16
A97: 17 | B97: 11
A98: 18 | B98: 8
A99: 12 | B99: 9
A100: 13 | B100: 16
A101: 10 | B101: 15
A102: 18 | B102: 11
A103: 17 | B103: 15
A104: 17 | B104: 9
A105: 15 | B105: 12
A106: 14 | B106: 18
A107: 14 | B107: 6
A108: 12 | B108: 13
A109: 14 | B109: 13
A110: 13 | B110: 13
A111: 12 | B111: 6
A112: 13 | B112: 20
A113: 16 | B113: 6
A114: 10 | B114: 14
A115: 17 | B115: 19
A116: 14 | B116: 16
A117: 19 | B117: 20
A118: 19 | B118: 8
A119: 14 | B119: 17
A120: 11 | B120: 8
A121: 18 | B121: 10
A122: 19 | B122: 18
A123: 11 | B123: 7
A124: 15 | B124: 20
A125: 14 | B125: 13
A126: 18 | B126: 11
A127: 19 | B127: 19
A128: 17 | B128: 18
A129: 11 | B129: 6
A130: 19 | B130: 13

Sheet V(6xxxx) (hidden)
A1: Deviation
A2: How far one datum is from the mean
A3: Sample Standard Deviation
A4: A Numerical Measure that says how much variability there is in the data points.
A5: Standard Deviation Is Like An Average Of The Deviations
A6: Standard Deviation tells us how fairly the mean represents its data points
A7: Standard Deviation tells us how clustered the data points are around the mean.
A9: Wage Data | D9: Mean1 | E9: Count | F9: Count - 1 | G9: Sample data divided by just the count underestimates
D10: =AVERAGE(A12:A16) -> 14 | E10: =COUNT(A12:A16) -> 5 | F10: =E10-1 -> 4 | G10: What minus one does: 10/5 = 2, but 10/(5-1) = 2.5
A11: Sample1 | B11: Sample2 | D11: X | E11: X - Xbar | F11: (X - Xbar)^2
A12: 12 | B12: 8 | D12: =A12 -> 12 | E12: =D12-$D$10 -> -2 | F12: =E12^2 -> 4
A13: 15 | B13: 15 | D13: =A13 -> 15 | E13: =D13-$D$10 -> 1 | F13: =E13^2 -> 1
A14: 19 | B14: 22 | D14: =A14 -> 19 | E14: =D14-$D$10 -> 5 | F14: =E14^2 -> 25
A15: 13 | B15: 7 | D15: =A15 -> 13 | E15: =D15-$D$10 -> -1 | F15: =E15^2 -> 1
A16: 11 | B16: 18 | D16: =A16 -> 11 | E16: =D16-$D$10 -> -3 | F16: =E16^2 -> 9
D17: Total | E17: =SUM(E12:E16) -> 0 | F17: =SUM(F12:F16) -> 40
E18: Variance | F18: =F17/F10 -> 10 | G18: Units are squared
E19: Standard Deviation | F19: =F18^(1/2) -> 3.16227766 | G19: Units are not squared
E20: Standard Deviation | F20: =SQRT(F18) -> 3.16227766
E21: The sample SD, s, is a point estimator of the population SD, sigma σ
D22: Mean2 | E22: Count | F22: Count - 1 | G22: Sample data divided by just the count underestimates
D23: =AVERAGE(B12:B16) -> 14 | E23: =COUNT(B12:B16) -> 5 | F23: =E23-1 -> 4 | G23: What minus one does: 10/5 = 2, but 10/(5-1) = 2.5
D24: X | E24: X - Xbar
D25: =B12 -> 8 | E25: =D25-$D$23 -> -6 | F25: =E25^2 -> 36
D26: =B13 -> 15 | E26: =D26-$D$23 -> 1 | F26: =E26^2 -> 1
D27: =B14 -> 22 | E27: =D27-$D$23 -> 8 | F27: =E27^2 -> 64
D28: =B15 -> 7 | E28: =D28-$D$23 -> -7 | F28: =E28^2 -> 49
D29: =B16 -> 18 | E29: =D29-$D$23 -> 4 | F29: =E29^2 -> 16
D30: Total | F30: =SUM(F25:F29) -> 166
E31: =E18 -> Variance | F31: =F30/F23 -> 41.5 | G31: Units are squared
E32: Standard Deviation | F32: =SQRT(F31) -> 6.442049363 | G32: Units are not squared
E33: The sample SD, s, is a point estimator of the population SD, sigma σ
D34: Conclusion:
D35: Although the two have the same means, the variability, as measured by standard deviation, is much larger for the Sample 2 data. The mean for the sample 1 data represents it data points more fairly than the mean for the sample 2 data represents it data points.

Sheet V(5an)
A1: Deviation
A2: How far one datum is from the mean
A3: Sample Standard Deviation
A4: A Numerical Measure that says how much variability there is in the data points.
A5: Standard Deviation Is Like An Average Of The Deviations
A6: Standard Deviation tells us how fairly the mean represents its data points
A7: Standard Deviation tells us how clustered the data points are around the mean.
A9: Based on Average Returns, which stock do you prefer? It is hard to know, without looking at the volitility of past stock returns.
A10: Count | B10: =COUNT(B14:B28) -> 15 | E10: =COUNT(E14:E28) -> 15
A11: Count -1 | B11: =B10-1 -> 14 | E11: =E10-1 -> 14 | F11: Sample data divided by just the count underestimates
A12: Mean = Xbar | B12: =AVERAGE(B14:B28) -> 0.04133333333 | E12: =AVERAGE(E14:E28) -> 0.0412 | F12: What minus one does: 10/5 = 2, but 10/(5-1) = 2.5
A13: Year | B13: Stock Return A | C13: Deviation | D13: Deviation ^2 | E13: Stock Return B | F13: Deviation | G13: Deviation ^2
A14: 1995 | B14: 0.05 | C14: =B14-$B$12 -> 0.008666666667 | D14: =C14^2 -> 7.511111111e-05 | E14: 0.02 | F14: =E14-$E$12 -> -0.0212 | G14: =F14^2 -> 0.00044944
A15: 1996 | B15: 0.1 | C15: =B15-$B$12 -> 0.05866666667 | D15: =C15^2 -> 0.003441777778 | E15: 0.04 | F15: =E15-$E$12 -> -0.0012 | G15: =F15^2 -> 1.44e-06
A16: 1997 | B16: 0.12 | C16: 0.07866666667 | D16: 0.006188444444 | E16: 0.035 | F16: -0.0062 | G16: 3.844e-05
A17: 1998 | B17: 0.17 | C17: 0.1286666667 | D17: 0.01655511111 | E17: 0.055 | F17: 0.0138 | G17: 0.00019044
A18: 1999 | B18: 0.19 | C18: 0.1486666667 | D18: 0.02210177778 | E18: 0.04 | F18: -0.0012 | G18: 1.44e-06
A19: 2000 | B19: 0.01 | C19: -0.03133333333 | D19: 0.0009817777778 | E19: 0.042 | F19: 0.0008 | G19: 6.4e-07
A20: 2001 | B20: -0.15 | C20: -0.1913333333 | D20: 0.03660844444 | E20: 0.043 | F20: 0.0018 | G20: 3.24e-06
A21: 2002 | B21: -0.03 | C21: -0.07133333333 | D21: 0.005088444444 | E21: 0.047 | F21: 0.0058 | G21: 3.364e-05
A22: 2003 | B22: 0.03 | C22: -0.01133333333 | D22: 0.0001284444444 | E22: 0.05 | F22: 0.0088 | G22: 7.744e-05
A23: 2004 | B23: 0.055 | C23: 0.01366666667 | D23: 0.0001867777778 | E23: 0.051 | F23: 0.0098 | G23: 9.604e-05
A24: 2005 | B24: 0.1 | C24: 0.05866666667 | D24: 0.003441777778 | E24: 0.03 | F24: -0.0112 | G24: 0.00012544
A25: 2006 | B25: 0.065 | C25: 0.02366666667 | D25: 0.0005601111111 | E25: 0.029 | F25: -0.0122 | G25: 0.00014884
A26: 2007 | B26: -0.02 | C26: -0.06133333333 | D26: 0.003761777778 | E26: 0.046 | F26: 0.0048 | G26: 2.304e-05
A27: 2008 | B27: -0.22 | C27: -0.2613333333 | D27: 0.06829511111 | E27: 0.049 | F27: 0.0078 | G27: 6.084e-05
A28: 2009 | B28: 0.15 | C28: 0.1086666667 | D28: 0.01180844444 | E28: 0.041 | F28: -0.0002 | G28: 4e-08
B29: Total | C29: =SUM(C14:C28) -> -2.081668171e-16 | D29: =SUM(D14:D28) -> 0.1792233333 | F29: =SUM(F14:F28) -> -1.040834086e-16 | G29: =SUM(G14:G28) -> 0.0012504
B31: Sample Variance = s2 | D31: =D29/B11 -> 0.01280166667 | G31: =G29/E11 -> 8.931428571e-05 | H31: Units are squared
B32: Sample Standard Deviation = s | D32: =SQRT(D31) -> 0.1131444504 | G32: =SQRT(G31) -> 0.009450623562 | H32: Square root to get back to same unit
D33: =_xlfn.STDEV.S(B14:B28) -> 0.1131444504 | G33: =_xlfn.STDEV.S(E14:E28) -> 0.009450623562 | H33: STDEV.S (Standard Deviation for Sample)
H34: The sample SD, s, is a point estimator of the population SD, sigma σ
H35: s = Numerical Measure of Risk of Stock (Volitility)
H36: Which mean more fairly represnets its data points?

Sheet V(6)
A1: Wage Data
A3: Sample1 | B3: Sample2
A4: 12 | B4: 8
A5: 15 | B5: 15
A6: 19 | B6: 22
A7: 13 | B7: 7
A8: 11 | B8: 18
B10: Sample1 | C10: Sample2
A11: Sample Variance = s^2 | D11: VAR.S | E11: ="In Excel you can use the function:"&CHAR(10)&D11&CHAR(10)&"for calculating "&A11 -> In Excel you can use the function: VAR.S for calculating Sample Variance = s^2
A12: Sample Standard Deviation =s | D12: STDEV.S | E12: ="In Excel you can use the function:"&CHAR(10)&D12&CHAR(10)&"for calculating "&A12 -> In Excel you can use the function: STDEV.S for calculating Sample Standard Deviation =s
A13: Population Variance = σ^2 | D13: VAR.P | E13: ="In Excel you can use the function:"&CHAR(10)&D13&CHAR(10)&"for calculating "&A13 -> In Excel you can use the function: VAR.P for calculating Population Variance = σ^2
A14: Population Standard Deviation = σ | D14: STDEV.P | E14: ="In Excel you can use the function:"&CHAR(10)&D14&CHAR(10)&"for calculating "&A14 -> In Excel you can use the function: STDEV.P for calculating Population Standard Deviation = σ

Sheet V(6an)
A1: Wage Data
A3: Sample1 | B3: Sample2
A4: 12 | B4: 8
A5: 15 | B5: 15
A6: 19 | B6: 22
A7: 13 | B7: 7
A8: 11 | B8: 18
B10: Sample1 | C10: Sample2
A11: Sample Variance = s^2 | B11: =_xlfn.VAR.S(A4:A8) -> 10 | C11: =_xlfn.VAR.S(B4:B8) -> 41.5 | D11: VAR.S | E11: ="In Excel you can use the function:"&CHAR(10)&D11&CHAR(10)&"for calculating "&A11 -> In Excel you can use the function: VAR.S for calculating Sample Variance = s^2
A12: Sample Standard Deviation =s | B12: =_xlfn.STDEV.S(A4:A8) -> 3.16227766 | C12: =_xlfn.STDEV.S(B4:B8) -> 6.442049363 | D12: STDEV.S | E12: ="In Excel you can use the function:"&CHAR(10)&D12&CHAR(10)&"for calculating "&A12 -> In Excel you can use the function: STDEV.S for calculating Sample Standard Deviation =s
A13: Population Variance = σ^2 | B13: =VARP(A4:A8) -> 8 | C13: =VARP(B4:B8) -> 33.2 | D13: VAR.P | E13: ="In Excel you can use the function:"&CHAR(10)&D13&CHAR(10)&"for calculating "&A13 -> In Excel you can use the function: VAR.P for calculating Population Variance = σ^2
A14: Population Standard Deviation = σ | B14: =STDEVP(A4:A8) -> 2.828427125 | C14: =STDEVP(B4:B8) -> 5.761944116 | D14: STDEV.P | E14: ="In Excel you can use the function:"&CHAR(10)&D14&CHAR(10)&"for calculating "&A14 -> In Excel you can use the function: STDEV.P for calculating Population Standard Deviation = σ

Sheet CV
A1: Return on stock 1 | B1: = | C1: 0.13
A2: Standard deviation on historical returns stock 1 | B2: = | C2: 0.2
A3: Return on stock 2 | B3: = | C3: 0.17
A4: Standard deviation on historical returns stock 2 | B4: = | C4: 0.33
A5: Return on stock 3 | B5: = | C5: 0.06
A6: Standard deviation on historical returns stock 3 | B6: = | C6: 0.08
A8: Coefficient of Variance | B8: = | C8: s | D8: ÷ | E8: Xbar | F8: = | G8: CV | I8: =E8&"/"&C8&" = (for every one unit of dispersion (risk), how much return are you getting)" -> Xbar/s = (for every one unit of dispersion (risk), how much return are you getting)
A9: Coefficient of Variance for stock 1 | B9: = | C9: =C2 -> 0.2 | D9: ÷ | E9: =C1 -> 0.13 | F9: =
A10: Coefficient of Variance for stock 2 | B10: = | C10: =C4 -> 0.33 | D10: ÷ | E10: =C3 -> 0.17 | F10: =
A11: Coefficient of Variance for stock 3 | B11: = | C11: =C6 -> 0.08 | D11: ÷ | E11: =C5 -> 0.06 | F11: =
A13: There is more dispersion relative to the mean for stock 2
A14: We can also say: For every 1% of return, we have 1.94% standard deviation (proxy for risk)
A15: *Notice that we keep the units because there were different units in the numerator & denominator
K16: Compare Relative Variability (Dispersion) in Two Distributions
K18: Mean bonus paid per employee | L18: = | M18: 2000 | O18: Mean years worked | P18: = | Q18: 15
K19: Standard deviation | L19: = | M19: 755 | O19: Standard deviation | P19: = | Q19: 3
K21: Coefficient of Variance | L21: = | O21: Coefficient of Variance | P21: =
K23: There is more variability relative to the mean in the distribution of bonus paid compared with the distribution of years worked
K24: *Notice here that the units cancel out

Sheet CV (an)
A1: Return on stock 1 | B1: = | C1: 0.13
A2: Standard deviation on historical returns stock 1 | B2: = | C2: 0.2
A3: Return on stock 2 | B3: = | C3: 0.17
A4: Standard deviation on historical returns stock 2 | B4: = | C4: 0.33
A5: Return on stock 3 | B5: = | C5: 0.06
A6: Standard deviation on historical returns stock 3 | B6: = | C6: 0.08
A8: Coefficient of Variance | B8: = | C8: s | D8: ÷ | E8: Xbar | F8: = | G8: CV | I8: =E8&"/"&C8&" = (for every one unit of dispersion (risk), how much return are you getting)" -> Xbar/s = (for every one unit of dispersion (risk), how much return are you getting)
A9: Coefficient of Variance for stock 1 | B9: = | C9: =C2 -> 0.2 | D9: ÷ | E9: =C1 -> 0.13 | F9: = | G9: =C9/E9 -> 1.538461538 | I9: =E9/C9 -> 0.65
A10: Coefficient of Variance for stock 2 | B10: = | C10: =C4 -> 0.33 | D10: ÷ | E10: =C3 -> 0.17 | F10: = | G10: =C10/E10 -> 1.941176471 | I10: =E10/C10 -> 0.5151515152
A11: Coefficient of Variance for stock 3 | B11: = | C11: =C6 -> 0.08 | D11: ÷ | E11: =C5 -> 0.06 | F11: = | G11: =C11/E11 -> 1.333333333 | I11: =E11/C11 -> 0.75
A13: There is more dispersion relative to the mean for stock 2
A14: We can also say: For every 1% of return, we have 1.94% standard deviation (proxy for risk)
A15: *Notice that we keep the units because there were different units in the numerator & denominator
K16: Compare Relative Variability (Dispersion) in Two Distributions
K18: Mean bonus paid per employee | L18: = | M18: 2000 | O18: Mean years worked | P18: = | Q18: 15
K19: Standard deviation | L19: = | M19: 755 | O19: Standard deviation | P19: = | Q19: 3
K21: Coefficient of Variance | L21: = | M21: =M19/M18 -> 0.3775 | O21: Coefficient of Variance | P21: = | Q21: =Q19/Q18 -> 0.2
K23: There is more variability relative to the mean in the distribution of bonus paid compared with the distribution of years worked
K24: *Notice here that the units cancel out

Sheet DS
A1: Sample of 200 sales from www.boomerangs.com. Use Descriptive Statistics to reveal patterns in raw data.
A3: No. | B3: Date (2010) | C3: Customer Age | D3: Coupon | E3: Payment Method | F3: Product (Boomerang Name) | G3: Region | H3: Price | I3: Units | J3: Sales
A4: 1 | B4: 2010-05-22 | C4: 21 | D4: Coupon | E4: Mastercard | F4: Carlota | G4: West | H4: 22.95 | I4: 2 | J4: 45.9
A5: 2 | B5: 2010-06-29 | C5: 57 | D5: Coupon | E5: Mastercard | F5: Yanaki | G5: West | H5: 19.95 | I5: 1 | J5: 19.95
A6: 3 | B6: 2010-11-05 | C6: 25 | D6: No Coupon | E6: Mastercard | F6: Aspen | G6: East | H6: 21.95 | I6: 1 | J6: 21.95
A7: 4 | B7: 2010-08-31 | C7: 38 | D7: No Coupon | E7: American Express | F7: Yanaki | G7: West | H7: 19.95 | I7: 1 | J7: 19.95
A8: 5 | B8: 2010-05-30 | C8: 22 | D8: Coupon | E8: Visa | F8: Yanaki | G8: West | H8: 19.95 | I8: 4 | J8: 79.8
A9: 6 | B9: 2010-10-05 | C9: 29 | D9: Coupon | E9: PayPal | F9: Yanaki | G9: South | H9: 19.95 | I9: 4 | J9: 79.8
A10: 7 | B10: 2010-03-22 | C10: 18 | D10: Coupon | E10: Visa | F10: Yanaki | G10: West | H10: 19.95 | I10: 3 | J10: 59.85
A11: 8 | B11: 2010-06-14 | C11: 64 | D11: No Coupon | E11: Discover | F11: Yanaki | G11: West | H11: 19.95 | I11: 7 | J11: 139.65
A12: 9 | B12: 2010-05-09 | C12: 27 | D12: No Coupon | E12: American Express | F12: Yanaki | G12: West | H12: 19.95 | I12: 6 | J12: 119.7
A13: 10 | B13: 2010-08-28 | C13: 22 | D13: No Coupon | E13: Visa | F13: Aspen | G13: West | H13: 21.95 | I13: 2 | J13: 43.9
A14: 11 | B14: 2010-11-30 | C14: 39 | D14: Coupon | E14: PayPal | F14: Aspen | G14: Mid West | H14: 21.95 | I14: 2 | J14: 43.9
A15: 12 | B15: 2010-09-13 | C15: 61 | D15: No Coupon | E15: Mastercard | F15: Yanaki | G15: Mid West | H15: 19.95 | I15: 5 | J15: 99.75
A16: 13 | B16: 2010-10-23 | C16: 18 | D16: No Coupon | E16: Visa | F16: Carlota | G16: Mid West | H16: 22.95 | I16: 5 | J16: 114.75
A17: 14 | B17: 2010-09-19 | C17: 22 | D17: No Coupon | E17: PayPal | F17: Carlota | G17: West | H17: 22.95 | I17: 4 | J17: 91.8
A18: 15 | B18: 2010-09-20 | C18: 52 | D18: No Coupon | E18: American Express | F18: Carlota | G18: Mid West | H18: 22.95 | I18: 5 | J18: 114.75
A19: 16 | B19: 2010-01-18 | C19: 22 | D19: Coupon | E19: Visa | F19: Carlota | G19: West | H19: 22.95 | I19: 1 | J19: 22.95
A20: 17 | B20: 2010-07-28 | C20: 18 | D20: No Coupon | E20: Discover | F20: Sunset | G20: West | H20: 24.95 | I20: 5 | J20: 124.75
A21: 18 | B21: 2010-06-06 | C21: 55 | D21: No Coupon | E21: PayPal | F21: Yanaki | G21: South | H21: 19.95 | I21: 1 | J21: 19.95
A22: 19 | B22: 2010-01-30 | C22: 20 | D22: No Coupon | E22: PayPal | F22: Aspen | G22: East | H22: 21.95 | I22: 4 | J22: 87.8
A23: 20 | B23: 2010-10-09 | C23: 42 | D23: Coupon | E23: PayPal | F23: Carlota | G23: Mid West | H23: 22.95 | I23: 1 | J23: 22.95
A24: 21 | B24: 2010-07-04 | C24: 30 | D24: No Coupon | E24: PayPal | F24: Delicate Arch | G24: South | H24: 29.95 | I24: 10 | J24: 299.5
A25: 22 | B25: 2010-11-08 | C25: 64 | D25: Coupon | E25: Visa | F25: Yanaki | G25: Mid West | H25: 19.95 | I25: 1 | J25: 19.95
A26: 23 | B26: 2010-06-09 | C26: 63 | D26: Coupon | E26: PayPal | F26: Yanaki | G26: Mid West | H26: 19.95 | I26: 5 | J26: 99.75
A27: 24 | B27: 2010-03-17 | C27: 41 | D27: Coupon | E27: Mastercard | F27: Yanaki | G27: South | H27: 19.95 | I27: 2 | J27: 39.9
A28: 25 | B28: 2010-04-07 | C28: 21 | D28: No Coupon | E28: Visa | F28: Aspen | G28: East | H28: 21.95 | I28: 3 | J28: 65.85
A29: 26 | B29: 2010-01-05 | C29: 63 | D29: No Coupon | E29: PayPal | F29: Sunset | G29: East | H29: 24.95 | I29: 1 | J29: 24.95
A30: 27 | B30: 2010-07-22 | C30: 54 | D30: No Coupon | E30: American Express | F30: Aspen | G30: West | H30: 21.95 | I30: 1 | J30: 21.95
A31: 28 | B31: 2010-11-12 | C31: 18 | D31: No Coupon | E31: American Express | F31: Yanaki | G31: West | H31: 19.95 | I31: 1 | J31: 19.95
A32: 29 | B32: 2010-05-11 | C32: 26 | D32: No Coupon | E32: Discover | F32: Carlota | G32: West | H32: 22.95 | I32: 4 | J32: 91.8
A33: 30 | B33: 2010-04-14 | C33: 59 | D33: No Coupon | E33: PayPal | F33: Aspen | G33: Mid West | H33: 21.95 | I33: 3 | J33: 65.85
A34: 31 | B34: 2010-08-11 | C34: 30 | D34: No Coupon | E34: Discover | F34: Yanaki | G34: West | H34: 19.95 | I34: 2 | J34: 39.9
A35: 32 | B35: 2010-11-14 | C35: 64 | D35: No Coupon | E35: Visa | F35: Aspen | G35: West | H35: 21.95 | I35: 2 | J35: 43.9
A36: 33 | B36: 2010-01-21 | C36: 30 | D36: No Coupon | E36: PayPal | F36: Aspen | G36: West | H36: 21.95 | I36: 3 | J36: 65.85
A37: 34 | B37: 2010-04-12 | C37: 41 | D37: Coupon | E37: American Express | F37: Aspen | G37: West | H37: 21.95 | I37: 2 | J37: 43.9
A38: 35 | B38: 2010-06-04 | C38: 23 | D38: Coupon | E38: Mastercard | F38: Yanaki | G38: South | H38: 19.95 | I38: 5 | J38: 99.75
A39: 36 | B39: 2010-10-19 | C39: 52 | D39: Coupon | E39: Visa | F39: Delicate Arch | G39: West | H39: 29.95 | I39: 1 | J39: 29.95
A40: 37 | B40: 2010-09-07 | C40: 18 | D40: No Coupon | E40: PayPal | F40: Aspen | G40: West | H40: 21.95 | I40: 3 | J40: 65.85
A41: 38 | B41: 2010-09-19 | C41: 32 | D41: No Coupon | E41: PayPal | F41: Carlota | G41: West | H41: 22.95 | I41: 1 | J41: 22.95
A42: 39 | B42: 2010-01-17 | C42: 22 | D42: Coupon | E42: American Express | F42: Yanaki | G42: Mid West | H42: 19.95 | I42: 1 | J42: 19.95
A43: 40 | B43: 2010-03-15 | C43: 29 | D43: Coupon | E43: PayPal | F43: Yanaki | G43: South | H43: 19.95 | I43: 5 | J43: 99.75
A44: 41 | B44: 2010-12-16 | C44: 25 | D44: No Coupon | E44: Mastercard | F44: Bellen | G44: Mid West | H44: 24.95 | I44: 5 | J44: 124.75
A45: 42 | B45: 2010-07-08 | C45: 63 | D45: No Coupon | E45: PayPal | F45: Aspen | G45: West | H45: 21.95 | I45: 1 | J45: 21.95
A46: 43 | B46: 2010-05-13 | C46: 26 | D46: No Coupon | E46: Mastercard | F46: Sunset | G46: Mid West | H46: 24.95 | I46: 7 | J46: 174.65
A47: 44 | B47: 2010-03-03 | C47: 31 | D47: Coupon | E47: Discover | F47: Delicate Arch | G47: West | H47: 29.95 | I47: 1 | J47: 29.95
A48: 45 | B48: 2010-04-30 | C48: 23 | D48: No Coupon | E48: PayPal | F48: Delicate Arch | G48: Mid West | H48: 29.95 | I48: 5 | J48: 149.75
A49: 46 | B49: 2010-07-11 | C49: 42 | D49: Coupon | E49: PayPal | F49: Delicate Arch | G49: Mid West | H49: 29.95 | I49: 1 | J49: 29.95
A50: 47 | B50: 2010-03-22 | C50: 28 | D50: Coupon | E50: Visa | F50: Carlota | G50: East | H50: 22.95 | I50: 2 | J50: 45.9
A51: 48 | B51: 2010-08-27 | C51: 23 | D51: No Coupon | E51: Visa | F51: Carlota | G51: West | H51: 22.95 | I51: 7 | J51: 160.65
A52: 49 | B52: 2010-11-16 | C52: 19 | D52: No Coupon | E52: Mastercard | F52: Carlota | G52: Mid West | H52: 22.95 | I52: 7 | J52: 160.65
A53: 50 | B53: 2010-01-26 | C53: 37 | D53: Coupon | E53: Visa | F53: Yanaki | G53: West | H53: 19.95 | I53: 6 | J53: 119.7
A54: 51 | B54: 2010-05-06 | C54: 38 | D54: No Coupon | E54: Mastercard | F54: Aspen | G54: East | H54: 21.95 | I54: 2 | J54: 43.9
A55: 52 | B55: 2010-03-18 | C55: 50 | D55: Coupon | E55: Mastercard | F55: Yanaki | G55: Mid West | H55: 19.95 | I55: 6 | J55: 119.7
A56: 53 | B56: 2010-04-16 | C56: 26 | D56: No Coupon | E56: Discover | F56: Aspen | G56: West | H56: 21.95 | I56: 3 | J56: 65.85
A57: 54 | B57: 2010-01-05 | C57: 33 | D57: No Coupon | E57: PayPal | F57: Carlota | G57: South | H57: 22.95 | I57: 1 | J57: 22.95
A58: 55 | B58: 2010-11-09 | C58: 59 | D58: No Coupon | E58: PayPal | F58: Aspen | G58: Mid West | H58: 21.95 | I58: 3 | J58: 65.85
A59: 56 | B59: 2010-07-29 | C59: 32 | D59: No Coupon | E59: Visa | F59: Aspen | G59: Mid West | H59: 21.95 | I59: 5 | J59: 109.75
A60: 57 | B60: 2010-12-07 | C60: 27 | D60: No Coupon | E60: Visa | F60: Carlota | G60: Mid West | H60: 22.95 | I60: 5 | J60: 114.75
A61: 58 | B61: 2010-11-22 | C61: 54 | D61: Coupon | E61: American Express | F61: Bellen | G61: West | H61: 24.95 | I61: 10 | J61: 249.5
A62: 59 | B62: 2010-01-10 | C62: 63 | D62: No Coupon | E62: PayPal | F62: Aspen | G62: West | H62: 21.95 | I62: 5 | J62: 109.75
A63: 60 | B63: 2010-06-01 | C63: 48 | D63: No Coupon | E63: Visa | F63: Carlota | G63: East | H63: 22.95 | I63: 5 | J63: 114.75
A64: 61 | B64: 2010-05-02 | C64: 29 | D64: No Coupon | E64: American Express | F64: Carlota | G64: East | H64: 22.95 | I64: 5 | J64: 114.75
A65: 62 | B65: 2010-06-13 | C65: 38 | D65: Coupon | E65: Visa | F65: Delicate Arch | G65: West | H65: 29.95 | I65: 4 | J65: 119.8
A66: 63 | B66: 2010-02-16 | C66: 24 | D66: Coupon | E66: Mastercard | F66: Delicate Arch | G66: East | H66: 29.95 | I66: 1 | J66: 29.95
A67: 64 | B67: 2010-08-02 | C67: 51 | D67: No Coupon | E67: Visa | F67: Carlota | G67: West | H67: 22.95 | I67: 5 | J67: 114.75
A68: 65 | B68: 2010-11-01 | C68: 25 | D68: Coupon | E68: Mastercard | F68: Delicate Arch | G68: West | H68: 29.95 | I68: 7 | J68: 209.65
A69: 66 | B69: 2010-11-08 | C69: 65 | D69: No Coupon | E69: Visa | F69: Carlota | G69: West | H69: 22.95 | I69: 5 | J69: 114.75
A70: 67 | B70: 2010-08-17 | C70: 35 | D70: No Coupon | E70: PayPal | F70: Yanaki | G70: Mid West | H70: 19.95 | I70: 3 | J70: 59.85
A71: 68 | B71: 2010-09-27 | C71: 35 | D71: No Coupon | E71: Mastercard | F71: Sunset | G71: East | H71: 24.95 | I71: 5 | J71: 124.75
A72: 69 | B72: 2010-01-09 | C72: 21 | D72: No Coupon | E72: Visa | F72: Yanaki | G72: Mid West | H72: 19.95 | I72: 2 | J72: 39.9
A73: 70 | B73: 2010-10-10 | C73: 47 | D73: No Coupon | E73: Mastercard | F73: Sunset | G73: West | H73: 24.95 | I73: 5 | J73: 124.75
A74: 71 | B74: 2010-12-31 | C74: 62 | D74: No Coupon | E74: Discover | F74: Sunset | G74: East | H74: 24.95 | I74: 1 | J74: 24.95
A75: 72 | B75: 2010-12-06 | C75: 63 | D75: No Coupon | E75: PayPal | F75: Carlota | G75: East | H75: 22.95 | I75: 1 | J75: 22.95
A76: 73 | B76: 2010-03-18 | C76: 23 | D76: No Coupon | E76: American Express | F76: Bellen | G76: Mid West | H76: 24.95 | I76: 10 | J76: 249.5
A77: 74 | B77: 2010-03-22 | C77: 59 | D77: No Coupon | E77: Visa | F77: Yanaki | G77: South | H77: 19.95 | I77: 3 | J77: 59.85
A78: 75 | B78: 2010-09-14 | C78: 48 | D78: Coupon | E78: Visa | F78: Aspen | G78: West | H78: 21.95 | I78: 2 | J78: 43.9
A79: 76 | B79: 2010-02-09 | C79: 57 | D79: No Coupon | E79: Mastercard | F79: Yanaki | G79: South | H79: 19.95 | I79: 1 | J79: 19.95
A80: 77 | B80: 2010-03-24 | C80: 19 | D80: No Coupon | E80: Discover | F80: Delicate Arch | G80: Mid West | H80: 29.95 | I80: 1 | J80: 29.95
A81: 78 | B81: 2010-07-28 | C81: 48 | D81: Coupon | E81: Mastercard | F81: Yanaki | G81: Mid West | H81: 19.95 | I81: 1 | J81: 19.95
A82: 79 | B82: 2010-08-26 | C82: 21 | D82: Coupon | E82: Mastercard | F82: Aspen | G82: South | H82: 21.95 | I82: 3 | J82: 65.85
A83: 80 | B83: 2010-03-05 | C83: 40 | D83: No Coupon | E83: American Express | F83: Carlota | G83: West | H83: 22.95 | I83: 1 | J83: 22.95
A84: 81 | B84: 2010-08-18 | C84: 25 | D84: No Coupon | E84: Visa | F84: Yanaki | G84: Mid West | H84: 19.95 | I84: 4 | J84: 79.8
A85: 82 | B85: 2010-11-02 | C85: 59 | D85: Coupon | E85: Mastercard | F85: Yanaki | G85: South | H85: 19.95 | I85: 4 | J85: 79.8
A86: 83 | B86: 2010-12-19 | C86: 57 | D86: No Coupon | E86: Visa | F86: Carlota | G86: West | H86: 22.95 | I86: 5 | J86: 114.75
A87: 84 | B87: 2010-07-05 | C87: 56 | D87: Coupon | E87: Discover | F87: Carlota | G87: West | H87: 22.95 | I87: 1 | J87: 22.95
A88: 85 | B88: 2010-04-16 | C88: 19 | D88: No Coupon | E88: Visa | F88: Yanaki | G88: West | H88: 19.95 | I88: 1 | J88: 19.95
A89: 86 | B89: 2010-12-23 | C89: 54 | D89: No Coupon | E89: Visa | F89: Aspen | G89: Mid West | H89: 21.95 | I89: 5 | J89: 109.75
A90: 87 | B90: 2010-05-29 | C90: 65 | D90: No Coupon | E90: PayPal | F90: Delicate Arch | G90: Mid West | H90: 29.95 | I90: 2 | J90: 59.9
A91: 88 | B91: 2010-05-01 | C91: 25 | D91: Coupon | E91: PayPal | F91: Aspen | G91: West | H91: 21.95 | I91: 2 | J91: 43.9
A92: 89 | B92: 2010-07-03 | C92: 30 | D92: No Coupon | E92: American Express | F92: Yanaki | G92: West | H92: 19.95 | I92: 2 | J92: 39.9
A93: 90 | B93: 2010-08-12 | C93: 57 | D93: No Coupon | E93: Mastercard | F93: Delicate Arch | G93: West | H93: 29.95 | I93: 7 | J93: 209.65
A94: 91 | B94: 2010-06-21 | C94: 43 | D94: Coupon | E94: PayPal | F94: Yanaki | G94: West | H94: 19.95 | I94: 1 | J94: 19.95
A95: 92 | B95: 2010-12-15 | C95: 44 | D95: No Coupon | E95: Mastercard | F95: Yanaki | G95: South | H95: 19.95 | I95: 4 | J95: 79.8
A96: 93 | B96: 2010-05-25 | C96: 21 | D96: No Coupon | E96: PayPal | F96: Bellen | G96: East | H96: 24.95 | I96: 5 | J96: 124.75
A97: 94 | B97: 2010-03-23 | C97: 20 | D97: No Coupon | E97: PayPal | F97: Bellen | G97: West | H97: 24.95 | I97: 1 | J97: 24.95
A98: 95 | B98: 2010-01-22 | C98: 49 | D98: Coupon | E98: Visa | F98: Carlota | G98: West | H98: 22.95 | I98: 7 | J98: 160.65
A99: 96 | B99: 2010-09-26 | C99: 37 | D99: No Coupon | E99: Mastercard | F99: Aspen | G99: South | H99: 21.95 | I99: 3 | J99: 65.85
A100: 97 | B100: 2010-12-27 | C100: 26 | D100: No Coupon | E100: PayPal | F100: Carlota | G100: West | H100: 22.95 | I100: 6 | J100: 137.7
A101: 98 | B101: 2010-07-24 | C101: 62 | D101: No Coupon | E101: Mastercard | F101: Delicate Arch | G101: East | H101: 29.95 | I101: 1 | J101: 29.95
A102: 99 | B102: 2010-04-27 | C102: 38 | D102: No Coupon | E102: PayPal | F102: Yanaki | G102: West | H102: 19.95 | I102: 6 | J102: 119.7
A103: 100 | B103: 2010-05-07 | C103: 55 | D103: No Coupon | E103: Visa | F103: Yanaki | G103: West | H103: 19.95 | I103: 1 | J103: 19.95
A104: 101 | B104: 2010-03-03 | C104: 24 | D104: Coupon | E104: American Express | F104: Yanaki | G104: East | H104: 19.95 | I104: 2 | J104: 39.9
A105: 102 | B105: 2010-03-23 | C105: 30 | D105: No Coupon | E105: PayPal | F105: Carlota | G105: Mid West | H105: 22.95 | I105: 5 | J105: 114.75
A106: 103 | B106: 2010-12-05 | C106: 39 | D106: Coupon | E106: Visa | F106: Aspen | G106: Mid West | H106: 21.95 | I106: 1 | J106: 21.95
A107: 104 | B107: 2010-11-11 | C107: 59 | D107: Coupon | E107: PayPal | F107: Delicate Arch | G107: South | H107: 29.95 | I107: 6 | J107: 179.7
A108: 105 | B108: 2010-04-13 | C108: 26 | D108: No Coupon | E108: Discover | F108: Yanaki | G108: East | H108: 19.95 | I108: 2 | J108: 39.9
A109: 106 | B109: 2010-12-13 | C109: 33 | D109: No Coupon | E109: Visa | F109: Sunset | G109: Mid West | H109: 24.95 | I109: 1 | J109: 24.95
A110: 107 | B110: 2010-10-05 | C110: 20 | D110: No Coupon | E110: Visa | F110: Bellen | G110: West | H110: 24.95 | I110: 4 | J110: 99.8
A111: 108 | B111: 2010-01-02 | C111: 18 | D111: No Coupon | E111: Visa | F111: Aspen | G111: West | H111: 21.95 | I111: 4 | J111: 87.8
A112: 109 | B112: 2010-11-04 | C112: 19 | D112: Coupon | E112: PayPal | F112: Yanaki | G112: East | H112: 19.95 | I112: 2 | J112: 39.9
A113: 110 | B113: 2010-04-29 | C113: 61 | D113: No Coupon | E113: PayPal | F113: Aspen | G113: West | H113: 21.95 | I113: 3 | J113: 65.85
A114: 111 | B114: 2010-10-02 | C114: 39 | D114: Coupon | E114: PayPal | F114: Yanaki | G114: East | H114: 19.95 | I114: 10 | J114: 199.5
A115: 112 | B115: 2010-12-26 | C115: 52 | D115: Coupon | E115: Discover | F115: Aspen | G115: West | H115: 21.95 | I115: 1 | J115: 21.95
A116: 113 | B116: 2010-11-05 | C116: 20 | D116: No Coupon | E116: Visa | F116: Sunset | G116: West | H116: 24.95 | I116: 5 | J116: 124.75
A117: 114 | B117: 2010-11-15 | C117: 50 | D117: No Coupon | E117: Visa | F117: Delicate Arch | G117: West | H117: 29.95 | I117: 1 | J117: 29.95
A118: 115 | B118: 2010-06-27 | C118: 29 | D118: Coupon | E118: PayPal | F118: Aspen | G118: South | H118: 21.95 | I118: 1 | J118: 21.95
A119: 116 | B119: 2010-04-21 | C119: 55 | D119: No Coupon | E119: Visa | F119: Delicate Arch | G119: West | H119: 29.95 | I119: 4 | J119: 119.8
A120: 117 | B120: 2010-09-25 | C120: 18 | D120: No Coupon | E120: American Express | F120: Delicate Arch | G120: West | H120: 29.95 | I120: 3 | J120: 89.85
A121: 118 | B121: 2010-01-24 | C121: 39 | D121: Coupon | E121: Mastercard | F121: Aspen | G121: Mid West | H121: 21.95 | I121: 3 | J121: 65.85
A122: 119 | B122: 2010-01-04 | C122: 35 | D122: No Coupon | E122: Visa | F122: Carlota | G122: South | H122: 22.95 | I122: 4 | J122: 91.8
A123: 120 | B123: 2010-05-06 | C123: 38 | D123: Coupon | E123: American Express | F123: Bellen | G123: South | H123: 24.95 | I123: 6 | J123: 149.7
A124: 121 | B124: 2010-06-22 | C124: 20 | D124: No Coupon | E124: Visa | F124: Yanaki | G124: East | H124: 19.95 | I124: 3 | J124: 59.85
A125: 122 | B125: 2010-07-12 | C125: 60 | D125: No Coupon | E125: Discover | F125: Aspen | G125: Mid West | H125: 21.95 | I125: 6 | J125: 131.7
A126: 123 | B126: 2010-05-03 | C126: 61 | D126: No Coupon | E126: Visa | F126: Sunset | G126: Mid West | H126: 24.95 | I126: 2 | J126: 49.9
A127: 124 | B127: 2010-03-09 | C127: 62 | D127: Coupon | E127: PayPal | F127: Aspen | G127: West | H127: 21.95 | I127: 2 | J127: 43.9
A128: 125 | B128: 2010-03-02 | C128: 21 | D128: No Coupon | E128: Visa | F128: Yanaki | G128: Mid West | H128: 19.95 | I128: 1 | J128: 19.95
A129: 126 | B129: 2010-03-28 | C129: 40 | D129: No Coupon | E129: Discover | F129: Aspen | G129: South | H129: 21.95 | I129: 1 | J129: 21.95
A130: 127 | B130: 2010-01-15 | C130: 25 | D130: No Coupon | E130: Visa | F130: Bellen | G130: West | H130: 24.95 | I130: 1 | J130: 24.95
A131: 128 | B131: 2010-11-18 | C131: 50 | D131: No Coupon | E131: Mastercard | F131: Yanaki | G131: West | H131: 19.95 | I131: 2 | J131: 39.9
A132: 129 | B132: 2010-03-27 | C132: 24 | D132: No Coupon | E132: Visa | F132: Bellen | G132: West | H132: 24.95 | I132: 1 | J132: 24.95
A133: 130 | B133: 2010-08-11 | C133: 28 | D133: Coupon | E133: PayPal | F133: Carlota | G133: West | H133: 22.95 | I133: 5 | J133: 114.75
A134: 131 | B134: 2010-12-24 | C134: 22 | D134: No Coupon | E134: Visa | F134: Yanaki | G134: Mid West | H134: 19.95 | I134: 6 | J134: 119.7
A135: 132 | B135: 2010-11-27 | C135: 22 | D135: No Coupon | E135: PayPal | F135: Aspen | G135: West | H135: 21.95 | I135: 2 | J135: 43.9
A136: 133 | B136: 2010-03-12 | C136: 27 | D136: No Coupon | E136: Visa | F136: Bellen | G136: West | H136: 24.95 | I136: 1 | J136: 24.95
A137: 134 | B137: 2010-09-16 | C137: 54 | D137: Coupon | E137: Visa | F137: Sunset | G137: West | H137: 24.95 | I137: 7 | J137: 174.65
A138: 135 | B138: 2010-02-01 | C138: 25 | D138: No Coupon | E138: Mastercard | F138: Bellen | G138: West | H138: 24.95 | I138: 1 | J138: 24.95
A139: 136 | B139: 2010-07-03 | C139: 25 | D139: No Coupon | E139: Visa | F139: Sunset | G139: Mid West | H139: 24.95 | I139: 2 | J139: 49.9
A140: 137 | B140: 2010-08-30 | C140: 30 | D140: No Coupon | E140: PayPal | F140: Yanaki | G140: East | H140: 19.95 | I140: 1 | J140: 19.95
A141: 138 | B141: 2010-09-18 | C141: 59 | D141: Coupon | E141: Mastercard | F141: Yanaki | G141: South | H141: 19.95 | I141: 2 | J141: 39.9
A142: 139 | B142: 2010-11-24 | C142: 51 | D142: No Coupon | E142: Visa | F142: Carlota | G142: West | H142: 22.95 | I142: 2 | J142: 45.9
A143: 140 | B143: 2010-12-22 | C143: 38 | D143: No Coupon | E143: Visa | F143: Delicate Arch | G143: West | H143: 29.95 | I143: 6 | J143: 179.7
A144: 141 | B144: 2010-04-23 | C144: 28 | D144: No Coupon | E144: PayPal | F144: Carlota | G144: South | H144: 22.95 | I144: 7 | J144: 160.65
A145: 142 | B145: 2010-11-18 | C145: 30 | D145: Coupon | E145: Discover | F145: Aspen | G145: West | H145: 21.95 | I145: 1 | J145: 21.95
A146: 143 | B146: 2010-10-28 | C146: 43 | D146: No Coupon | E146: Visa | F146: Bellen | G146: South | H146: 24.95 | I146: 5 | J146: 124.75
A147: 144 | B147: 2010-08-14 | C147: 42 | D147: No Coupon | E147: PayPal | F147: Delicate Arch | G147: West | H147: 29.95 | I147: 3 | J147: 89.85
A148: 145 | B148: 2010-05-05 | C148: 24 | D148: No Coupon | E148: Visa | F148: Bellen | G148: Mid West | H148: 24.95 | I148: 2 | J148: 49.9
A149: 146 | B149: 2010-08-25 | C149: 47 | D149: Coupon | E149: Visa | F149: Carlota | G149: Mid West | H149: 22.95 | I149: 1 | J149: 22.95
A150: 147 | B150: 2010-10-25 | C150: 23 | D150: No Coupon | E150: PayPal | F150: Yanaki | G150: Mid West | H150: 19.95 | I150: 1 | J150: 19.95
A151: 148 | B151: 2010-07-31 | C151: 59 | D151: No Coupon | E151: PayPal | F151: Yanaki | G151: East | H151: 19.95 | I151: 5 | J151: 99.75
A152: 149 | B152: 2010-07-25 | C152: 22 | D152: Coupon | E152: Mastercard | F152: Carlota | G152: West | H152: 22.95 | I152: 4 | J152: 91.8
A153: 150 | B153: 2010-09-30 | C153: 27 | D153: Coupon | E153: Visa | F153: Bellen | G153: Mid West | H153: 24.95 | I153: 2 | J153: 49.9
A154: 151 | B154: 2010-10-03 | C154: 65 | D154: No Coupon | E154: Discover | F154: Aspen | G154: East | H154: 21.95 | I154: 1 | J154: 21.95
A155: 152 | B155: 2010-04-01 | C155: 27 | D155: No Coupon | E155: Mastercard | F155: Carlota | G155: Mid West | H155: 22.95 | I155: 2 | J155: 45.9
A156: 153 | B156: 2010-12-15 | C156: 27 | D156: No Coupon | E156: American Express | F156: Carlota | G156: East | H156: 22.95 | I156: 1 | J156: 22.95
A157: 154 | B157: 2010-01-07 | C157: 28 | D157: No Coupon | E157: PayPal | F157: Carlota | G157: West | H157: 22.95 | I157: 2 | J157: 45.9
A158: 155 | B158: 2010-07-23 | C158: 22 | D158: Coupon | E158: PayPal | F158: Bellen | G158: West | H158: 24.95 | I158: 1 | J158: 24.95
A159: 156 | B159: 2010-03-16 | C159: 42 | D159: No Coupon | E159: PayPal | F159: Yanaki | G159: East | H159: 19.95 | I159: 2 | J159: 39.9
A160: 157 | B160: 2010-12-04 | C160: 25 | D160: No Coupon | E160: American Express | F160: Delicate Arch | G160: East | H160: 29.95 | I160: 6 | J160: 179.7
A161: 158 | B161: 2010-01-08 | C161: 41 | D161: Coupon | E161: Mastercard | F161: Aspen | G161: West | H161: 21.95 | I161: 1 | J161: 21.95
A162: 159 | B162: 2010-06-02 | C162: 46 | D162: Coupon | E162: PayPal | F162: Bellen | G162: West | H162: 24.95 | I162: 1 | J162: 24.95
A163: 160 | B163: 2010-08-18 | C163: 41 | D163: No Coupon | E163: Discover | F163: Sunset | G163: West | H163: 24.95 | I163: 3 | J163: 74.85
A164: 161 | B164: 2010-04-24 | C164: 29 | D164: No Coupon | E164: Mastercard | F164: Yanaki | G164: West | H164: 19.95 | I164: 4 | J164: 79.8
A165: 162 | B165: 2010-12-01 | C165: 50 | D165: No Coupon | E165: Visa | F165: Yanaki | G165: Mid West | H165: 19.95 | I165: 1 | J165: 19.95
A166: 163 | B166: 2010-12-31 | C166: 50 | D166: Coupon | E166: Visa | F166: Carlota | G166: Mid West | H166: 22.95 | I166: 1 | J166: 22.95
A167: 164 | B167: 2010-04-30 | C167: 34 | D167: Coupon | E167: PayPal | F167: Carlota | G167: Mid West | H167: 22.95 | I167: 2 | J167: 45.9
A168: 165 | B168: 2010-03-16 | C168: 24 | D168: Coupon | E168: American Express | F168: Aspen | G168: West | H168: 21.95 | I168: 3 | J168: 65.85
A169: 166 | B169: 2010-01-28 | C169: 29 | D169: No Coupon | E169: Mastercard | F169: Yanaki | G169: West | H169: 19.95 | I169: 7 | J169: 139.65
A170: 167 | B170: 2010-08-03 | C170: 35 | D170: No Coupon | E170: Mastercard | F170: Carlota | G170: Mid West | H170: 22.95 | I170: 1 | J170: 22.95
A171: 168 | B171: 2010-11-11 | C171: 24 | D171: No Coupon | E171: Visa | F171: Yanaki | G171: West | H171: 19.95 | I171: 2 | J171: 39.9
A172: 169 | B172: 2010-12-13 | C172: 23 | D172: Coupon | E172: Visa | F172: Aspen | G172: South | H172: 21.95 | I172: 5 | J172: 109.75
A173: 170 | B173: 2010-03-27 | C173: 31 | D173: No Coupon | E173: PayPal | F173: Carlota | G173: Mid West | H173: 22.95 | I173: 7 | J173: 160.65
A174: 171 | B174: 2010-10-08 | C174: 24 | D174: Coupon | E174: PayPal | F174: Bellen | G174: Mid West | H174: 24.95 | I174: 2 | J174: 49.9
A175: 172 | B175: 2010-08-03 | C175: 30 | D175: No Coupon | E175: Visa | F175: Carlota | G175: Mid West | H175: 22.95 | I175: 1 | J175: 22.95
A176: 173 | B176: 2010-03-10 | C176: 22 | D176: Coupon | E176: Visa | F176: Carlota | G176: West | H176: 22.95 | I176: 2 | J176: 45.9
A177: 174 | B177: 2010-03-02 | C177: 43 | D177: No Coupon | E177: Visa | F177: Carlota | G177: East | H177: 22.95 | I177: 3 | J177: 68.85
A178: 175 | B178: 2010-01-26 | C178: 55 | D178: No Coupon | E178: Visa | F178: Carlota | G178: West | H178: 22.95 | I178: 10 | J178: 229.5
A179: 176 | B179: 2010-05-06 | C179: 38 | D179: No Coupon | E179: American Express | F179: Delicate Arch | G179: West | H179: 29.95 | I179: 1 | J179: 29.95
A180: 177 | B180: 2010-03-10 | C180: 28 | D180: Coupon | E180: Visa | F180: Yanaki | G180: West | H180: 19.95 | I180: 2 | J180: 39.9
A181: 178 | B181: 2010-11-18 | C181: 30 | D181: Coupon | E181: PayPal | F181: Aspen | G181: Mid West | H181: 21.95 | I181: 2 | J181: 43.9
A182: 179 | B182: 2010-01-30 | C182: 35 | D182: Coupon | E182: Discover | F182: Yanaki | G182: West | H182: 19.95 | I182: 1 | J182: 19.95
A183: 180 | B183: 2010-07-02 | C183: 41 | D183: No Coupon | E183: Visa | F183: Delicate Arch | G183: West | H183: 29.95 | I183: 2 | J183: 59.9
A184: 181 | B184: 2010-10-13 | C184: 28 | D184: Coupon | E184: Discover | F184: Yanaki | G184: East | H184: 19.95 | I184: 5 | J184: 99.75
A185: 182 | B185: 2010-02-07 | C185: 65 | D185: No Coupon | E185: Discover | F185: Bellen | G185: Mid West | H185: 24.95 | I185: 7 | J185: 174.65
A186: 183 | B186: 2010-06-05 | C186: 20 | D186: No Coupon | E186: Mastercard | F186: Aspen | G186: West | H186: 21.95 | I186: 3 | J186: 65.85
A187: 184 | B187: 2010-11-02 | C187: 39 | D187: No Coupon | E187: Visa | F187: Sunset | G187: Mid West | H187: 24.95 | I187: 5 | J187: 124.75
A188: 185 | B188: 2010-12-13 | C188: 19 | D188: No Coupon | E188: Visa | F188: Aspen | G188: East | H188: 21.95 | I188: 4 | J188: 87.8
A189: 186 | B189: 2010-10-23 | C189: 64 | D189: No Coupon | E189: Visa | F189: Carlota | G189: West | H189: 22.95 | I189: 10 | J189: 229.5
A190: 187 | B190: 2010-12-22 | C190: 42 | D190: Coupon | E190: PayPal | F190: Yanaki | G190: South | H190: 19.95 | I190: 5 | J190: 99.75
A191: 188 | B191: 2010-08-21 | C191: 24 | D191: Coupon | E191: PayPal | F191: Yanaki | G191: Mid West | H191: 19.95 | I191: 1 | J191: 19.95
A192: 189 | B192: 2010-08-28 | C192: 24 | D192: Coupon | E192: PayPal | F192: Yanaki | G192: Mid West | H192: 19.95 | I192: 1 | J192: 19.95
A193: 190 | B193: 2010-06-20 | C193: 18 | D193: No Coupon | E193: American Express | F193: Bellen | G193: Mid West | H193: 24.95 | I193: 4 | J193: 99.8
A194: 191 | B194: 2010-04-30 | C194: 36 | D194: Coupon | E194: Mastercard | F194: Bellen | G194: East | H194: 24.95 | I194: 1 | J194: 24.95
A195: 192 | B195: 2010-10-14 | C195: 61 | D195: No Coupon | E195: Mastercard | F195: Carlota | G195: Mid West | H195: 22.95 | I195: 5 | J195: 114.75
A196: 193 | B196: 2010-08-04 | C196: 22 | D196: No Coupon | E196: Visa | F196: Yanaki | G196: West | H196: 19.95 | I196: 3 | J196: 59.85
A197: 194 | B197: 2010-10-28 | C197: 55 | D197: Coupon | E197: PayPal | F197: Aspen | G197: West | H197: 21.95 | I197: 2 | J197: 43.9
A198: 195 | B198: 2010-11-04 | C198: 27 | D198: No Coupon | E198: American Express | F198: Sunset | G198: West | H198: 24.95 | I198: 3 | J198: 74.85
A199: 196 | B199: 2010-01-05 | C199: 49 | D199: No Coupon | E199: PayPal | F199: Yanaki | G199: Mid West | H199: 19.95 | I199: 1 | J199: 19.95
A200: 197 | B200: 2010-12-11 | C200: 29 | D200: Coupon | E200: Visa | F200: Carlota | G200: West | H200: 22.95 | I200: 1 | J200: 22.95
A201: 198 | B201: 2010-07-18 | C201: 33 | D201: No Coupon | E201: PayPal | F201: Aspen | G201: West | H201: 21.95 | I201: 7 | J201: 153.65
... 2 more rows

Sheet DS (an)
A1: Sample of 200 sales from www.boomerangs.com. Use Descriptive Statistics to reveal patterns in raw data. | L1: Sales
A3: No. | B3: Date (2010) | C3: Customer Age | D3: Coupon | E3: Payment Method | F3: Product (Boomerang Name) | G3: Region | H3: Price | I3: Units | J3: Sales | L3: Mean | M3: 75.05775
A4: 1 | B4: 2010-05-22 | C4: 21 | D4: Coupon | E4: Mastercard | F4: Carlota | G4: West | H4: 22.95 | I4: 2 | J4: 45.9 | L4: Standard Error | M4: 3.924790589
A5: 2 | B5: 2010-06-29 | C5: 57 | D5: Coupon | E5: Mastercard | F5: Yanaki | G5: West | H5: 19.95 | I5: 1 | J5: 19.95 | L5: Median | M5: 59.85
A6: 3 | B6: 2010-11-05 | C6: 25 | D6: No Coupon | E6: Mastercard | F6: Aspen | G6: East | H6: 21.95 | I6: 1 | J6: 21.95 | L6: Mode | M6: 19.95
A7: 4 | B7: 2010-08-31 | C7: 38 | D7: No Coupon | E7: American Express | F7: Yanaki | G7: West | H7: 19.95 | I7: 1 | J7: 19.95 | L7: Standard Deviation | M7: 55.50492081
A8: 5 | B8: 2010-05-30 | C8: 22 | D8: Coupon | E8: Visa | F8: Yanaki | G8: West | H8: 19.95 | I8: 4 | J8: 79.8 | L8: Sample Variance | M8: 3080.796234
A9: 6 | B9: 2010-10-05 | C9: 29 | D9: Coupon | E9: PayPal | F9: Yanaki | G9: South | H9: 19.95 | I9: 4 | J9: 79.8 | L9: Kurtosis | M9: 1.386185116
A10: 7 | B10: 2010-03-22 | C10: 18 | D10: Coupon | E10: Visa | F10: Yanaki | G10: West | H10: 19.95 | I10: 3 | J10: 59.85 | L10: Skewness | M10: 1.214194177
A11: 8 | B11: 2010-06-14 | C11: 64 | D11: No Coupon | E11: Discover | F11: Yanaki | G11: West | H11: 19.95 | I11: 7 | J11: 139.65 | L11: Range | M11: 279.55
A12: 9 | B12: 2010-05-09 | C12: 27 | D12: No Coupon | E12: American Express | F12: Yanaki | G12: West | H12: 19.95 | I12: 6 | J12: 119.7 | L12: Minimum | M12: 19.95
A13: 10 | B13: 2010-08-28 | C13: 22 | D13: No Coupon | E13: Visa | F13: Aspen | G13: West | H13: 21.95 | I13: 2 | J13: 43.9 | L13: Maximum | M13: 299.5
A14: 11 | B14: 2010-11-30 | C14: 39 | D14: Coupon | E14: PayPal | F14: Aspen | G14: Mid West | H14: 21.95 | I14: 2 | J14: 43.9 | L14: Sum | M14: 15011.55
A15: 12 | B15: 2010-09-13 | C15: 61 | D15: No Coupon | E15: Mastercard | F15: Yanaki | G15: Mid West | H15: 19.95 | I15: 5 | J15: 99.75 | L15: Count | M15: 200
A16: 13 | B16: 2010-10-23 | C16: 18 | D16: No Coupon | E16: Visa | F16: Carlota | G16: Mid West | H16: 22.95 | I16: 5 | J16: 114.75
A17: 14 | B17: 2010-09-19 | C17: 22 | D17: No Coupon | E17: PayPal | F17: Carlota | G17: West | H17: 22.95 | I17: 4 | J17: 91.8
A18: 15 | B18: 2010-09-20 | C18: 52 | D18: No Coupon | E18: American Express | F18: Carlota | G18: Mid West | H18: 22.95 | I18: 5 | J18: 114.75
A19: 16 | B19: 2010-01-18 | C19: 22 | D19: Coupon | E19: Visa | F19: Carlota | G19: West | H19: 22.95 | I19: 1 | J19: 22.95
A20: 17 | B20: 2010-07-28 | C20: 18 | D20: No Coupon | E20: Discover | F20: Sunset | G20: West | H20: 24.95 | I20: 5 | J20: 124.75
A21: 18 | B21: 2010-06-06 | C21: 55 | D21: No Coupon | E21: PayPal | F21: Yanaki | G21: South | H21: 19.95 | I21: 1 | J21: 19.95
A22: 19 | B22: 2010-01-30 | C22: 20 | D22: No Coupon | E22: PayPal | F22: Aspen | G22: East | H22: 21.95 | I22: 4 | J22: 87.8
A23: 20 | B23: 2010-10-09 | C23: 42 | D23: Coupon | E23: PayPal | F23: Carlota | G23: Mid West | H23: 22.95 | I23: 1 | J23: 22.95
A24: 21 | B24: 2010-07-04 | C24: 30 | D24: No Coupon | E24: PayPal | F24: Delicate Arch | G24: South | H24: 29.95 | I24: 10 | J24: 299.5
A25: 22 | B25: 2010-11-08 | C25: 64 | D25: Coupon | E25: Visa | F25: Yanaki | G25: Mid West | H25: 19.95 | I25: 1 | J25: 19.95
A26: 23 | B26: 2010-06-09 | C26: 63 | D26: Coupon | E26: PayPal | F26: Yanaki | G26: Mid West | H26: 19.95 | I26: 5 | J26: 99.75
A27: 24 | B27: 2010-03-17 | C27: 41 | D27: Coupon | E27: Mastercard | F27: Yanaki | G27: South | H27: 19.95 | I27: 2 | J27: 39.9
A28: 25 | B28: 2010-04-07 | C28: 21 | D28: No Coupon | E28: Visa | F28: Aspen | G28: East | H28: 21.95 | I28: 3 | J28: 65.85
A29: 26 | B29: 2010-01-05 | C29: 63 | D29: No Coupon | E29: PayPal | F29: Sunset | G29: East | H29: 24.95 | I29: 1 | J29: 24.95
A30: 27 | B30: 2010-07-22 | C30: 54 | D30: No Coupon | E30: American Express | F30: Aspen | G30: West | H30: 21.95 | I30: 1 | J30: 21.95
A31: 28 | B31: 2010-11-12 | C31: 18 | D31: No Coupon | E31: American Express | F31: Yanaki | G31: West | H31: 19.95 | I31: 1 | J31: 19.95
A32: 29 | B32: 2010-05-11 | C32: 26 | D32: No Coupon | E32: Discover | F32: Carlota | G32: West | H32: 22.95 | I32: 4 | J32: 91.8
A33: 30 | B33: 2010-04-14 | C33: 59 | D33: No Coupon | E33: PayPal | F33: Aspen | G33: Mid West | H33: 21.95 | I33: 3 | J33: 65.85
A34: 31 | B34: 2010-08-11 | C34: 30 | D34: No Coupon | E34: Discover | F34: Yanaki | G34: West | H34: 19.95 | I34: 2 | J34: 39.9
A35: 32 | B35: 2010-11-14 | C35: 64 | D35: No Coupon | E35: Visa | F35: Aspen | G35: West | H35: 21.95 | I35: 2 | J35: 43.9
A36: 33 | B36: 2010-01-21 | C36: 30 | D36: No Coupon | E36: PayPal | F36: Aspen | G36: West | H36: 21.95 | I36: 3 | J36: 65.85
A37: 34 | B37: 2010-04-12 | C37: 41 | D37: Coupon | E37: American Express | F37: Aspen | G37: West | H37: 21.95 | I37: 2 | J37: 43.9
A38: 35 | B38: 2010-06-04 | C38: 23 | D38: Coupon | E38: Mastercard | F38: Yanaki | G38: South | H38: 19.95 | I38: 5 | J38: 99.75
A39: 36 | B39: 2010-10-19 | C39: 52 | D39: Coupon | E39: Visa | F39: Delicate Arch | G39: West | H39: 29.95 | I39: 1 | J39: 29.95
A40: 37 | B40: 2010-09-07 | C40: 18 | D40: No Coupon | E40: PayPal | F40: Aspen | G40: West | H40: 21.95 | I40: 3 | J40: 65.85
A41: 38 | B41: 2010-09-19 | C41: 32 | D41: No Coupon | E41: PayPal | F41: Carlota | G41: West | H41: 22.95 | I41: 1 | J41: 22.95
A42: 39 | B42: 2010-01-17 | C42: 22 | D42: Coupon | E42: American Express | F42: Yanaki | G42: Mid West | H42: 19.95 | I42: 1 | J42: 19.95
A43: 40 | B43: 2010-03-15 | C43: 29 | D43: Coupon | E43: PayPal | F43: Yanaki | G43: South | H43: 19.95 | I43: 5 | J43: 99.75
A44: 41 | B44: 2010-12-16 | C44: 25 | D44: No Coupon | E44: Mastercard | F44: Bellen | G44: Mid West | H44: 24.95 | I44: 5 | J44: 124.75
A45: 42 | B45: 2010-07-08 | C45: 63 | D45: No Coupon | E45: PayPal | F45: Aspen | G45: West | H45: 21.95 | I45: 1 | J45: 21.95
A46: 43 | B46: 2010-05-13 | C46: 26 | D46: No Coupon | E46: Mastercard | F46: Sunset | G46: Mid West | H46: 24.95 | I46: 7 | J46: 174.65
A47: 44 | B47: 2010-03-03 | C47: 31 | D47: Coupon | E47: Discover | F47: Delicate Arch | G47: West | H47: 29.95 | I47: 1 | J47: 29.95
A48: 45 | B48: 2010-04-30 | C48: 23 | D48: No Coupon | E48: PayPal | F48: Delicate Arch | G48: Mid West | H48: 29.95 | I48: 5 | J48: 149.75
A49: 46 | B49: 2010-07-11 | C49: 42 | D49: Coupon | E49: PayPal | F49: Delicate Arch | G49: Mid West | H49: 29.95 | I49: 1 | J49: 29.95
A50: 47 | B50: 2010-03-22 | C50: 28 | D50: Coupon | E50: Visa | F50: Carlota | G50: East | H50: 22.95 | I50: 2 | J50: 45.9
A51: 48 | B51: 2010-08-27 | C51: 23 | D51: No Coupon | E51: Visa | F51: Carlota | G51: West | H51: 22.95 | I51: 7 | J51: 160.65
A52: 49 | B52: 2010-11-16 | C52: 19 | D52: No Coupon | E52: Mastercard | F52: Carlota | G52: Mid West | H52: 22.95 | I52: 7 | J52: 160.65
A53: 50 | B53: 2010-01-26 | C53: 37 | D53: Coupon | E53: Visa | F53: Yanaki | G53: West | H53: 19.95 | I53: 6 | J53: 119.7
A54: 51 | B54: 2010-05-06 | C54: 38 | D54: No Coupon | E54: Mastercard | F54: Aspen | G54: East | H54: 21.95 | I54: 2 | J54: 43.9
A55: 52 | B55: 2010-03-18 | C55: 50 | D55: Coupon | E55: Mastercard | F55: Yanaki | G55: Mid West | H55: 19.95 | I55: 6 | J55: 119.7
A56: 53 | B56: 2010-04-16 | C56: 26 | D56: No Coupon | E56: Discover | F56: Aspen | G56: West | H56: 21.95 | I56: 3 | J56: 65.85
A57: 54 | B57: 2010-01-05 | C57: 33 | D57: No Coupon | E57: PayPal | F57: Carlota | G57: South | H57: 22.95 | I57: 1 | J57: 22.95
A58: 55 | B58: 2010-11-09 | C58: 59 | D58: No Coupon | E58: PayPal | F58: Aspen | G58: Mid West | H58: 21.95 | I58: 3 | J58: 65.85
A59: 56 | B59: 2010-07-29 | C59: 32 | D59: No Coupon | E59: Visa | F59: Aspen | G59: Mid West | H59: 21.95 | I59: 5 | J59: 109.75
A60: 57 | B60: 2010-12-07 | C60: 27 | D60: No Coupon | E60: Visa | F60: Carlota | G60: Mid West | H60: 22.95 | I60: 5 | J60: 114.75
A61: 58 | B61: 2010-11-22 | C61: 54 | D61: Coupon | E61: American Express | F61: Bellen | G61: West | H61: 24.95 | I61: 10 | J61: 249.5
A62: 59 | B62: 2010-01-10 | C62: 63 | D62: No Coupon | E62: PayPal | F62: Aspen | G62: West | H62: 21.95 | I62: 5 | J62: 109.75
A63: 60 | B63: 2010-06-01 | C63: 48 | D63: No Coupon | E63: Visa | F63: Carlota | G63: East | H63: 22.95 | I63: 5 | J63: 114.75
A64: 61 | B64: 2010-05-02 | C64: 29 | D64: No Coupon | E64: American Express | F64: Carlota | G64: East | H64: 22.95 | I64: 5 | J64: 114.75
A65: 62 | B65: 2010-06-13 | C65: 38 | D65: Coupon | E65: Visa | F65: Delicate Arch | G65: West | H65: 29.95 | I65: 4 | J65: 119.8
A66: 63 | B66: 2010-02-16 | C66: 24 | D66: Coupon | E66: Mastercard | F66: Delicate Arch | G66: East | H66: 29.95 | I66: 1 | J66: 29.95
A67: 64 | B67: 2010-08-02 | C67: 51 | D67: No Coupon | E67: Visa | F67: Carlota | G67: West | H67: 22.95 | I67: 5 | J67: 114.75
A68: 65 | B68: 2010-11-01 | C68: 25 | D68: Coupon | E68: Mastercard | F68: Delicate Arch | G68: West | H68: 29.95 | I68: 7 | J68: 209.65
A69: 66 | B69: 2010-11-08 | C69: 65 | D69: No Coupon | E69: Visa | F69: Carlota | G69: West | H69: 22.95 | I69: 5 | J69: 114.75
A70: 67 | B70: 2010-08-17 | C70: 35 | D70: No Coupon | E70: PayPal | F70: Yanaki | G70: Mid West | H70: 19.95 | I70: 3 | J70: 59.85
A71: 68 | B71: 2010-09-27 | C71: 35 | D71: No Coupon | E71: Mastercard | F71: Sunset | G71: East | H71: 24.95 | I71: 5 | J71: 124.75
A72: 69 | B72: 2010-01-09 | C72: 21 | D72: No Coupon | E72: Visa | F72: Yanaki | G72: Mid West | H72: 19.95 | I72: 2 | J72: 39.9
A73: 70 | B73: 2010-10-10 | C73: 47 | D73: No Coupon | E73: Mastercard | F73: Sunset | G73: West | H73: 24.95 | I73: 5 | J73: 124.75
A74: 71 | B74: 2010-12-31 | C74: 62 | D74: No Coupon | E74: Discover | F74: Sunset | G74: East | H74: 24.95 | I74: 1 | J74: 24.95
A75: 72 | B75: 2010-12-06 | C75: 63 | D75: No Coupon | E75: PayPal | F75: Carlota | G75: East | H75: 22.95 | I75: 1 | J75: 22.95
A76: 73 | B76: 2010-03-18 | C76: 23 | D76: No Coupon | E76: American Express | F76: Bellen | G76: Mid West | H76: 24.95 | I76: 10 | J76: 249.5
A77: 74 | B77: 2010-03-22 | C77: 59 | D77: No Coupon | E77: Visa | F77: Yanaki | G77: South | H77: 19.95 | I77: 3 | J77: 59.85
A78: 75 | B78: 2010-09-14 | C78: 48 | D78: Coupon | E78: Visa | F78: Aspen | G78: West | H78: 21.95 | I78: 2 | J78: 43.9
A79: 76 | B79: 2010-02-09 | C79: 57 | D79: No Coupon | E79: Mastercard | F79: Yanaki | G79: South | H79: 19.95 | I79: 1 | J79: 19.95
A80: 77 | B80: 2010-03-24 | C80: 19 | D80: No Coupon | E80: Discover | F80: Delicate Arch | G80: Mid West | H80: 29.95 | I80: 1 | J80: 29.95
A81: 78 | B81: 2010-07-28 | C81: 48 | D81: Coupon | E81: Mastercard | F81: Yanaki | G81: Mid West | H81: 19.95 | I81: 1 | J81: 19.95
A82: 79 | B82: 2010-08-26 | C82: 21 | D82: Coupon | E82: Mastercard | F82: Aspen | G82: South | H82: 21.95 | I82: 3 | J82: 65.85
A83: 80 | B83: 2010-03-05 | C83: 40 | D83: No Coupon | E83: American Express | F83: Carlota | G83: West | H83: 22.95 | I83: 1 | J83: 22.95
A84: 81 | B84: 2010-08-18 | C84: 25 | D84: No Coupon | E84: Visa | F84: Yanaki | G84: Mid West | H84: 19.95 | I84: 4 | J84: 79.8
A85: 82 | B85: 2010-11-02 | C85: 59 | D85: Coupon | E85: Mastercard | F85: Yanaki | G85: South | H85: 19.95 | I85: 4 | J85: 79.8
A86: 83 | B86: 2010-12-19 | C86: 57 | D86: No Coupon | E86: Visa | F86: Carlota | G86: West | H86: 22.95 | I86: 5 | J86: 114.75
A87: 84 | B87: 2010-07-05 | C87: 56 | D87: Coupon | E87: Discover | F87: Carlota | G87: West | H87: 22.95 | I87: 1 | J87: 22.95
A88: 85 | B88: 2010-04-16 | C88: 19 | D88: No Coupon | E88: Visa | F88: Yanaki | G88: West | H88: 19.95 | I88: 1 | J88: 19.95
A89: 86 | B89: 2010-12-23 | C89: 54 | D89: No Coupon | E89: Visa | F89: Aspen | G89: Mid West | H89: 21.95 | I89: 5 | J89: 109.75
A90: 87 | B90: 2010-05-29 | C90: 65 | D90: No Coupon | E90: PayPal | F90: Delicate Arch | G90: Mid West | H90: 29.95 | I90: 2 | J90: 59.9
A91: 88 | B91: 2010-05-01 | C91: 25 | D91: Coupon | E91: PayPal | F91: Aspen | G91: West | H91: 21.95 | I91: 2 | J91: 43.9
A92: 89 | B92: 2010-07-03 | C92: 30 | D92: No Coupon | E92: American Express | F92: Yanaki | G92: West | H92: 19.95 | I92: 2 | J92: 39.9
A93: 90 | B93: 2010-08-12 | C93: 57 | D93: No Coupon | E93: Mastercard | F93: Delicate Arch | G93: West | H93: 29.95 | I93: 7 | J93: 209.65
A94: 91 | B94: 2010-06-21 | C94: 43 | D94: Coupon | E94: PayPal | F94: Yanaki | G94: West | H94: 19.95 | I94: 1 | J94: 19.95
A95: 92 | B95: 2010-12-15 | C95: 44 | D95: No Coupon | E95: Mastercard | F95: Yanaki | G95: South | H95: 19.95 | I95: 4 | J95: 79.8
A96: 93 | B96: 2010-05-25 | C96: 21 | D96: No Coupon | E96: PayPal | F96: Bellen | G96: East | H96: 24.95 | I96: 5 | J96: 124.75
A97: 94 | B97: 2010-03-23 | C97: 20 | D97: No Coupon | E97: PayPal | F97: Bellen | G97: West | H97: 24.95 | I97: 1 | J97: 24.95
A98: 95 | B98: 2010-01-22 | C98: 49 | D98: Coupon | E98: Visa | F98: Carlota | G98: West | H98: 22.95 | I98: 7 | J98: 160.65
A99: 96 | B99: 2010-09-26 | C99: 37 | D99: No Coupon | E99: Mastercard | F99: Aspen | G99: South | H99: 21.95 | I99: 3 | J99: 65.85
A100: 97 | B100: 2010-12-27 | C100: 26 | D100: No Coupon | E100: PayPal | F100: Carlota | G100: West | H100: 22.95 | I100: 6 | J100: 137.7
A101: 98 | B101: 2010-07-24 | C101: 62 | D101: No Coupon | E101: Mastercard | F101: Delicate Arch | G101: East | H101: 29.95 | I101: 1 | J101: 29.95
A102: 99 | B102: 2010-04-27 | C102: 38 | D102: No Coupon | E102: PayPal | F102: Yanaki | G102: West | H102: 19.95 | I102: 6 | J102: 119.7
A103: 100 | B103: 2010-05-07 | C103: 55 | D103: No Coupon | E103: Visa | F103: Yanaki | G103: West | H103: 19.95 | I103: 1 | J103: 19.95
A104: 101 | B104: 2010-03-03 | C104: 24 | D104: Coupon | E104: American Express | F104: Yanaki | G104: East | H104: 19.95 | I104: 2 | J104: 39.9
A105: 102 | B105: 2010-03-23 | C105: 30 | D105: No Coupon | E105: PayPal | F105: Carlota | G105: Mid West | H105: 22.95 | I105: 5 | J105: 114.75
A106: 103 | B106: 2010-12-05 | C106: 39 | D106: Coupon | E106: Visa | F106: Aspen | G106: Mid West | H106: 21.95 | I106: 1 | J106: 21.95
A107: 104 | B107: 2010-11-11 | C107: 59 | D107: Coupon | E107: PayPal | F107: Delicate Arch | G107: South | H107: 29.95 | I107: 6 | J107: 179.7
A108: 105 | B108: 2010-04-13 | C108: 26 | D108: No Coupon | E108: Discover | F108: Yanaki | G108: East | H108: 19.95 | I108: 2 | J108: 39.9
A109: 106 | B109: 2010-12-13 | C109: 33 | D109: No Coupon | E109: Visa | F109: Sunset | G109: Mid West | H109: 24.95 | I109: 1 | J109: 24.95
A110: 107 | B110: 2010-10-05 | C110: 20 | D110: No Coupon | E110: Visa | F110: Bellen | G110: West | H110: 24.95 | I110: 4 | J110: 99.8
A111: 108 | B111: 2010-01-02 | C111: 18 | D111: No Coupon | E111: Visa | F111: Aspen | G111: West | H111: 21.95 | I111: 4 | J111: 87.8
A112: 109 | B112: 2010-11-04 | C112: 19 | D112: Coupon | E112: PayPal | F112: Yanaki | G112: East | H112: 19.95 | I112: 2 | J112: 39.9
A113: 110 | B113: 2010-04-29 | C113: 61 | D113: No Coupon | E113: PayPal | F113: Aspen | G113: West | H113: 21.95 | I113: 3 | J113: 65.85
A114: 111 | B114: 2010-10-02 | C114: 39 | D114: Coupon | E114: PayPal | F114: Yanaki | G114: East | H114: 19.95 | I114: 10 | J114: 199.5
A115: 112 | B115: 2010-12-26 | C115: 52 | D115: Coupon | E115: Discover | F115: Aspen | G115: West | H115: 21.95 | I115: 1 | J115: 21.95
A116: 113 | B116: 2010-11-05 | C116: 20 | D116: No Coupon | E116: Visa | F116: Sunset | G116: West | H116: 24.95 | I116: 5 | J116: 124.75
A117: 114 | B117: 2010-11-15 | C117: 50 | D117: No Coupon | E117: Visa | F117: Delicate Arch | G117: West | H117: 29.95 | I117: 1 | J117: 29.95
A118: 115 | B118: 2010-06-27 | C118: 29 | D118: Coupon | E118: PayPal | F118: Aspen | G118: South | H118: 21.95 | I118: 1 | J118: 21.95
A119: 116 | B119: 2010-04-21 | C119: 55 | D119: No Coupon | E119: Visa | F119: Delicate Arch | G119: West | H119: 29.95 | I119: 4 | J119: 119.8
A120: 117 | B120: 2010-09-25 | C120: 18 | D120: No Coupon | E120: American Express | F120: Delicate Arch | G120: West | H120: 29.95 | I120: 3 | J120: 89.85
A121: 118 | B121: 2010-01-24 | C121: 39 | D121: Coupon | E121: Mastercard | F121: Aspen | G121: Mid West | H121: 21.95 | I121: 3 | J121: 65.85
A122: 119 | B122: 2010-01-04 | C122: 35 | D122: No Coupon | E122: Visa | F122: Carlota | G122: South | H122: 22.95 | I122: 4 | J122: 91.8
A123: 120 | B123: 2010-05-06 | C123: 38 | D123: Coupon | E123: American Express | F123: Bellen | G123: South | H123: 24.95 | I123: 6 | J123: 149.7
A124: 121 | B124: 2010-06-22 | C124: 20 | D124: No Coupon | E124: Visa | F124: Yanaki | G124: East | H124: 19.95 | I124: 3 | J124: 59.85
A125: 122 | B125: 2010-07-12 | C125: 60 | D125: No Coupon | E125: Discover | F125: Aspen | G125: Mid West | H125: 21.95 | I125: 6 | J125: 131.7
A126: 123 | B126: 2010-05-03 | C126: 61 | D126: No Coupon | E126: Visa | F126: Sunset | G126: Mid West | H126: 24.95 | I126: 2 | J126: 49.9
A127: 124 | B127: 2010-03-09 | C127: 62 | D127: Coupon | E127: PayPal | F127: Aspen | G127: West | H127: 21.95 | I127: 2 | J127: 43.9
A128: 125 | B128: 2010-03-02 | C128: 21 | D128: No Coupon | E128: Visa | F128: Yanaki | G128: Mid West | H128: 19.95 | I128: 1 | J128: 19.95
A129: 126 | B129: 2010-03-28 | C129: 40 | D129: No Coupon | E129: Discover | F129: Aspen | G129: South | H129: 21.95 | I129: 1 | J129: 21.95
A130: 127 | B130: 2010-01-15 | C130: 25 | D130: No Coupon | E130: Visa | F130: Bellen | G130: West | H130: 24.95 | I130: 1 | J130: 24.95
A131: 128 | B131: 2010-11-18 | C131: 50 | D131: No Coupon | E131: Mastercard | F131: Yanaki | G131: West | H131: 19.95 | I131: 2 | J131: 39.9
A132: 129 | B132: 2010-03-27 | C132: 24 | D132: No Coupon | E132: Visa | F132: Bellen | G132: West | H132: 24.95 | I132: 1 | J132: 24.95
A133: 130 | B133: 2010-08-11 | C133: 28 | D133: Coupon | E133: PayPal | F133: Carlota | G133: West | H133: 22.95 | I133: 5 | J133: 114.75
A134: 131 | B134: 2010-12-24 | C134: 22 | D134: No Coupon | E134: Visa | F134: Yanaki | G134: Mid West | H134: 19.95 | I134: 6 | J134: 119.7
A135: 132 | B135: 2010-11-27 | C135: 22 | D135: No Coupon | E135: PayPal | F135: Aspen | G135: West | H135: 21.95 | I135: 2 | J135: 43.9
A136: 133 | B136: 2010-03-12 | C136: 27 | D136: No Coupon | E136: Visa | F136: Bellen | G136: West | H136: 24.95 | I136: 1 | J136: 24.95
A137: 134 | B137: 2010-09-16 | C137: 54 | D137: Coupon | E137: Visa | F137: Sunset | G137: West | H137: 24.95 | I137: 7 | J137: 174.65
A138: 135 | B138: 2010-02-01 | C138: 25 | D138: No Coupon | E138: Mastercard | F138: Bellen | G138: West | H138: 24.95 | I138: 1 | J138: 24.95
A139: 136 | B139: 2010-07-03 | C139: 25 | D139: No Coupon | E139: Visa | F139: Sunset | G139: Mid West | H139: 24.95 | I139: 2 | J139: 49.9
A140: 137 | B140: 2010-08-30 | C140: 30 | D140: No Coupon | E140: PayPal | F140: Yanaki | G140: East | H140: 19.95 | I140: 1 | J140: 19.95
A141: 138 | B141: 2010-09-18 | C141: 59 | D141: Coupon | E141: Mastercard | F141: Yanaki | G141: South | H141: 19.95 | I141: 2 | J141: 39.9
A142: 139 | B142: 2010-11-24 | C142: 51 | D142: No Coupon | E142: Visa | F142: Carlota | G142: West | H142: 22.95 | I142: 2 | J142: 45.9
A143: 140 | B143: 2010-12-22 | C143: 38 | D143: No Coupon | E143: Visa | F143: Delicate Arch | G143: West | H143: 29.95 | I143: 6 | J143: 179.7
A144: 141 | B144: 2010-04-23 | C144: 28 | D144: No Coupon | E144: PayPal | F144: Carlota | G144: South | H144: 22.95 | I144: 7 | J144: 160.65
A145: 142 | B145: 2010-11-18 | C145: 30 | D145: Coupon | E145: Discover | F145: Aspen | G145: West | H145: 21.95 | I145: 1 | J145: 21.95
A146: 143 | B146: 2010-10-28 | C146: 43 | D146: No Coupon | E146: Visa | F146: Bellen | G146: South | H146: 24.95 | I146: 5 | J146: 124.75
A147: 144 | B147: 2010-08-14 | C147: 42 | D147: No Coupon | E147: PayPal | F147: Delicate Arch | G147: West | H147: 29.95 | I147: 3 | J147: 89.85
A148: 145 | B148: 2010-05-05 | C148: 24 | D148: No Coupon | E148: Visa | F148: Bellen | G148: Mid West | H148: 24.95 | I148: 2 | J148: 49.9
A149: 146 | B149: 2010-08-25 | C149: 47 | D149: Coupon | E149: Visa | F149: Carlota | G149: Mid West | H149: 22.95 | I149: 1 | J149: 22.95
A150: 147 | B150: 2010-10-25 | C150: 23 | D150: No Coupon | E150: PayPal | F150: Yanaki | G150: Mid West | H150: 19.95 | I150: 1 | J150: 19.95
A151: 148 | B151: 2010-07-31 | C151: 59 | D151: No Coupon | E151: PayPal | F151: Yanaki | G151: East | H151: 19.95 | I151: 5 | J151: 99.75
A152: 149 | B152: 2010-07-25 | C152: 22 | D152: Coupon | E152: Mastercard | F152: Carlota | G152: West | H152: 22.95 | I152: 4 | J152: 91.8
A153: 150 | B153: 2010-09-30 | C153: 27 | D153: Coupon | E153: Visa | F153: Bellen | G153: Mid West | H153: 24.95 | I153: 2 | J153: 49.9
A154: 151 | B154: 2010-10-03 | C154: 65 | D154: No Coupon | E154: Discover | F154: Aspen | G154: East | H154: 21.95 | I154: 1 | J154: 21.95
A155: 152 | B155: 2010-04-01 | C155: 27 | D155: No Coupon | E155: Mastercard | F155: Carlota | G155: Mid West | H155: 22.95 | I155: 2 | J155: 45.9
A156: 153 | B156: 2010-12-15 | C156: 27 | D156: No Coupon | E156: American Express | F156: Carlota | G156: East | H156: 22.95 | I156: 1 | J156: 22.95
A157: 154 | B157: 2010-01-07 | C157: 28 | D157: No Coupon | E157: PayPal | F157: Carlota | G157: West | H157: 22.95 | I157: 2 | J157: 45.9
A158: 155 | B158: 2010-07-23 | C158: 22 | D158: Coupon | E158: PayPal | F158: Bellen | G158: West | H158: 24.95 | I158: 1 | J158: 24.95
A159: 156 | B159: 2010-03-16 | C159: 42 | D159: No Coupon | E159: PayPal | F159: Yanaki | G159: East | H159: 19.95 | I159: 2 | J159: 39.9
A160: 157 | B160: 2010-12-04 | C160: 25 | D160: No Coupon | E160: American Express | F160: Delicate Arch | G160: East | H160: 29.95 | I160: 6 | J160: 179.7
A161: 158 | B161: 2010-01-08 | C161: 41 | D161: Coupon | E161: Mastercard | F161: Aspen | G161: West | H161: 21.95 | I161: 1 | J161: 21.95
A162: 159 | B162: 2010-06-02 | C162: 46 | D162: Coupon | E162: PayPal | F162: Bellen | G162: West | H162: 24.95 | I162: 1 | J162: 24.95
A163: 160 | B163: 2010-08-18 | C163: 41 | D163: No Coupon | E163: Discover | F163: Sunset | G163: West | H163: 24.95 | I163: 3 | J163: 74.85
A164: 161 | B164: 2010-04-24 | C164: 29 | D164: No Coupon | E164: Mastercard | F164: Yanaki | G164: West | H164: 19.95 | I164: 4 | J164: 79.8
A165: 162 | B165: 2010-12-01 | C165: 50 | D165: No Coupon | E165: Visa | F165: Yanaki | G165: Mid West | H165: 19.95 | I165: 1 | J165: 19.95
A166: 163 | B166: 2010-12-31 | C166: 50 | D166: Coupon | E166: Visa | F166: Carlota | G166: Mid West | H166: 22.95 | I166: 1 | J166: 22.95
A167: 164 | B167: 2010-04-30 | C167: 34 | D167: Coupon | E167: PayPal | F167: Carlota | G167: Mid West | H167: 22.95 | I167: 2 | J167: 45.9
A168: 165 | B168: 2010-03-16 | C168: 24 | D168: Coupon | E168: American Express | F168: Aspen | G168: West | H168: 21.95 | I168: 3 | J168: 65.85
A169: 166 | B169: 2010-01-28 | C169: 29 | D169: No Coupon | E169: Mastercard | F169: Yanaki | G169: West | H169: 19.95 | I169: 7 | J169: 139.65
A170: 167 | B170: 2010-08-03 | C170: 35 | D170: No Coupon | E170: Mastercard | F170: Carlota | G170: Mid West | H170: 22.95 | I170: 1 | J170: 22.95
A171: 168 | B171: 2010-11-11 | C171: 24 | D171: No Coupon | E171: Visa | F171: Yanaki | G171: West | H171: 19.95 | I171: 2 | J171: 39.9
A172: 169 | B172: 2010-12-13 | C172: 23 | D172: Coupon | E172: Visa | F172: Aspen | G172: South | H172: 21.95 | I172: 5 | J172: 109.75
A173: 170 | B173: 2010-03-27 | C173: 31 | D173: No Coupon | E173: PayPal | F173: Carlota | G173: Mid West | H173: 22.95 | I173: 7 | J173: 160.65
A174: 171 | B174: 2010-10-08 | C174: 24 | D174: Coupon | E174: PayPal | F174: Bellen | G174: Mid West | H174: 24.95 | I174: 2 | J174: 49.9
A175: 172 | B175: 2010-08-03 | C175: 30 | D175: No Coupon | E175: Visa | F175: Carlota | G175: Mid West | H175: 22.95 | I175: 1 | J175: 22.95
A176: 173 | B176: 2010-03-10 | C176: 22 | D176: Coupon | E176: Visa | F176: Carlota | G176: West | H176: 22.95 | I176: 2 | J176: 45.9
A177: 174 | B177: 2010-03-02 | C177: 43 | D177: No Coupon | E177: Visa | F177: Carlota | G177: East | H177: 22.95 | I177: 3 | J177: 68.85
A178: 175 | B178: 2010-01-26 | C178: 55 | D178: No Coupon | E178: Visa | F178: Carlota | G178: West | H178: 22.95 | I178: 10 | J178: 229.5
A179: 176 | B179: 2010-05-06 | C179: 38 | D179: No Coupon | E179: American Express | F179: Delicate Arch | G179: West | H179: 29.95 | I179: 1 | J179: 29.95
A180: 177 | B180: 2010-03-10 | C180: 28 | D180: Coupon | E180: Visa | F180: Yanaki | G180: West | H180: 19.95 | I180: 2 | J180: 39.9
A181: 178 | B181: 2010-11-18 | C181: 30 | D181: Coupon | E181: PayPal | F181: Aspen | G181: Mid West | H181: 21.95 | I181: 2 | J181: 43.9
A182: 179 | B182: 2010-01-30 | C182: 35 | D182: Coupon | E182: Discover | F182: Yanaki | G182: West | H182: 19.95 | I182: 1 | J182: 19.95
A183: 180 | B183: 2010-07-02 | C183: 41 | D183: No Coupon | E183: Visa | F183: Delicate Arch | G183: West | H183: 29.95 | I183: 2 | J183: 59.9
A184: 181 | B184: 2010-10-13 | C184: 28 | D184: Coupon | E184: Discover | F184: Yanaki | G184: East | H184: 19.95 | I184: 5 | J184: 99.75
A185: 182 | B185: 2010-02-07 | C185: 65 | D185: No Coupon | E185: Discover | F185: Bellen | G185: Mid West | H185: 24.95 | I185: 7 | J185: 174.65
A186: 183 | B186: 2010-06-05 | C186: 20 | D186: No Coupon | E186: Mastercard | F186: Aspen | G186: West | H186: 21.95 | I186: 3 | J186: 65.85
A187: 184 | B187: 2010-11-02 | C187: 39 | D187: No Coupon | E187: Visa | F187: Sunset | G187: Mid West | H187: 24.95 | I187: 5 | J187: 124.75
A188: 185 | B188: 2010-12-13 | C188: 19 | D188: No Coupon | E188: Visa | F188: Aspen | G188: East | H188: 21.95 | I188: 4 | J188: 87.8
A189: 186 | B189: 2010-10-23 | C189: 64 | D189: No Coupon | E189: Visa | F189: Carlota | G189: West | H189: 22.95 | I189: 10 | J189: 229.5
A190: 187 | B190: 2010-12-22 | C190: 42 | D190: Coupon | E190: PayPal | F190: Yanaki | G190: South | H190: 19.95 | I190: 5 | J190: 99.75
A191: 188 | B191: 2010-08-21 | C191: 24 | D191: Coupon | E191: PayPal | F191: Yanaki | G191: Mid West | H191: 19.95 | I191: 1 | J191: 19.95
A192: 189 | B192: 2010-08-28 | C192: 24 | D192: Coupon | E192: PayPal | F192: Yanaki | G192: Mid West | H192: 19.95 | I192: 1 | J192: 19.95
A193: 190 | B193: 2010-06-20 | C193: 18 | D193: No Coupon | E193: American Express | F193: Bellen | G193: Mid West | H193: 24.95 | I193: 4 | J193: 99.8
A194: 191 | B194: 2010-04-30 | C194: 36 | D194: Coupon | E194: Mastercard | F194: Bellen | G194: East | H194: 24.95 | I194: 1 | J194: 24.95
A195: 192 | B195: 2010-10-14 | C195: 61 | D195: No Coupon | E195: Mastercard | F195: Carlota | G195: Mid West | H195: 22.95 | I195: 5 | J195: 114.75
A196: 193 | B196: 2010-08-04 | C196: 22 | D196: No Coupon | E196: Visa | F196: Yanaki | G196: West | H196: 19.95 | I196: 3 | J196: 59.85
A197: 194 | B197: 2010-10-28 | C197: 55 | D197: Coupon | E197: PayPal | F197: Aspen | G197: West | H197: 21.95 | I197: 2 | J197: 43.9
A198: 195 | B198: 2010-11-04 | C198: 27 | D198: No Coupon | E198: American Express | F198: Sunset | G198: West | H198: 24.95 | I198: 3 | J198: 74.85
A199: 196 | B199: 2010-01-05 | C199: 49 | D199: No Coupon | E199: PayPal | F199: Yanaki | G199: Mid West | H199: 19.95 | I199: 1 | J199: 19.95
A200: 197 | B200: 2010-12-11 | C200: 29 | D200: Coupon | E200: Visa | F200: Carlota | G200: West | H200: 22.95 | I200: 1 | J200: 22.95
A201: 198 | B201: 2010-07-18 | C201: 33 | D201: No Coupon | E201: PayPal | F201: Aspen | G201: West | H201: 21.95 | I201: 7 | J201: 153.65
... 2 more rows

Sheet Skew
B1: Skew tells to which way the distribution is tilting. If the average is being pulled up by a few big values, the skew is positive, or to the right. If the average is being pulled down by a few small values, the skew is negative, or to the left. Range of Skew is between -3 and 3.
B2: If the Skew is 0, the Mean = Median = Mode = Normal or Bell Distribution
B3: We can use the SKEW function to calculate the Skew
B11: Moderate Skew | C11: No Skew | D11: Highly Skewed
B12: Negative (Left) Skew small values pull Mean down | C12: No Skew (Normal or Bell) Mean = Median = Mode | D12: Positive (Right) Skew big values pull Mean up
A13: count = n | B13: =COUNT(B21:B30) -> 10 | C13: =COUNT(C21:C30) -> 10 | D13: 10
A14: Skew | B14: =B13/((B13-1)*(B13-2))*SUMPRODUCT(((B21:B30-AVERAGE(B21:B30))/_xlfn.STDEV.S(B21:B30))^3) -> -0.640521768 | C14: =C13/((C13-1)*(C13-2))*SUMPRODUCT(((C21:C30-AVERAGE(C21:C30))/_xlfn.STDEV.S(C21:C30))^3) -> -0.01127728555 | D14: 1.552490626
A15: Skew
A16: Mean
A17: Median
A18: Mode
B19: Moderate Skew | C19: No Skew | D19: Highly Skewed
B20: Data 1 | C20: Data 2 | D20: Data 3
B21: 7 | C21: 7.9 | D21: 1
B22: 43 | C22: 15 | D22: 7
B23: 33 | C23: 11 | D23: 7
B24: 21 | C24: 21 | D24: 12
B25: 15 | C25: 25 | D25: 11
B26: 31 | C26: 25 | D26: 14
B27: 36 | C27: 27 | D27: 2
B28: 43 | C28: 35 | D28: 1.9
B29: 48 | C29: 38 | D29: 39
B30: 49 | C30: 41 | D30: 49
A32: Labels | B32: Frequency | C32: Frequency | D32: Frequency
A33: =A40&"-"&B40-1 -> 0-9 | B33: =FREQUENCY(B21:B30,B40:B44) -> 1 | C33: =FREQUENCY(C21:C30,C40:C44) -> 1 | D33: =FREQUENCY(D21:D30,D40:D44) -> 5
A34: =A41&"-"&B41-1 -> 10-19 | B34: 1 | C34: 2 | D34: 3
A35: =A42&"-"&B42-1 -> 20-29 | B35: 1 | C35: 4 | D35: 0
A36: =A43&"-"&B43-1 -> 30-39 | B36: 3 | C36: 2 | D36: 1
A37: =A44&"-"&B44-1 -> 40-49 | B37: 4 | C37: 1 | D37: 1
A39: Low | B39: Bins | C39: Bins | D39: Bins
A40: =B40-10 -> 0 | B40: 10 | C40: 10 | D40: 10
A41: =B41-10 -> 10 | B41: 20 | C41: 20 | D41: 20
A42: =B42-10 -> 20 | B42: 30 | C42: 30 | D42: 30
A43: =B43-10 -> 30 | B43: 40 | C43: 40 | D43: 40
A44: 40 | B44: 50 | C44: 50 | D44: 50

Sheet SkewAN
B1: Skew tells to which way the distribution is tilting. If the average is being pulled up by a few big values, the skew is positive, or to the right. If the average is being pulled down by a few small values, the skew is negative, or to the left. Range of Skew is between -3 and 3.
B2: If the Skew is 0, the Mean = Median = Mode = Normal or Bell Distribution
B3: We can use the SKEW function to calculate the Skew
B11: Moderate Skew | C11: No Skew | D11: Highly Skewed
B12: Negative (Left) Skew small values pull Mean down | C12: No Skew (Normal or Bell) Mean = Median = Mode | D12: Positive (Right) Skew big values pull Mean up
A13: count = n | B13: =COUNT(B21:B30) -> 10 | C13: =COUNT(C21:C30) -> 10 | D13: 10
A14: Skew | B14: =B13/((B13-1)*(B13-2))*SUMPRODUCT(((B21:B30-B16)/_xlfn.STDEV.S(B21:B30))^3) -> -0.640521768 | C14: =C13/((C13-1)*(C13-2))*SUMPRODUCT(((C21:C30-C16)/_xlfn.STDEV.S(C21:C30))^3) -> -0.01127728555 | D14: 1.552490626
A15: Skew | B15: =SKEW(B21:B30) -> -0.640521768 | C15: =SKEW(C21:C30) -> -0.01127728555 | D15: =SKEW(D21:D30) -> 1.552490626
A16: Mean | B16: =AVERAGE(B21:B30) -> 32.6 | C16: =AVERAGE(C21:C30) -> 24.59 | D16: =AVERAGE(D21:D30) -> 14.39
A17: Median | B17: =MEDIAN(B21:B30) -> 34.5 | C17: =MEDIAN(C21:C30) -> 25 | D17: =MEDIAN(D21:D30) -> 9
A18: Mode | B18: =MODE(B21:B30) -> 43 | C18: =MODE(C21:C30) -> 25 | D18: =MODE(D21:D30) -> 7
B19: Moderate Skew | C19: No Skew | D19: Highly Skewed
B20: Data 1 | C20: Data 2 | D20: Data 3
B21: 7 | C21: 7.9 | D21: 1
B22: 43 | C22: 15 | D22: 7
B23: 33 | C23: 11 | D23: 7
B24: 21 | C24: 21 | D24: 12
B25: 15 | C25: 25 | D25: 11
B26: 31 | C26: 25 | D26: 14
B27: 36 | C27: 27 | D27: 2
B28: 43 | C28: 35 | D28: 1.9
B29: 48 | C29: 38 | D29: 39
B30: 49 | C30: 41 | D30: 49
A32: Labels | B32: Frequency | C32: Frequency | D32: Frequency
A33: =A40&"-"&B40-1 -> 0-9 | B33: =FREQUENCY(B21:B30,B40:B44) -> 1 | C33: =FREQUENCY(C21:C30,C40:C44) -> 1 | D33: =FREQUENCY(D21:D30,D40:D44) -> 5
A34: =A41&"-"&B41-1 -> 10-19 | B34: 1 | C34: 2 | D34: 3
A35: =A42&"-"&B42-1 -> 20-29 | B35: 1 | C35: 4 | D35: 0
A36: =A43&"-"&B43-1 -> 30-39 | B36: 3 | C36: 2 | D36: 1
A37: =A44&"-"&B44-1 -> 40-49 | B37: 4 | C37: 1 | D37: 1
A39: Low | B39: Bins | C39: Bins | D39: Bins
A40: =B40-10 -> 0 | B40: 10 | C40: 10 | D40: 10
A41: =B41-10 -> 10 | B41: 20 | C41: 20 | D41: 20
A42: =B42-10 -> 20 | B42: 30 | C42: 30 | D42: 30
A43: =B43-10 -> 30 | B43: 40 | C43: 40 | D43: 40
A44: 40 | B44: 50 | C44: 50 | D44: 50

Sheet z
A1: z = z-score = standardized value
A2: Number of Standard Deviations a particular x is from the mean (Xbar)
A3: Measure of relative location of a particular x in a data set Particularly good for comparing values from different data sets!
A4: z > zero, x value > mean
A5: z < zero, x value < mean
A6: z = zero, x value = mean
A7: Who did better? You or your sister? | D7: Joe | E7: 73
A8: Your Calculus Test score = | B8: 78 | D8: z score | E8: =(E7-B9)/B10 -> 0
A9: Mean for Calculus Test = | B9: 73
A10: Standard Deviation for Calculus Test = | B10: 3
A11: z = (x - Xbar)/s = | C11: =IF(B11="","",FIXED(B11,2)&" standard deviations "&IF(B11>0,"above","below")&" the mean") -> 
A12: STANDARDIZE function | C12: =IF(B12="","","relative location of a particular x in a data set") -> 
A13: Sister's History Test score = | B13: 93
A14: Mean for History Test = | B14: 96
A15: Standard Deviation for History Test = | B15: 3
A16: z = (x - Xbar)/s = | C16: =IF(B16="","",FIXED(B16,2)&" standard deviations "&IF(B16>0,"above","below")&" the mean") -> 
A17: STANDARDIZE function | C17: =IF(B17="","","relative location of a particular x in a data set") -> 
A18: When you are calculating a z-score, you are taking the "Deviation" and dividing it by SD, which just means that you are determining "the number of standard deviations" the value is above or below the mean!!

Sheet z (an)
A1: z = z-score = standardized value
A2: Number of Standard Deviations a particular x is from the mean (Xbar)
A3: Measure of relative location of a particular x in a data set Particularly good for comparing values from different data sets!
A4: z > zero, x value > mean
A5: z < zero, x value < mean
A6: z = zero, x value = mean
A7: Who did better? You or your sister?
A8: Your Calculus Test score = | B8: 78
A9: Mean for Calculus Test = | B9: 73
A10: Standard Deviation for Calculus Test = | B10: 3
A11: z = (x - Xbar)/s = | B11: =(B8-B9)/B10 -> 1.666666667 | C11: =IF(B11="","",FIXED(B11,2)&" standard deviations "&IF(B11>0,"above","below")&" the mean") -> 1.67 standard deviations above the mean
A12: STANDARDIZE function | B12: =STANDARDIZE(B8,B9,B10) -> 1.666666667 | C12: =IF(B12="","","relative location of a particular x in a data set") -> relative location of a particular x in a data set
A13: Sister's History Test score = | B13: 93
A14: Mean for History Test = | B14: 96
A15: Standard Deviation for History Test = | B15: 3
A16: z = (x - Xbar)/s = | B16: =(B13-B14)/B15 -> -1 | C16: =IF(B16="","",FIXED(B16,2)&" standard deviations "&IF(B16>0,"above","below")&" the mean") -> -1.00 standard deviations below the mean
A17: STANDARDIZE function | B17: =STANDARDIZE(B13,B14,B15) -> -1 | C17: =IF(B17="","","relative location of a particular x in a data set") -> relative location of a particular x in a data set
A18: When you are calculating a z-score, you are taking the "Deviation" and dividing it by SD, which just means that you are determining "the number of standard deviations" the value is above or below the mean!!

Sheet Chebyshev
A1: Russian Mathematician, P.L. Chebyshev (1821-1894)
A2: Chebyshev's Theorem
A3: Allows us to make a statement about the proportion of data values that must be within a specified number of standard deviations of the mean. For example: 82.6% of the students must have a test score between 58 and 82 | K3: =1-1/0.5^2
A4: Rule: At least (1 - 1/z^2) of the values in any data set will be within z standard deviations of the mean, where z is any value greater than 1. | K4: =1-1/0.5^2 -> -3
A5: Real power of this Theorem: Applies to any data set regardless of the shape of the distribution of the data! | H5: Proportion of values | I5: Lie between (standard deviations)
A6: ="At least "&H6&", or "&TEXT(H6,"0.00%")&", of the data values must be within z = "&I6&" standard deviations of the mean" -> At least 0.75, or 75.00%, of the data values must be within z = 2 standard deviations of the mean | H6: 0.75 | I6: 2
A7: ="At least "&H7&", or "&TEXT(H7,"0.00%")&", of the data values must be within z = "&I7&" standard deviations of the mean" -> At least 0.89, or 89.00%, of the data values must be within z = 3 standard deviations of the mean | H7: 0.89 | I7: 3
A8: ="At least "&H8&", or "&TEXT(H8,"0.00%")&", of the data values must be within z = "&I8&" standard deviations of the mean" -> At least 0.94, or 94.00%, of the data values must be within z = 4 standard deviations of the mean | H8: 0.94 | I8: 4
D10: Given the Proportions from Chebyshev's Theorem, what are the low and high values?
A11: Sample Mean | B11: Sample SD | D11: SD | E11: SD | F11: SD
A12: Xbar | B12: s | D12: 2 | E12: 3 | F12: 4
A13: 75 | B13: 5
D15: =IF(OR(D14=""),"","At least "&TEXT(INDEX($H$6:$H$8,MATCH(D12,$I$6:$I$8,0)),"0.00%")&" of the values lie between "&FIXED(D13,1)&" and "&FIXED(D14,1)&" (+/- "&D12&" standard deviations.)") ->  | E15: =IF(OR(E14=""),"","At least "&TEXT(INDEX($H$6:$H$8,MATCH(E12,$I$6:$I$8,0)),"0.00%")&" of the values lie between "&FIXED(E13,1)&" and "&FIXED(E14,1)&" (+/- "&E12&" standard deviations.)") ->  | F15: =IF(OR(F14=""),"","At least "&TEXT(INDEX($H$6:$H$8,MATCH(F12,$I$6:$I$8,0)),"0.00%")&" of the values lie between "&FIXED(F13,1)&" and "&FIXED(F14,1)&" (+/- "&F12&" standard deviations.)") -> 
D17: Given two values, we can calculate the proportion of values that should lie between these two values using Chebyshev's Theorem
D18: Upper & Lower Value | E18: z | F18: Proportion of values between these two | I18: or
D19: 67 | G19: 1-1/z^2
D20: 83
D21: =IF(F19="","","At least "&TEXT(F19,"0.00%")&" of the scores must be between "&D19&" and "&D20&".") -> 
D23: According to Chebyshev's Theorem, at least what percent of any data set will be within 1.8 standard deviation of the mean?
E24: z = | F24: Proportion of values between these two
E25: 1.8 | G25: 1-1/z^2
D26: =IF(F25="","","Accoring to Chebyshev's Theorem, at least "&TEXT(F25,"0.00%")&" of any data set will be within +/- 1.8 standard deviation of the mean.") -> 

Sheet Chebyshev (an)
A1: Russian Mathematician, P.L. Chebyshev (1821-1894)
A2: Chebyshev's Theorem
A3: Allows us to make a statement about the proportion of data values that must be within a specified number of standard deviations of the mean. For example: 82.6% of the students must have a test score between 58 and 82 | K3: =1-1/0.5^2
A4: Rule: At least (1 - 1/z^2) of the values in any data set will be within z standard deviations of the mean, where z is any value greater than 1. | K4: =1-1/0.5^2 -> -3
A5: Real power of this Theorem: Applies to any data set regardless of the shape of the distribution of the data! | H5: Proportion of values | I5: Lie between (standard deviations)
A6: ="At least "&H6&", or "&TEXT(H6,"0.00%")&", of the data values must be within z = "&I6&" standard deviations of the mean" -> At least 0.75, or 75.00%, of the data values must be within z = 2 standard deviations of the mean | H6: 0.75 | I6: 2
A7: ="At least "&H7&", or "&TEXT(H7,"0.00%")&", of the data values must be within z = "&I7&" standard deviations of the mean" -> At least 0.89, or 89.00%, of the data values must be within z = 3 standard deviations of the mean | H7: 0.89 | I7: 3
A8: ="At least "&H8&", or "&TEXT(H8,"0.00%")&", of the data values must be within z = "&I8&" standard deviations of the mean" -> At least 0.94, or 94.00%, of the data values must be within z = 4 standard deviations of the mean | H8: 0.94 | I8: 4
D10: Given the Proportions from Chebyshev's Theorem, what are the low and high values?
A11: Sample Mean | B11: Sample SD | D11: SD | E11: SD | F11: SD
A12: Xbar | B12: s | D12: 2 | E12: 3 | F12: 4
A13: 75 | B13: 5 | D13: =A13-B13*D12 -> 65 | E13: =A13-B13*E12 -> 60 | F13: =A13-B13*F12 -> 55
D14: =A13+B13*D12 -> 85 | E14: =A13+B13*E12 -> 90 | F14: =A13+B13*F12 -> 95
D15: =IF(OR(D14=""),"","At least "&TEXT(INDEX($H$6:$H$8,MATCH(D12,$I$6:$I$8,0)),"0.00%")&" of the values lie between "&FIXED(D13,1)&" and "&FIXED(D14,1)&" (+/- "&D12&" standard deviations.)") -> At least 75.00% of the values lie between 65.0 and 85.0 (+/- 2 standard deviations.) | E15: =IF(OR(E14=""),"","At least "&TEXT(INDEX($H$6:$H$8,MATCH(E12,$I$6:$I$8,0)),"0.00%")&" of the values lie between "&FIXED(E13,1)&" and "&FIXED(E14,1)&" (+/- "&E12&" standard deviations.)") -> At least 89.00% of the values lie between 60.0 and 90.0 (+/- 3 standard deviations.) | F15: =IF(OR(F14=""),"","At least "&TEXT(INDEX($H$6:$H$8,MATCH(F12,$I$6:$I$8,0)),"0.00%")&" of the values lie between "&FIXED(F13,1)&" and "&FIXED(F14,1)&" (+/- "&F12&" standard deviations.)") -> At least 94.00% of the values lie between 55.0 and 95.0 (+/- 4 standard deviations.)
D17: Given two values, we can calculate the proportion of values that should lie between these two values using Chebyshev's Theorem
D18: Upper & Lower Value | E18: z | F18: Proportion of values between these two | I18: or
D19: 67 | E19: =(D19-$A$13)/$B$13 -> -1.6 | F19: =1-1/E20^2 -> 0.609375 | G19: 1-1/z^2 | I19: =1-1/E19^2 -> 0.609375
D20: 83 | E20: =(D20-$A$13)/$B$13 -> 1.6
D21: =IF(F19="","","At least "&TEXT(F19,"0.00%")&" of the scores must be between "&D19&" and "&D20&".") -> At least 60.94% of the scores must be between 67 and 83.
D23: According to Chebyshev's Theorem, at least what percent of any data set will be within 1.8 standard deviation of the mean?
E24: z = | F24: Proportion of values between these two
E25: 1.8 | F25: =1-1/E25^2 -> 0.6913580247 | G25: 1-1/z^2
D26: =IF(F25="","","Accoring to Chebyshev's Theorem, at least "&TEXT(F25,"0.00%")&" of any data set will be within +/- 1.8 standard deviation of the mean.") -> Accoring to Chebyshev's Theorem, at least 69.14% of any data set will be within +/- 1.8 standard deviation of the mean.

Sheet Empirical Rule
K3: 1 | L3: Approximately 68% of Values
K4: 2 | L4: Approximately 95% of Values
K5: 3 | L5: Approximately 99% of Values

Sheet Normal Distribution
A1: ="Normal Distribution with Mean = "&B2&" Standard Deviation = "&B3 -> Normal Distribution with Mean = 1 Standard Deviation = 4.9 | J1: Mean = µ = | K1: =B2 -> 1
A2: Mean = µ = | B2: 1 | J2: Standard Deviation = s = | K2: =B3 -> 4.9
A3: Standard Deviation = s = | B3: 4.9
A4: Increment for Chart | B4: 0.5
B6: x | C6: f(x)
A7: 1 | B7: =B8-B$4 -> -19 | C7: =NORMDIST(B7,B$2,B$3,0) -> 1.963815313e-05
A8: 2 | B8: -18.5 | C8: =NORMDIST(B8,B$2,B$3,0) -> 2.962922562e-05
A9: 3 | B9: -18 | C9: =NORMDIST(B9,B$2,B$3,0) -> 4.424028776e-05
A10: 4 | B10: -17.5 | C10: 6.537227043e-05
A11: 5 | B11: -17 | C11: 9.55976414e-05
A12: 6 | B12: -16.5 | C12: 0.0001383498745
A13: 7 | B13: -16 | C13: 0.0001981473849
A14: 8 | B14: -15.5 | C14: 0.0002808509542
A15: 9 | B15: -15 | C15: 0.0003939503094
A16: 10 | B16: -14.5 | C16: 0.0005468710976
A17: 11 | B17: -14 | C17: 0.0007512880483
A18: 12 | B18: -13.5 | C18: 0.001021423798
A19: 13 | B19: -13 | C19: 0.001374306015
A20: 14 | B20: -12.5 | C20: 0.001829948662
A21: 15 | B21: -12 | C21: 0.002411417166
A22: 16 | B22: -11.5 | C22: 0.003144732966
A23: 17 | B23: -11 | C23: 0.00405857132
A24: 18 | B24: -10.5 | C24: 0.005183708531
A25: 19 | B25: -10 | C25: 0.006552181955
A26: 20 | B26: -9.5 | C26: 0.008196138865 | F26: Empirical (Normal) Rule (True when Distribution is bell shaped)
A27: 21 | B27: -9 | C27: 0.01014636894 | F27: 68% of the values lie between these two values: | K27: =$B$2-M27*$B$3 -> -3.9 | L27: =$B$2+M27*$B$3 -> 5.9 | M27: 1 | N27: SD
A28: 22 | B28: -8.5 | C28: 0.01243053942 | F28: 95% of the values lie between these two values: | K28: =$B$2-M28*$B$3 -> -8.8 | L28: =$B$2+M28*$B$3 -> 10.8 | M28: 2 | N28: SD
A29: 23 | B29: -8 | C29: 0.01507118093 | F29: 99% (almost all) of the values lie between these two values: | K29: =$B$2-M29*$B$3 -> -13.7 | L29: =$B$2+M29*$B$3 -> 15.7 | M29: 3 | N29: SD
A30: 24 | B30: -7.5 | C30: 0.01808350354
A31: 25 | B31: -7 | C31: 0.0214731546
A32: 26 | B32: -6.5 | C32: 0.02523405872
A33: 27 | B33: -6 | C33: 0.0293465026
A34: 28 | B34: -5.5 | C34: 0.03377563917
A35: 29 | B35: -5 | C35: 0.03847058451
A36: 30 | B36: -4.5 | C36: 0.0433642637
A37: 31 | B37: -4 | C37: 0.04837412827
A38: 32 | B38: -3.5 | C38: 0.05340381838
A39: 33 | B39: -3 | C39: 0.05834578026
A40: 34 | B40: -2.5 | C40: 0.06308477772
A41: 35 | B41: -2 | C41: 0.06750216241
A42: 36 | B42: -1.5 | C42: 0.07148069678
A43: 37 | B43: -1 | C43: 0.07490966456
A44: 38 | B44: -0.5 | C44: 0.07768996231
A45: 39 | B45: 0 | C45: 0.07973884715
A46: 40 | B46: 0.5 | C46: 0.08099402419
A47: 41 | B47: =B2 -> 1 | C47: 0.08141679192
A48: 42 | B48: =B47+B$4 -> 1.5 | C48: 0.08099402419
A49: 43 | B49: 2 | C49: 0.07973884715
A50: 44 | B50: 2.5 | C50: 0.07768996231
A51: 45 | B51: 3 | C51: 0.07490966456
A52: 46 | B52: 3.5 | C52: 0.07148069678
A53: 47 | B53: 4 | C53: 0.06750216241
A54: 48 | B54: 4.5 | C54: 0.06308477772
A55: 49 | B55: 5 | C55: 0.05834578026
A56: 50 | B56: 5.5 | C56: 0.05340381838
A57: 51 | B57: 6 | C57: 0.04837412827
A58: 52 | B58: 6.5 | C58: 0.0433642637
A59: 53 | B59: 7 | C59: 0.03847058451
A60: 54 | B60: 7.5 | C60: 0.03377563917
A61: 55 | B61: 8 | C61: 0.0293465026
A62: 56 | B62: 8.5 | C62: 0.02523405872
A63: 57 | B63: 9 | C63: 0.0214731546
A64: 58 | B64: 9.5 | C64: 0.01808350354
A65: 59 | B65: 10 | C65: 0.01507118093
A66: 60 | B66: 10.5 | C66: 0.01243053942
A67: 61 | B67: 11 | C67: 0.01014636894
A68: 62 | B68: 11.5 | C68: 0.008196138865
A69: 63 | B69: 12 | C69: 0.006552181955
A70: 64 | B70: 12.5 | C70: 0.005183708531
A71: 65 | B71: 13 | C71: 0.00405857132
A72: 66 | B72: 13.5 | C72: 0.003144732966
A73: 67 | B73: 14 | C73: =NORMDIST(B73,B$2,B$3,0) -> 0.002411417166
A74: 68 | B74: 14.5 | C74: 0.001829948662
A75: 69 | B75: 15 | C75: 0.001374306015
A76: 70 | B76: 15.5 | C76: 0.001021423798
A77: 71 | B77: 16 | C77: 0.0007512880483
A78: 72 | B78: 16.5 | C78: 0.0005468710976
A79: 73 | B79: 17 | C79: 0.0003939503094
A80: 74 | B80: 17.5 | C80: 0.0002808509542
A81: 75 | B81: 18 | C81: 0.0001981473849
A82: 76 | B82: 18.5 | C82: 0.0001383498745
A83: 77 | B83: 19 | C83: 9.55976414e-05
A84: 78 | B84: 19.5 | C84: 6.537227043e-05
A85: 79 | B85: 20 | C85: 4.424028776e-05
A86: 80 | B86: 20.5 | C86: 2.962922562e-05
A87: 81 | B87: 21 | C87: 1.963815313e-05

Sheet Bell(1)
A1: Approximately 68% of Values lie between 1 SD above or below the mean.
A2: Approximately 95% of Values lie between 2 SD above or below the mean.
A3: Approximately 99% of Values lie between 3 SD above or below the mean.
A10: Distribution had a bell (Normal) shape
A11: Pop. Stats Test Mean | B11: 83 | C11: Mew
A12: Pop. Standard Deviation | B12: 5 | C12: Sigma
A14: 68% of the scores will lie between what two values?
A15: Lower | D15: 0.68
A16: Upper
A17: =IF(B16="","","Aproximately "&TEXT(D15,"0.00%")&" lie between "&B15&" and "&B16&".") -> 
A19: 95% of the scores will lie between what two values?
A20: Lower | D20: 0.95
A21: Upper
A22: =IF(B21="","","Aproximately "&TEXT(D20,"0.00%")&" lie between "&B20&" and "&B21&".") -> 
A24: What percent of the values lie below a score of 83? | D24: 0.5
A25: =IF(D24="","","Aproximately "&TEXT(D24,"0.00%")&" lie below "&$B$11) -> Aproximately 50.00% lie below 83
A27: What percent of the values lie above a score of 83? | D27: 0.5
A28: =IF(D27="","","Aproximately "&TEXT(D27,"0.00%")&" lie above "&$B$11) -> Aproximately 50.00% lie above 83

Sheet Bell(1an)
A1: Approximately 68% of Values lie between 1 SD above or below the mean.
A2: Approximately 95% of Values lie between 2 SD above or below the mean.
A3: Approximately 99% of Values lie between 3 SD above or below the mean.
A10: Distribution had a bell (Normal) shape
A11: Pop. Stats Test Mean | B11: 83 | C11: Mu
A12: Pop. Standard Deviation | B12: 5 | C12: Sigma
A14: 68% of the scores will lie between what two values?
A15: Lower | B15: =B11-B12 -> 78 | D15: 0.68
A16: Upper | B16: =B11+B12 -> 88
A17: =IF(B16="","","Aproximately "&TEXT(D15,"0.00%")&" lie between "&B15&" and "&B16&".") -> Aproximately 68.00% lie between 78 and 88.
A19: 95% of the scores will lie between what two values?
A20: Lower | B20: =B11-B12*2 -> 73 | D20: 0.95
A21: Upper | B21: =B11+B12*2 -> 93
A22: =IF(B21="","","Aproximately "&TEXT(D20,"0.00%")&" lie between "&B20&" and "&B21&".") -> Aproximately 95.00% lie between 73 and 93.
A24: What percent of the values lie below a score of 83? | D24: 0.5
A25: =IF(D24="","","Aproximately "&TEXT(D24,"0.00%")&" lie below "&$B$11) -> Aproximately 50.00% lie below 83
A27: What percent of the values lie above a score of 83? | D27: 0.5
A28: =IF(D27="","","Aproximately "&TEXT(D27,"0.00%")&" lie above "&$B$11) -> Aproximately 50.00% lie above 83

Sheet Bell(2)
A1: +/- 1 SD | B1: Approximately 68% of Values
A2: +/- 2 SD | B2: Approximately 95% of Values
A3: +/- 3 SD | B3: Approximately 99% of Values
A5: Retail price per gallon distribution is bell shaped
A6: Mean regular gas per gallon | D6: 2.6
A7: Standard Deviation = | D7: 0.15
A9: lower | B9: =A9&" z (#SD)" -> lower z (#SD) | C9: upper | D9: =C9&" z (#SD)" -> upper z (#SD) | E9: meaning | F9: Total %
A10: 2.45 | C10: 2.75 | E10: =IF(F10="","","Aproximately "&TEXT(F10,"0.00%")&" of values lie between "&DOLLAR(A10)&" and "&DOLLAR(C10,2)) -> 
A11: 2.3 | C11: 2.75 | E11: =IF(F11="","","Aproximately "&TEXT(F11,"0.00%")&" of values lie between "&DOLLAR(A11)&" and "&DOLLAR(C11,2)) -> 
C12: 2.75 | E12: =IF(F12="","","Aproximately "&TEXT(F12,"0.00%")&" of values are above "&C12) -> 
B14: SD | C14: % | D14: 1/2 area
B15: =A1 -> +/- 1 SD | C15: 0.68
B16: =A2 -> +/- 2 SD | C16: 0.95
B17: =A3 -> +/- 3 SD | C17: 0.99

Sheet Bell(2an)
A1: +/- 1 SD | B1: Approximately 68% of Values
A2: +/- 2 SD | B2: Approximately 95% of Values
A3: +/- 3 SD | B3: Approximately 99% of Values
A5: Retail price per gallon distribution is bell shaped
A6: Mean regular gas per gallon | D6: 2.6
A7: Standard Deviation = | D7: 0.15
A9: lower | B9: =A9&" z (#SD)" -> lower z (#SD) | C9: upper | D9: =C9&" z (#SD)" -> upper z (#SD) | E9: meaning | F9: Total %
A10: 2.45 | B10: =(A10-$D$6)/$D$7 -> -1 | C10: 2.75 | D10: =(C10-$D$6)/$D$7 -> 1 | E10: =IF(F10="","","Aproximately "&TEXT(F10,"0.00%")&" of values lie between "&DOLLAR(A10)&" and "&DOLLAR(C10,2)) -> Aproximately 68.00% of values lie between $2.45 and $2.75 | F10: 0.68
A11: 2.3 | B11: =(A11-$D$6)/$D$7 -> -2 | C11: 2.75 | D11: =(C11-$D$6)/$D$7 -> 1 | E11: =IF(F11="","","Aproximately "&TEXT(F11,"0.00%")&" of values lie between "&DOLLAR(A11)&" and "&DOLLAR(C11,2)) -> Aproximately 81.50% of values lie between $2.30 and $2.75 | F11: =D15+D16 -> 0.815
C12: 2.75 | D12: =(C12-$D$6)/$D$7 -> 1 | E12: =IF(F12="","","Aproximately "&TEXT(F12,"0.00%")&" of values are above "&C12) -> Aproximately 16.00% of values are above 2.75 | F12: =0.5-D15 -> 0.16
B14: SD | C14: % | D14: 1/2 area
B15: =A1 -> +/- 1 SD | C15: 0.68 | D15: =C15/2 -> 0.34
B16: =A2 -> +/- 2 SD | C16: 0.95 | D16: =C16/2 -> 0.475
B17: =A3 -> +/- 3 SD | C17: 0.99 | D17: =C17/2 -> 0.495

Sheet Bell&Cheb
A1: If the distribution of weights for a Lettuce Filling Machine are normally distributed (Bell Shape) with a mean of 13 oz and a standard deviation of .1 oz, what percent of the values should lie between 2 standard deviations and what are the low and high values associated with the percentage?
A3: Mean | B3: 13 | C3: oz
A4: SD | B4: 0.1 | C4: oz
A5: # SD | B5: 2
A6: Percent = | B6: 0.95 | D6: Empirical Rule
A7: Lower Values
A8: Upper Value
A9: =IF(B8="","","Because the distribution is bell shaped, we can say that approximately "&TEXT(B6,"0.00%")&" of the values should lie between "&B8&" oz. and "&B7&" oz.") -> 
A11: Mean | B11: 13 | C11: oz
A12: SD | B12: 0.1 | C12: oz
A13: # SD | B13: 2
A14: Percent = | B14: 0.75 | D14: Chebyshev's Theorem | G14: =1-1/B13^2 -> 0.75
A15: Lower Values
A16: Upper Value
A17: =IF(B16="","","Because the distribution is not bell shaped, we can say that approximately "&TEXT(B14,"0.00%")&" of the values should lie between "&B16&" oz. and "&B15&" oz.") -> 
A19: .

Sheet Bell&ChebAN
A1: If the distribution of weights for a Lettuce Filling Machine are normally distributed (Bell Shape) with a mean of 13 oz and a standard deviation of .1 oz, what percent of the values should lie between 2 standard deviations and what are the low and high values associated with the percentage?
A3: Mean | B3: 13 | C3: oz
A4: SD | B4: 0.1 | C4: oz
A5: # SD | B5: 2
A6: Percent = | B6: 0.95 | D6: Empirical Rule
A7: Lower Values | B7: =B3-B4*B5 -> 12.8
A8: Upper Value | B8: =B3+B4*B5 -> 13.2
A9: =IF(B8="","","Because the distribution is bell shaped, we can say that approximately "&TEXT(B6,"0.00%")&" of the values should lie between "&B8&" oz. and "&B7&" oz.") -> Because the distribution is bell shaped, we can say that approximately 95.00% of the values should lie between 13.2 oz. and 12.8 oz.
A11: Mean | B11: 13 | C11: oz
A12: SD | B12: 0.1 | C12: oz
A13: # SD | B13: 2
A14: Percent = | B14: 0.75 | D14: Chebyshev's Theorem
A15: Lower Values | B15: =$B$11-$B$12*$B$13 -> 12.8
A16: Upper Value | B16: =$B$11+$B$12*$B$13 -> 13.2
A17: =IF(B16="","","Because the distribution is not bell shaped, we can say that approximately "&TEXT(B14,"0.00%")&" of the values should lie between "&B16&" oz. and "&B15&" oz.") -> Because the distribution is not bell shaped, we can say that approximately 75.00% of the values should lie between 13.2 oz. and 12.8 oz.
A19: .

Sheet Outlier
A1: Detecting Outliers
A2: An outlier is an unusually small or unusually large value in a data set.
A3: A data value with a z-score less than -3 or greater than +3 might be considered an outlier.
A4: It might be: 1)an incorrectly recorded data value 2)a data value that was incorrectly included in the data set 3) a correctly recorded data value that belongs in the data set
A5: ABS is absolute Value function in Excel (Distance away from zero)
A7: Mean | B7: 50
A8: SD | B8: 15
A9: Count | B9: =COUNT(B22:B32) -> 11
A10: Excel
A11: Quartile 1 | B11: =QUARTILE($B$22:$B$32,C11) -> 47.5 | C11: 1
A12: Quartile 3 | B12: =QUARTILE($B$22:$B$32,C12) -> 60.5 | C12: 3
A13: by hand: Roundup if decimal, take ave. of i and i + 1 if whole #
B14: Value | C14: i
A15: Quartile 1 | B15: =B24 -> 45 | C15: =D15*$B$9 -> 2.75 | D15: 0.25
A16: Quartile 3 | B16: =B30 -> 62 | C16: =D16*$B$9 -> 8.25 | D16: 0.75
A17: Interquartile Range | B17: =B16-B15 -> 17
A18: Lower Limit for Outlier | B18: =B15-B17*1.5 -> 19.5 | C18: Q1 - 1.5*(Q3-Q1) or 0
A19: Upper Limit for Outlier | B19: =B16+1.5*B17 -> 87.5 | C19: Q3 + 1.5*(Q3-Q1)
A21: No | B21: Sales | D21: z | E21: Outlier = z >3 | K21: Outlier Limit = Q1 - 1.5*Interquartile range | L21: Outlier Limit = Q3 + 1.5*Interquartile range
A22: 1 | B22: 42
A23: 2 | B23: 43
A24: 3 | B24: 45
A25: 4 | B25: 50
A26: 5 | B26: 51
A27: 6 | B27: 51
A28: 7 | B28: 53
A29: 8 | B29: 59
A30: 9 | B30: 62
A31: 10 | B31: 92
A32: 11 | B32: 500

Sheet Outlier (an)
A1: Detecting Outliers
A2: An outlier is an unusually small or unusually large value in a data set.
A3: A data value with a z-score less than -3 or greater than +3 might be considered an outlier.
A4: It might be: 1)an incorrectly recorded data value 2)a data value that was incorrectly included in the data set 3) a correctly recorded data value that belongs in the data set
A5: ABS is absolute Value function in Excel (Distance away from zero)
A7: Mean | B7: 50
A8: SD | B8: 15
A9: Count | B9: =COUNT(B22:B32) -> 11
A10: Excel
A11: Quartile 1 | B11: =QUARTILE($B$22:$B$32,C11) -> 47.5 | C11: 1
A12: Quartile 3 | B12: =QUARTILE($B$22:$B$32,C12) -> 60.5 | C12: 3
A13: by hand: Roundup if decimal, take ave. of i and i + 1 if whole #
B14: Value | C14: i
A15: Quartile 1 | B15: =B24 -> 45 | C15: =D15*$B$9 -> 2.75 | D15: 0.25
A16: Quartile 3 | B16: =B30 -> 62 | C16: =D16*$B$9 -> 8.25 | D16: 0.75
A17: Interquartile Range | B17: =B16-B15 -> 17
A18: Lower Limit for Outlier | B18: =B15-B17*1.5 -> 19.5 | C18: Q1 - 1.5*(Q3-Q1) or 0
A19: Upper Limit for Outlier | B19: =B16+1.5*B17 -> 87.5 | C19: Q3 + 1.5*(Q3-Q1)
A21: No | B21: Sales | D21: z | E21: Outlier = z >3 | K21: Outlier Limit = Q1 - 1.5*Interquartile range | L21: Outlier Limit = Q3 + 1.5*Interquartile range
A22: 1 | B22: 42 | D22: =(B22-$B$7)/$B$8 -> -0.5333333333 | E22: =ABS(D22)>3 -> FALSE | K22: =B22<$B$18 -> FALSE | L22: =B22>$B$19 -> FALSE
A23: 2 | B23: 43 | D23: -0.4666666667 | E23: =ABS(D23)>3 -> FALSE | K23: FALSE | L23: FALSE
A24: 3 | B24: 45 | D24: -0.3333333333 | E24: FALSE | K24: FALSE | L24: FALSE
A25: 4 | B25: 50 | D25: 0 | E25: FALSE | K25: FALSE | L25: FALSE
A26: 5 | B26: 51 | D26: 0.06666666667 | E26: FALSE | K26: FALSE | L26: FALSE
A27: 6 | B27: 51 | D27: 0.06666666667 | E27: FALSE | K27: FALSE | L27: FALSE
A28: 7 | B28: 53 | D28: 0.2 | E28: FALSE | K28: FALSE | L28: FALSE
A29: 8 | B29: 59 | D29: 0.6 | E29: FALSE | K29: FALSE | L29: FALSE
A30: 9 | B30: 62 | D30: 0.8 | E30: FALSE | K30: FALSE | L30: FALSE
A31: 10 | B31: 92 | D31: 2.8 | E31: FALSE | K31: FALSE | L31: TRUE
A32: 11 | B32: 500 | D32: 30 | E32: TRUE | K32: FALSE | L32: TRUE
